Body Name,Transaction Number,Account Code Description,Expenses Type,Service Code,Service Area Categorisation,Supplier Name,Date,Amount
Bath and North East Somerset Council,80907783,LK4,Nursery/Childcare Vouchers,P21,Childrens Services,3-2-4 PLAYGROUP,01/04/2020,23931.65
Bath and North East Somerset Council,80907739,LK4,Nursery/Childcare Vouchers,P21,Childrens Services,REDACTED,01/04/2020,891.07
Bath and North East Somerset Council,80907798,LK4,Nursery/Childcare Vouchers,P21,Childrens Services,REDACTED,01/04/2020,700.13
Bath and North East Somerset Council,80907696,LK4,Nursery/Childcare Vouchers,P21,Childrens Services,REDACTED,01/04/2020,3150.58
Bath and North East Somerset Council,80907809,LK4,Nursery/Childcare Vouchers,P21,Childrens Services,REDACTED,01/04/2020,8157.03
Bath and North East Somerset Council,80907824,LK4,Nursery/Childcare Vouchers,P21,Childrens Services,REDACTED,01/04/2020,3940.75
Bath and North East Somerset Council,80907693,LK4,Nursery/Childcare Vouchers,P21,Childrens Services,REDACTED,01/04/2020,2545.92
Bath and North East Somerset Council,80907690,LK4,Nursery/Childcare Vouchers,P21,Childrens Services,REDACTED,01/04/2020,3691.58
Bath and North East Somerset Council,80907703,LK4,Nursery/Childcare Vouchers,P21,Childrens Services,ATELIER NURSERY LTD,01/04/2020,50879.23
Bath and North East Somerset Council,80907677,LM6,Nursing Care,P20,Adult Services,BARCHESTER HEALTHCARE HOMES LTD,01/04/2020,19800
Bath and North East Somerset Council,80907787,LK4,Nursery/Childcare Vouchers,P21,Childrens Services,BATH & WELLS DIOCESAN ACADEMIES TRUST ST SAV INF,01/04/2020,19110.72
Bath and North East Somerset Council,80907868,PC1,Precepts,Z99,Outside Revenue Accounts,BATHFORD PARISH COUNCIL,01/04/2020,11242.5
Bath and North East Somerset Council,80907834,LK4,Nursery/Childcare Vouchers,P21,Childrens Services,REDACTED,01/04/2020,11437.1
Bath and North East Somerset Council,80907833,LK4,Nursery/Childcare Vouchers,P21,Childrens Services,BUTTERCUP BARN NURSERY,01/04/2020,54510.76
Bath and North East Somerset Council,80907736,LK4,Nursery/Childcare Vouchers,P21,Childrens Services,CATERPILLARS DAY NURSERY,01/04/2020,41955.46
Bath and North East Somerset Council,80907676,LM6,Nursing Care,P20,Adult Services,CEDAR PARK NURSING HOME,01/04/2020,1094.29
Bath and North East Somerset Council,80907802,LK4,Nursery/Childcare Vouchers,P21,Childrens Services,REDACTED,01/04/2020,763.78
Bath and North East Somerset Council,80907812,LK4,Nursery/Childcare Vouchers,P21,Childrens Services,REDACTED - CHILDCARE,01/04/2020,3956.78
Bath and North East Somerset Council,80907719,LK4,Nursery/Childcare Vouchers,P21,Childrens Services,REDACTED,01/04/2020,2036.74
Bath and North East Somerset Council,10932265,EA1,Training,P19,Resources and Deputy Leader,EQUALITY ACADEMY LIMITED,01/04/2020,483
Bath and North East Somerset Council,80907820,LK4,Nursery/Childcare Vouchers,P21,Childrens Services,REDACTED,01/04/2020,4678.44
Bath and North East Somerset Council,80907815,LK4,Nursery/Childcare Vouchers,P21,Childrens Services,COUNTRY GARDEN DAY NURSERY,01/04/2020,46159.49
Bath and North East Somerset Council,80907885,PC1,Precepts,Z99,Outside Revenue Accounts,CHELWOOD PARISH COUNCIL,01/04/2020,550
Bath and North East Somerset Council,10932740,EA1,Training,P23,"Housing, Planning & Economic Development",BRISTOL MANAGEMENT CENTRE LTD,01/04/2020,659.17
Bath and North East Somerset Council,10932728,3F7,PCB External Fees,P24,Community Services,CHASE CONSULTING LIMITED,01/04/2020,715.98
Bath and North East Somerset Council,80907871,PC1,Precepts,Z99,Outside Revenue Accounts,ST CATHERINE PARISH COUNCIL,01/04/2020,750
Bath and North East Somerset Council,80907714,LK4,Nursery/Childcare Vouchers,P21,Childrens Services,REDACTED,01/04/2020,678.91
Bath and North East Somerset Council,80907697,LK4,Nursery/Childcare Vouchers,P21,Childrens Services,REDCATED,01/04/2020,4958.92
Bath and North East Somerset Council,80907694,LK4,Nursery/Childcare Vouchers,P21,Childrens Services,REDACTED,01/04/2020,5715.59
Bath and North East Somerset Council,10932722,LJ1,Consultants Fees,P19,Resources and Deputy Leader,PUBLIC-I GROUP LTD,01/04/2020,825
Bath and North East Somerset Council,10932716,LK1,Fees,P20,Adult Services,E-BURN LIMITED,01/04/2020,1040
Bath and North East Somerset Council,80907575,LM2,Foster Carer Allowances,P21,Childrens Services,REDACTED,01/04/2020,922
Bath and North East Somerset Council,80907844,PC1,Precepts,Z99,Outside Revenue Accounts,EAST HARPTREE PARISH COUNCIL,01/04/2020,7000
Bath and North East Somerset Council,80907689,LK4,Nursery/Childcare Vouchers,P21,Childrens Services,REDACTED,01/04/2020,15234.96
Bath and North East Somerset Council,80907712,LK4,Nursery/Childcare Vouchers,P21,Childrens Services,REDACTED,01/04/2020,1485.12
Bath and North East Somerset Council,80907724,LK4,Nursery/Childcare Vouchers,P21,Childrens Services,FIRST STEPS NURSERY,01/04/2020,11348.93
Bath and North East Somerset Council,80907735,LK4,Nursery/Childcare Vouchers,P21,Childrens Services,FIRST STEPS NURSERY,01/04/2020,62208.58
Bath and North East Somerset Council,80907744,LK4,Nursery/Childcare Vouchers,P21,Childrens Services,FIRST STEPS NURSERY,01/04/2020,69229.44
Bath and North East Somerset Council,80907688,LK4,Nursery/Childcare Vouchers,P21,Childrens Services,FOOTSTEPS NURSERY (PAULTON),01/04/2020,37310.78
Bath and North East Somerset Council,80907837,PC1,Precepts,Z99,Outside Revenue Accounts,CLAVERTON PARISH COUNCIL,01/04/2020,1250
Bath and North East Somerset Council,80907853,PC1,Precepts,Z99,Outside Revenue Accounts,KELSTON PARISH MEETING,01/04/2020,1250
Bath and North East Somerset Council,80907805,LK4,Nursery/Childcare Vouchers,P21,Childrens Services,GUINEA LANE NURSERY,01/04/2020,47474.88
Bath and North East Somerset Council,80907734,LK4,Nursery/Childcare Vouchers,P21,Childrens Services,HAPPY DAYS DAY NURSERY LTD,01/04/2020,39758.78
Bath and North East Somerset Council,80907818,LK4,Nursery/Childcare Vouchers,P21,Childrens Services,REDACTED,01/04/2020,3703.13
Bath and North East Somerset Council,80907779,LK4,Nursery/Childcare Vouchers,P21,Childrens Services,REDACTED,01/04/2020,4561.44
Bath and North East Somerset Council,80907727,LK4,Nursery/Childcare Vouchers,P21,Childrens Services,HIDDEN GARDEN DAY NURSERY/REDACTED,01/04/2020,51133.82
Bath and North East Somerset Council,80907850,PC1,Precepts,Z99,Outside Revenue Accounts,HIGH LITTLETON PARISH COUNCIL,01/04/2020,17750
Bath and North East Somerset Council,80907852,PC1,Precepts,Z99,Outside Revenue Accounts,HINTON CHARTERHOUSE PARISH COUNCIL,01/04/2020,6933
Bath and North East Somerset Council,80907601,KE3,Transport & Travel,P21,Childrens Services,REDACTED,01/04/2020,37.8
Bath and North East Somerset Council,80907601,LM4,Respite Care,P21,Childrens Services,REDACTED,01/04/2020,42.86
Bath and North East Somerset Council,80907601,LM4,Respite Care,P21,Childrens Services,REDACTED,01/04/2020,71.43
Bath and North East Somerset Council,80907601,LM4,Respite Care,P21,Childrens Services,REDACTED,01/04/2020,122.86
Bath and North East Somerset Council,80907601,LM2,Foster Carer Allowances,P21,Childrens Services,REDACTED,01/04/2020,150
Bath and North East Somerset Council,80907601,LM2,Foster Carer Allowances,P21,Childrens Services,REDACTED,01/04/2020,150
Bath and North East Somerset Council,80907601,LM2,Foster Carer Allowances,P21,Childrens Services,REDACTED,01/04/2020,250
Bath and North East Somerset Council,80907601,LM2,Foster Carer Allowances,P21,Childrens Services,REDACTED,01/04/2020,250
Bath and North East Somerset Council,80907601,LM2,Foster Carer Allowances,P21,Childrens Services,REDACTED,01/04/2020,430
Bath and North East Somerset Council,80907601,LM2,Foster Carer Allowances,P21,Childrens Services,REDACTED,01/04/2020,522
Bath and North East Somerset Council,80907737,LK4,Nursery/Childcare Vouchers,P21,Childrens Services,MISS S MORGAN,01/04/2020,1400.26
Bath and North East Somerset Council,80907611,LM2,Foster Carer Allowances,P21,Childrens Services,REDACTED,01/04/2020,391.5
Bath and North East Somerset Council,80907611,LM2,Foster Carer Allowances,P21,Childrens Services,REDACTED,01/04/2020,922
Bath and North East Somerset Council,80907572,LM2,Foster Carer Allowances,P21,Childrens Services,REDACTED,01/04/2020,150
Bath and North East Somerset Council,80907572,LM2,Foster Carer Allowances,P21,Childrens Services,REDACTED,01/04/2020,250
Bath and North East Somerset Council,80907572,LM2,Foster Carer Allowances,P21,Childrens Services,REDACTED,01/04/2020,522
Bath and North East Somerset Council,80907572,LM2,Foster Carer Allowances,P21,Childrens Services,REDACTED,01/04/2020,922
Bath and North East Somerset Council,80907564,LM2,Foster Carer Allowances,P21,Childrens Services,REDACTED,01/04/2020,150
Bath and North East Somerset Council,80907564,LM2,Foster Carer Allowances,P21,Childrens Services,REDACTED,01/04/2020,150
Bath and North East Somerset Council,80907564,LM2,Foster Carer Allowances,P21,Childrens Services,REDACTED,01/04/2020,250
Bath and North East Somerset Council,80907564,LM2,Foster Carer Allowances,P21,Childrens Services,REDACTED,01/04/2020,250
Bath and North East Somerset Council,80907564,LM2,Foster Carer Allowances,P21,Childrens Services,REDACTED,01/04/2020,522
Bath and North East Somerset Council,80907564,LM2,Foster Carer Allowances,P21,Childrens Services,REDACTED,01/04/2020,522
Bath and North East Somerset Council,80907699,LK4,Nursery/Childcare Vouchers,P21,Childrens Services,REDACTED (CHILDMINDER),01/04/2020,2514.41
Bath and North East Somerset Council,80907819,LK4,Nursery/Childcare Vouchers,P21,Childrens Services,REDACTED,01/04/2020,2121.6
Bath and North East Somerset Council,80907576,LM2,Foster Carer Allowances,P21,Childrens Services,REDACTED,01/04/2020,150
Bath and North East Somerset Council,80907576,LM2,Foster Carer Allowances,P21,Childrens Services,REDACTED,01/04/2020,150
Bath and North East Somerset Council,80907874,PC1,Precepts,Z99,Outside Revenue Accounts,SWAINSWICK PARISH COUNCIL,01/04/2020,1500
Bath and North East Somerset Council,80907576,LM2,Foster Carer Allowances,P21,Childrens Services,REDACTED,01/04/2020,150
Bath and North East Somerset Council,80907576,LM2,Foster Carer Allowances,P21,Childrens Services,REDACTED,01/04/2020,304
Bath and North East Somerset Council,80907576,LM2,Foster Carer Allowances,P21,Childrens Services,REDACTED,01/04/2020,304
Bath and North East Somerset Council,80907576,LM2,Foster Carer Allowances,P21,Childrens Services,REDACTED,01/04/2020,304
Bath and North East Somerset Council,80907596,LM2,Foster Carer Allowances,P21,Childrens Services,REDACTED,01/04/2020,150
Bath and North East Somerset Council,80907596,LM2,Foster Carer Allowances,P21,Childrens Services,REDACTED,01/04/2020,150
Bath and North East Somerset Council,80907596,LM2,Foster Carer Allowances,P21,Childrens Services,REDACTED,01/04/2020,342
Bath and North East Somerset Council,80907596,LM2,Foster Carer Allowances,P21,Childrens Services,REDACTED,01/04/2020,522
Bath and North East Somerset Council,80907806,LK4,Nursery/Childcare Vouchers,P21,Childrens Services,REDACTED,01/04/2020,1474.51
Bath and North East Somerset Council,80907658,LL9,Special Guardianship,P21,Childrens Services,REDACTED,01/04/2020,262.98
Bath and North East Somerset Council,80907658,LL9,Special Guardianship,P21,Childrens Services,REDACTED,01/04/2020,373.34
Bath and North East Somerset Council,80907583,LM2,Foster Carer Allowances,P21,Childrens Services,REDACTED,01/04/2020,830
Bath and North East Somerset Council,80907715,LK4,Nursery/Childcare Vouchers,P21,Childrens Services,REDACTED,01/04/2020,6836.17
Bath and North East Somerset Council,80907669,LM2,Foster Carer Allowances,P21,Childrens Services,REDACTED,01/04/2020,342
Bath and North East Somerset Council,80907669,LM2,Foster Carer Allowances,P21,Childrens Services,REDACTED,01/04/2020,430
Bath and North East Somerset Council,80907710,LK4,Nursery/Childcare Vouchers,P21,Childrens Services,REDACTED,01/04/2020,763.78
Bath and North East Somerset Council,80907823,LK4,Nursery/Childcare Vouchers,P21,Childrens Services,REDACTED,01/04/2020,3150.89
Bath and North East Somerset Council,80907723,LK4,Nursery/Childcare Vouchers,P21,Childrens Services,LITTLE BLOSSOMS NURSERY,01/04/2020,33168.77
Bath and North East Somerset Council,80907810,LK4,Nursery/Childcare Vouchers,P21,Childrens Services,LITTLE SCRIBBLERS LTD,01/04/2020,22704.38
Bath and North East Somerset Council,80907800,LK4,Nursery/Childcare Vouchers,P21,Childrens Services,REDACTED,01/04/2020,1877.62
Bath and North East Somerset Council,80907817,LK4,Nursery/Childcare Vouchers,P21,Childrens Services,REDACTED,01/04/2020,1739.71
Bath and North East Somerset Council,80907684,LK4,Nursery/Childcare Vouchers,P21,Childrens Services,REDCATED,01/04/2020,636.48
Bath and North East Somerset Council,80907612,LM2,Foster Carer Allowances,P21,Childrens Services,REDACTED,01/04/2020,150
Bath and North East Somerset Council,80907612,LM2,Foster Carer Allowances,P21,Childrens Services,REDACTED,01/04/2020,150
Bath and North East Somerset Council,80907612,LM2,Foster Carer Allowances,P21,Childrens Services,REDACTED,01/04/2020,430
Bath and North East Somerset Council,80907612,LM2,Foster Carer Allowances,P21,Childrens Services,REDACTED,01/04/2020,430
Bath and North East Somerset Council,80907861,PC1,Precepts,Z99,Outside Revenue Accounts,NORTON MALREWARD PARISH COUNC,01/04/2020,2000
Bath and North East Somerset Council,80907859,PC1,Precepts,Z99,Outside Revenue Accounts,NEMPNETT THRUBWELL PARISH COUNCIL,01/04/2020,2050
Bath and North East Somerset Council,80907588,LM2,Foster Carer Allowances,P21,Childrens Services,REDACTED,01/04/2020,150
Bath and North East Somerset Council,80907588,LM2,Foster Carer Allowances,P21,Childrens Services,REDACTED,01/04/2020,150
Bath and North East Somerset Council,80907588,LM2,Foster Carer Allowances,P21,Childrens Services,REDACTED,01/04/2020,150
Bath and North East Somerset Council,80907588,LM2,Foster Carer Allowances,P21,Childrens Services,REDACTED,01/04/2020,150
Bath and North East Somerset Council,80907588,LM2,Foster Carer Allowances,P21,Childrens Services,REDACTED,01/04/2020,150
Bath and North East Somerset Council,80907588,LM2,Foster Carer Allowances,P21,Childrens Services,REDACTED,01/04/2020,250
Bath and North East Somerset Council,80907588,LM2,Foster Carer Allowances,P21,Childrens Services,REDACTED,01/04/2020,342
Bath and North East Somerset Council,80907588,LM2,Foster Carer Allowances,P21,Childrens Services,REDACTED,01/04/2020,342
Bath and North East Somerset Council,80907588,LM2,Foster Carer Allowances,P21,Childrens Services,REDACTED,01/04/2020,430
Bath and North East Somerset Council,80907728,LK4,Nursery/Childcare Vouchers,P21,Childrens Services,MIDFORD ROAD NURSERY,01/04/2020,35274.05
Bath and North East Somerset Council,80907789,LK4,Nursery/Childcare Vouchers,P21,Childrens Services,MIDSOMER NORTON SCHOOLS PARTNERSHIP,01/04/2020,17060.93
Bath and North East Somerset Council,80907884,PC1,Precepts,Z99,Outside Revenue Accounts,CHARLCOMBE PARISH COUNCIL,01/04/2020,2300
Bath and North East Somerset Council,80907729,LK4,Nursery/Childcare Vouchers,P21,Childrens Services,REDACTED,01/04/2020,541.01
Bath and North East Somerset Council,80907741,LK4,Nursery/Childcare Vouchers,P21,Childrens Services,REDACTED,01/04/2020,530.4
Bath and North East Somerset Council,80907882,PB3,Payments to Other Establishments,P19,Resources and Deputy Leader,RADSTOCK TOWN COUNCIL,01/04/2020,2440
Bath and North East Somerset Council,80907565,LM2,Foster Carer Allowances,P21,Childrens Services,REDACTED,01/04/2020,522
Bath and North East Somerset Council,80907707,LK4,Nursery/Childcare Vouchers,P21,Childrens Services,REDACTED,01/04/2020,3055.1
Bath and North East Somerset Council,80907717,LK4,Nursery/Childcare Vouchers,P21,Childrens Services,REDACTED,01/04/2020,1272.96
Bath and North East Somerset Council,80907686,LK4,Nursery/Childcare Vouchers,P21,Childrens Services,REDACTED,01/04/2020,1623.34
Bath and North East Somerset Council,80907619,LM2,Foster Carer Allowances,P21,Childrens Services,REDACTED,01/04/2020,150
Bath and North East Somerset Council,80907619,LM2,Foster Carer Allowances,P21,Childrens Services,REDACTED,01/04/2020,250
Bath and North East Somerset Council,80907619,LM2,Foster Carer Allowances,P21,Childrens Services,REDACTED,01/04/2020,522
Bath and North East Somerset Council,80907790,LK4,Nursery/Childcare Vouchers,P21,Childrens Services,MNSP RE SHOSCOMBE PRIMARY,01/04/2020,10215.5
Bath and North East Somerset Council,80907579,LM2,Foster Carer Allowances,P21,Childrens Services,REDACTED,01/04/2020,195.75
Bath and North East Somerset Council,80907579,LL9,Special Guardianship,P21,Childrens Services,REDACTED,01/04/2020,460
Bath and North East Somerset Council,80907599,LM2,Foster Carer Allowances,P21,Childrens Services,REDACTED,01/04/2020,150
Bath and North East Somerset Council,80907599,LM2,Foster Carer Allowances,P21,Childrens Services,REDACTED,01/04/2020,250
Bath and North East Somerset Council,80907599,LM2,Foster Carer Allowances,P21,Childrens Services,REDACTED,01/04/2020,522
Bath and North East Somerset Council,80907570,LL5,Adoption Allowances,P21,Childrens Services,REDACTED,01/04/2020,304.02
Bath and North East Somerset Council,80907570,LL5,Adoption Allowances,P21,Childrens Services,REDACTED,01/04/2020,382.02
Bath and North East Somerset Council,80907709,LK4,Nursery/Childcare Vouchers,P21,Childrens Services,REDACTED,01/04/2020,1113.84
Bath and North East Somerset Council,80907674,LM2,Foster Carer Allowances,P21,Childrens Services,REDACTED,01/04/2020,117.86
Bath and North East Somerset Council,80907674,LM2,Foster Carer Allowances,P21,Childrens Services,REDACTED,01/04/2020,117.86
Bath and North East Somerset Council,80907674,LM2,Foster Carer Allowances,P21,Childrens Services,REDACTED,01/04/2020,268.71
Bath and North East Somerset Council,80907674,LM2,Foster Carer Allowances,P21,Childrens Services,REDACTED,01/04/2020,268.71
Bath and North East Somerset Council,10932734,HA3,Planned Maintenance,P24,Community Services,CHG SOUTHWEST LTD,01/04/2020,2992
Bath and North East Somerset Council,80907864,PC1,Precepts,Z99,Outside Revenue Accounts,PRISTON PARISH COUNCIL,01/04/2020,3350
Bath and North East Somerset Council,80907811,LK4,Nursery/Childcare Vouchers,P21,Childrens Services,SWAINSWICK EXPLORERS,01/04/2020,3394.56
Bath and North East Somerset Council,80907569,LL5,Adoption Allowances,P21,Childrens Services,REDACTED,01/04/2020,462.8
Bath and North East Somerset Council,80907569,LL5,Adoption Allowances,P21,Childrens Services,REDACTED,01/04/2020,462.82
Bath and North East Somerset Council,80907855,PC1,Precepts,Z99,Outside Revenue Accounts,MARKSBURY PARISH COUNCIL,01/04/2020,3437.5
Bath and North East Somerset Council,80907860,PC1,Precepts,Z99,Outside Revenue Accounts,NEWTON ST LOE PARISH COUNCIL,01/04/2020,3500
Bath and North East Somerset Council,80907720,LK4,Nursery/Childcare Vouchers,P21,Childrens Services,ANOUSKA C ABEYESEKERA,01/04/2020,3723.51
Bath and North East Somerset Council,10932723,HA3,Planned Maintenance,P24,Community Services,UNIVERSITY OF LEICESTER,01/04/2020,3740
Bath and North East Somerset Council,80907586,LM2,Foster Carer Allowances,P21,Childrens Services,REDACTED,01/04/2020,150
Bath and North East Somerset Council,80907586,LM2,Foster Carer Allowances,P21,Childrens Services,REDACTED,01/04/2020,150
Bath and North East Somerset Council,80907586,LM2,Foster Carer Allowances,P21,Childrens Services,REDACTED,01/04/2020,430
Bath and North East Somerset Council,80907586,LM2,Foster Carer Allowances,P21,Childrens Services,REDACTED,01/04/2020,430
Bath and North East Somerset Council,80907845,PC1,Precepts,Z99,Outside Revenue Accounts,ENGLISHCOMBE PARISH COUNCIL,01/04/2020,3939.5
Bath and North East Somerset Council,80907678,LM6,Nursing Care,P20,Adult Services,ST MONICAS GENERAL ACCOUNT,01/04/2020,4189.56
Bath and North East Somerset Council,80907878,PC1,Precepts,Z99,Outside Revenue Accounts,WEST HARPTREE PARISH COUNCIL,01/04/2020,4250
Bath and North East Somerset Council,80907858,PC1,Precepts,Z99,Outside Revenue Accounts,MONKTON COMBE PARISH COUNCIL,01/04/2020,4334
Bath and North East Somerset Council,80907843,PC1,Precepts,Z99,Outside Revenue Accounts,DUNKERTON & TUNLEY PARISH COUNCIL,01/04/2020,4337
Bath and North East Somerset Council,80907851,PC1,Precepts,Z99,Outside Revenue Accounts,HINTON BLEWETT PARISH COUNCIL,01/04/2020,4450
Bath and North East Somerset Council,80907839,PC1,Precepts,Z99,Outside Revenue Accounts,COMBE HAY PARISH COUNCIL,01/04/2020,4610
Bath and North East Somerset Council,80907730,LK4,Nursery/Childcare Vouchers,P21,Childrens Services,REDACTED,01/04/2020,678.91
Bath and North East Somerset Council,80907831,LK4,Nursery/Childcare Vouchers,P21,Childrens Services,REDACTED,01/04/2020,6110.21
Bath and North East Somerset Council,80907643,LM2,Foster Carer Allowances,P21,Childrens Services,REDACTED,01/04/2020,75
Bath and North East Somerset Council,80907643,LM2,Foster Carer Allowances,P21,Childrens Services,REDACTED,01/04/2020,75
Bath and North East Somerset Council,80907643,LM2,Foster Carer Allowances,P21,Childrens Services,REDACTED,01/04/2020,75
Bath and North East Somerset Council,80907842,PC1,Precepts,Z99,Outside Revenue Accounts,CORSTON PARISH COUNCIL,01/04/2020,4961.28
Bath and North East Somerset Council,80907643,LM2,Foster Carer Allowances,P21,Childrens Services,REDACTED,01/04/2020,125
Bath and North East Somerset Council,80907643,LM2,Foster Carer Allowances,P21,Childrens Services,REDACTED,01/04/2020,125
Bath and North East Somerset Council,80907643,LM2,Foster Carer Allowances,P21,Childrens Services,REDACTED,01/04/2020,125
Bath and North East Somerset Council,80907869,PC1,Precepts,Z99,Outside Revenue Accounts,SHOSCOMBE PARISH COUNCIL,01/04/2020,5261.1
Bath and North East Somerset Council,80907643,LM2,Foster Carer Allowances,P21,Childrens Services,REDACTED,01/04/2020,215
Bath and North East Somerset Council,80907643,LM2,Foster Carer Allowances,P21,Childrens Services,REDACTED,01/04/2020,215
Bath and North East Somerset Council,80907643,LM2,Foster Carer Allowances,P21,Childrens Services,REDACTED,01/04/2020,215
Bath and North East Somerset Council,80907660,LM1,Volunt Homes Placements Top/Up,P21,Childrens Services,REDACTED,01/04/2020,42.86
Bath and North East Somerset Council,80907660,LM1,Volunt Homes Placements Top/Up,P21,Childrens Services,REDACTED,01/04/2020,71.43
Bath and North East Somerset Council,80907660,LM2,Foster Carer Allowances,P21,Childrens Services,REDACTED,01/04/2020,107.14
Bath and North East Somerset Council,80907660,LM1,Volunt Homes Placements Top/Up,P21,Childrens Services,REDACTED,01/04/2020,122.86
Bath and North East Somerset Council,80907660,LM2,Foster Carer Allowances,P21,Childrens Services,REDACTED,01/04/2020,178.57
Bath and North East Somerset Council,80907660,LM2,Foster Carer Allowances,P21,Childrens Services,REDACTED,01/04/2020,307.14
Bath and North East Somerset Council,80907577,LM2,Foster Carer Allowances,P21,Childrens Services,REDACTED,01/04/2020,922
Bath and North East Somerset Council,80907574,LM2,Foster Carer Allowances,P21,Childrens Services,REDACTED,01/04/2020,391.5
Bath and North East Somerset Council,80907574,LM2,Foster Carer Allowances,P21,Childrens Services,REDACTED,01/04/2020,791
Bath and North East Somerset Council,80907574,LM2,Foster Carer Allowances,P21,Childrens Services,REDACTED,01/04/2020,791
Bath and North East Somerset Council,80907590,LM2,Foster Carer Allowances,P21,Childrens Services,REDACTED,01/04/2020,75
Bath and North East Somerset Council,80907590,LM2,Foster Carer Allowances,P21,Childrens Services,REDACTED,01/04/2020,75
Bath and North East Somerset Council,80907590,LM2,Foster Carer Allowances,P21,Childrens Services,REDACTED,01/04/2020,152
Bath and North East Somerset Council,80907590,LM2,Foster Carer Allowances,P21,Childrens Services,REDACTED,01/04/2020,152
Bath and North East Somerset Council,80907590,LL6,Needs & Services,P21,Childrens Services,REDACTED,01/04/2020,162.5
Bath and North East Somerset Council,80907580,LM2,Foster Carer Allowances,P21,Childrens Services,REDACTED,01/04/2020,150
Bath and North East Somerset Council,80907840,PC1,Precepts,Z99,Outside Revenue Accounts,COMPTON DANDO PARISH COUNCIL,01/04/2020,6320.5
Bath and North East Somerset Council,80907580,LM2,Foster Carer Allowances,P21,Childrens Services,REDACTED,01/04/2020,430
Bath and North East Somerset Council,80907848,PC1,Precepts,Z99,Outside Revenue Accounts,FARRINGTON GURNEY PARISH COUNCIL,01/04/2020,6350
Bath and North East Somerset Council,80907870,PC1,Precepts,Z99,Outside Revenue Accounts,SOUTHSTOKE PARISH COUNCIL,01/04/2020,6429
Bath and North East Somerset Council,80907685,LK4,Nursery/Childcare Vouchers,P21,Childrens Services,LAUREL FARM KINDERGARTEN,01/04/2020,6916.42
Bath and North East Somerset Council,80907876,PC1,Precepts,Z99,Outside Revenue Accounts,UBLEY PARISH COUNCIL,01/04/2020,6930
Bath and North East Somerset Council,80907623,LM2,Foster Carer Allowances,P21,Childrens Services,REDACTED,01/04/2020,150
Bath and North East Somerset Council,80907623,LM2,Foster Carer Allowances,P21,Childrens Services,REDACTED,01/04/2020,150
Bath and North East Somerset Council,80907623,LM2,Foster Carer Allowances,P21,Childrens Services,REDACTED,01/04/2020,342
Bath and North East Somerset Council,80907623,LM2,Foster Carer Allowances,P21,Childrens Services,REDACTED,01/04/2020,391.5
Bath and North East Somerset Council,80907623,LM2,Foster Carer Allowances,P21,Childrens Services,REDACTED,01/04/2020,430
Bath and North East Somerset Council,80907732,LK4,Nursery/Childcare Vouchers,P21,Childrens Services,REDACTED,01/04/2020,2864.16
Bath and North East Somerset Council,80907716,LK4,Nursery/Childcare Vouchers,P21,Childrens Services,REDACTED,01/04/2020,1018.37
Bath and North East Somerset Council,80907585,LM2,Foster Carer Allowances,P21,Childrens Services,REDACTED,01/04/2020,922
Bath and North East Somerset Council,80907865,PC1,Precepts,Z99,Outside Revenue Accounts,PUBLOW WITH PENSFORD PARISH COUNCIL,01/04/2020,7888.5
Bath and North East Somerset Council,80907877,PC1,Precepts,Z99,Outside Revenue Accounts,WELLOW PARISH COUNCIL,01/04/2020,8018.67
Bath and North East Somerset Council,80907711,LK4,Nursery/Childcare Vouchers,P21,Childrens Services,REDACTED,01/04/2020,848.64
Bath and North East Somerset Council,80907750,LK4,Nursery/Childcare Vouchers,P21,Childrens Services,LITTLE FIDGETS PLAYGROUP,01/04/2020,8241.6
Bath and North East Somerset Council,80907742,LK4,Nursery/Childcare Vouchers,P21,Childrens Services,REDACTED,01/04/2020,636.48
Bath and North East Somerset Council,80907647,LM2,Foster Carer Allowances,P21,Childrens Services,REDACTED,01/04/2020,304
Bath and North East Somerset Council,80907647,LM2,Foster Carer Allowances,P21,Childrens Services,REDACTED,01/04/2020,304
Bath and North East Somerset Council,80907706,LK4,Nursery/Childcare Vouchers,P21,Childrens Services,REDACTED,01/04/2020,3818.88
Bath and North East Somerset Council,80907635,LM2,Foster Carer Allowances,P21,Childrens Services,REDACTED,01/04/2020,150
Bath and North East Somerset Council,80907635,LM2,Foster Carer Allowances,P21,Childrens Services,REDACTED,01/04/2020,250
Bath and North East Somerset Council,80907635,LM2,Foster Carer Allowances,P21,Childrens Services,REDACTED,01/04/2020,430
Bath and North East Somerset Council,80907635,LM2,Foster Carer Allowances,P21,Childrens Services,REDACTED,01/04/2020,430
Bath and North East Somerset Council,80907759,LK4,Nursery/Childcare Vouchers,P21,Childrens Services,ACORN PRE-SCHOOL,01/04/2020,8946.62
Bath and North East Somerset Council,80907841,PC1,Precepts,Z99,Outside Revenue Accounts,COMPTON MARTIN PARISH COUNCIL,01/04/2020,9000
Bath and North East Somerset Council,80907872,PC1,Precepts,Z99,Outside Revenue Accounts,STANTON DREW PARISH COUNCIL,01/04/2020,9012.5
Bath and North East Somerset Council,80907883,PC1,Precepts,Z99,Outside Revenue Accounts,CAMERTON PARISH COUNCIL,01/04/2020,9205
Bath and North East Somerset Council,80907813,LK4,Nursery/Childcare Vouchers,P21,Childrens Services,REDACTED,01/04/2020,2054.98
Bath and North East Somerset Council,80907792,LK4,Nursery/Childcare Vouchers,P21,Childrens Services,BATHAMPTON PLAYGROUP,01/04/2020,9540.67
Bath and North East Somerset Council,80907627,LM2,Foster Carer Allowances,P21,Childrens Services,REDACTED,01/04/2020,203.57
Bath and North East Somerset Council,80907627,LM2,Foster Carer Allowances,P21,Childrens Services,REDACTED,01/04/2020,412.57
Bath and North East Somerset Council,80907836,PC1,Precepts,Z99,Outside Revenue Accounts,CHEW STOKE PARISH COUNCIL,01/04/2020,10000
Bath and North East Somerset Council,80907606,LL9,Special Guardianship,P21,Childrens Services,REDACTED,01/04/2020,307.6
Bath and North East Somerset Council,80907606,LL9,Special Guardianship,P21,Childrens Services,REDACTED,01/04/2020,307.6
Bath and North East Somerset Council,80907655,LM2,Foster Carer Allowances,P21,Childrens Services,REDACTED,01/04/2020,845.46
Bath and North East Somerset Council,80907655,LM2,Foster Carer Allowances,P21,Childrens Services,REDACTED,01/04/2020,845.46
Bath and North East Somerset Council,80907700,LK4,Nursery/Childcare Vouchers,P21,Childrens Services,REDACTED,01/04/2020,15466.46
Bath and North East Somerset Council,80907654,KE3,Transport & Travel,P21,Childrens Services,REDACTED,01/04/2020,109.8
Bath and North East Somerset Council,80907654,LM2,Foster Carer Allowances,P21,Childrens Services,REDACTED,01/04/2020,128.57
Bath and North East Somerset Council,80907654,LT2,Hospitality,P21,Childrens Services,REDACTED,01/04/2020,160
Bath and North East Somerset Council,80907654,LM2,Foster Carer Allowances,P21,Childrens Services,REDACTED,01/04/2020,293.14
Bath and North East Somerset Council,80907600,LM4,Respite Care,P21,Childrens Services,REDACTED,01/04/2020,42.86
Bath and North East Somerset Council,80907600,LM4,Respite Care,P21,Childrens Services,REDACTED,01/04/2020,71.43
Bath and North East Somerset Council,80907600,LM4,Respite Care,P21,Childrens Services,REDACTED,01/04/2020,122.86
Bath and North East Somerset Council,80907600,LM2,Foster Carer Allowances,P21,Childrens Services,REDACTED,01/04/2020,150
Bath and North East Somerset Council,80907600,LM2,Foster Carer Allowances,P21,Childrens Services,REDACTED,01/04/2020,250
Bath and North East Somerset Council,80907600,LM2,Foster Carer Allowances,P21,Childrens Services,REDACTED,01/04/2020,522
Bath and North East Somerset Council,80907600,LM2,Foster Carer Allowances,P21,Childrens Services,REDACTED,01/04/2020,922
Bath and North East Somerset Council,80907796,LK4,Nursery/Childcare Vouchers,P21,Childrens Services,REDACTED,01/04/2020,1219.92
Bath and North East Somerset Council,80907704,LK4,Nursery/Childcare Vouchers,P21,Childrens Services,REDACTED,01/04/2020,661.94
Bath and North East Somerset Council,80907682,LK4,Nursery/Childcare Vouchers,P21,Childrens Services,MULBERRY KIDZ,01/04/2020,23282.11
Bath and North East Somerset Council,80907708,LK4,Nursery/Childcare Vouchers,P21,Childrens Services,ORCHARD LEA NURSERY LTD [KEYNSHAM],01/04/2020,97498.94
Bath and North East Somerset Council,80907584,KE3,Transport & Travel,P21,Childrens Services,REDACTED,01/04/2020,73.6
Bath and North East Somerset Council,80907584,LM2,Foster Carer Allowances,P21,Childrens Services,REDACTED,01/04/2020,150
Bath and North East Somerset Council,80907584,LM2,Foster Carer Allowances,P21,Childrens Services,REDACTED,01/04/2020,150
Bath and North East Somerset Council,80907584,LM2,Foster Carer Allowances,P21,Childrens Services,REDACTED,01/04/2020,430
Bath and North East Somerset Council,80907584,LM2,Foster Carer Allowances,P21,Childrens Services,REDACTED,01/04/2020,430
Bath and North East Somerset Council,80907743,LK4,Nursery/Childcare Vouchers,P21,Childrens Services,REDACTED,01/04/2020,1039.58
Bath and North East Somerset Council,80907807,LK4,Nursery/Childcare Vouchers,P21,Childrens Services,REDACTED,01/04/2020,2578.68
Bath and North East Somerset Council,80907821,LK4,Nursery/Childcare Vouchers,P21,Childrens Services,REDACTED,01/04/2020,2800.51
Bath and North East Somerset Council,80907562,LM2,Foster Carer Allowances,P21,Childrens Services,REDACTED,01/04/2020,150
Bath and North East Somerset Council,80907562,LM2,Foster Carer Allowances,P21,Childrens Services,REDACTED,01/04/2020,150
Bath and North East Somerset Council,80907562,LM2,Foster Carer Allowances,P21,Childrens Services,REDACTED,01/04/2020,304
Bath and North East Somerset Council,80907722,LK4,Nursery/Childcare Vouchers,P21,Childrens Services,RIVERSIDE NURSERY BATH LTD,01/04/2020,22374.72
Bath and North East Somerset Council,80907797,LK4,Nursery/Childcare Vouchers,P21,Childrens Services,REDACTED,01/04/2020,3277.87
Bath and North East Somerset Council,80907610,LM2,Foster Carer Allowances,P21,Childrens Services,REDACTED,01/04/2020,150
Bath and North East Somerset Council,80907610,LM2,Foster Carer Allowances,P21,Childrens Services,REDACTED,01/04/2020,150
Bath and North East Somerset Council,80907610,LM2,Foster Carer Allowances,P21,Childrens Services,REDACTED,01/04/2020,430
Bath and North East Somerset Council,80907610,LM2,Foster Carer Allowances,P21,Childrens Services,REDACTED,01/04/2020,430
Bath and North East Somerset Council,80907617,LM2,Foster Carer Allowances,P21,Childrens Services,REDACTED,01/04/2020,150
Bath and North East Somerset Council,80907617,LM2,Foster Carer Allowances,P21,Childrens Services,REDACTED,01/04/2020,150
Bath and North East Somerset Council,80907617,LM2,Foster Carer Allowances,P21,Childrens Services,REDACTED,01/04/2020,150
Bath and North East Somerset Council,80907617,LM2,Foster Carer Allowances,P21,Childrens Services,REDACTED,01/04/2020,250
Bath and North East Somerset Council,80907617,LM2,Foster Carer Allowances,P21,Childrens Services,REDACTED,01/04/2020,342
Bath and North East Somerset Council,80907617,LM2,Foster Carer Allowances,P21,Childrens Services,REDACTED,01/04/2020,430
Bath and North East Somerset Council,80907695,LK4,Nursery/Childcare Vouchers,P21,Childrens Services,SNAPDRAGONS NURSERIES (KEYNHSAM) LTD,01/04/2020,93245.95
Bath and North East Somerset Council,80907721,LK4,Nursery/Childcare Vouchers,P21,Childrens Services,SOMERDALE EDUCATE TOGETHER PRIMARY ACADEMY,01/04/2020,28514.3
Bath and North East Somerset Council,80907733,LK4,Nursery/Childcare Vouchers,P21,Childrens Services,REDACTED,01/04/2020,5015.46
Bath and North East Somerset Council,80907788,LK4,Nursery/Childcare Vouchers,P21,Childrens Services,ST MARYS C OF E PRIMARY SCHOOL,01/04/2020,19704.77
Bath and North East Somerset Council,80907766,LK4,Nursery/Childcare Vouchers,P21,Childrens Services,ST NICHOLAS PRE-SCHOOL,01/04/2020,29007.17
Bath and North East Somerset Council,80907705,LK4,Nursery/Childcare Vouchers,P21,Childrens Services,REDACTED,01/04/2020,1527.55
Bath and North East Somerset Council,80907830,LK4,Nursery/Childcare Vouchers,P21,Childrens Services,REDACTED,01/04/2020,1374.8
Bath and North East Somerset Council,80907847,PC1,Precepts,Z99,Outside Revenue Accounts,FARMBOROUGH PARISH COUNCIL,01/04/2020,10500
Bath and North East Somerset Council,80907755,LK4,Nursery/Childcare Vouchers,P21,Childrens Services,OAK TREE DAY NURSERY,01/04/2020,11296.7
Bath and North East Somerset Council,80907784,LK4,Nursery/Childcare Vouchers,P21,Childrens Services,YMCA DAY NURSERY,01/04/2020,11391.36
Bath and North East Somerset Council,80907846,PC1,Precepts,Z99,Outside Revenue Accounts,BATHAMPTON PARISH COUNCIL,01/04/2020,11500
Bath and North East Somerset Council,80907873,PC1,Precepts,Z99,Outside Revenue Accounts,STOWEY SUTTON PARISH COUNCIL,01/04/2020,11812.5
Bath and North East Somerset Council,80907781,LK4,Nursery/Childcare Vouchers,P21,Childrens Services,BATH AREA PLAY PROJECT,01/04/2020,12096.38
Bath and North East Somerset Council,80907726,LK4,Nursery/Childcare Vouchers,P21,Childrens Services,HIDDEN VALLEY BUSHCRAFT LTD,01/04/2020,12236.74
Bath and North East Somerset Council,80907749,LK4,Nursery/Childcare Vouchers,P21,Childrens Services,KINGSWOOD PRE SCHOOL,01/04/2020,12905.86
Bath and North East Somerset Council,80907768,LK4,Nursery/Childcare Vouchers,P21,Childrens Services,STANTON DREW & PENSFORD PRESCH,01/04/2020,12918.91
Bath and North East Somerset Council,80907772,LK4,Nursery/Childcare Vouchers,P21,Childrens Services,THE PARAGON SCHOOL,01/04/2020,13232.26
Bath and North East Somerset Council,80907751,LK4,Nursery/Childcare Vouchers,P21,Childrens Services,MAGIC BOX PRE-SCHOOL,01/04/2020,13366.08
Bath and North East Somerset Council,80907793,LK4,Nursery/Childcare Vouchers,P21,Childrens Services,OLDFIELD PARK BAPTIST PRE-SCHOOL,01/04/2020,13503.17
Bath and North East Somerset Council,80907879,PC1,Precepts,Z99,Outside Revenue Accounts,TEMPLE CLOUD WITH CAMELEY PARISH COUNCIL,01/04/2020,13570
Bath and North East Somerset Council,80907761,LK4,Nursery/Childcare Vouchers,P21,Childrens Services,ROYAL HIGH SCHOOL,01/04/2020,14002.56
Bath and North East Somerset Council,80907794,LK4,Nursery/Childcare Vouchers,P21,Childrens Services,STEPPING STONES PLAYGROUP,01/04/2020,14169.02
Bath and North East Somerset Council,80907774,LK4,Nursery/Childcare Vouchers,P21,Childrens Services,TIMSBURY PRE-SCHOOL,01/04/2020,14198.4
Bath and North East Somerset Council,80907701,LK4,Nursery/Childcare Vouchers,P21,Childrens Services,GREEN SHOOTS (BATH) LTD,01/04/2020,15030.72
Bath and North East Somerset Council,80907827,LK4,Nursery/Childcare Vouchers,P21,Childrens Services,FRESHFORD PRE-SCHOOL,01/04/2020,15614.98
Bath and North East Somerset Council,80907849,PC1,Precepts,Z99,Outside Revenue Accounts,FRESHFORD PARISH COUNCIL,01/04/2020,15873
Bath and North East Somerset Council,80907680,LK4,Nursery/Childcare Vouchers,P21,Childrens Services,BATH & MENDIP P'SHIP TRUST RE CAMELEY PRIMARY,01/04/2020,16656.19
Bath and North East Somerset Council,80907713,LK4,Nursery/Childcare Vouchers,P21,Childrens Services,FARMBOROUGH PLAYGROUP,01/04/2020,17237.18
Bath and North East Somerset Council,80907886,PC1,Precepts,Z99,Outside Revenue Accounts,CHEW MAGNA PARISH COUNCIL,01/04/2020,17250
Bath and North East Somerset Council,80907867,PC1,Precepts,Z99,Outside Revenue Accounts,SALTFORD PARISH COUNCIL,01/04/2020,17419
Bath and North East Somerset Council,80907765,LK4,Nursery/Childcare Vouchers,P21,Childrens Services,ST NICHOLAS PRESCHOOL,01/04/2020,17850.82
Bath and North East Somerset Council,80907691,LK4,Nursery/Childcare Vouchers,P21,Childrens Services,CLUTTON PLAYGROUP,01/04/2020,18056.45
Bath and North East Somerset Council,80907698,LK4,Nursery/Childcare Vouchers,P21,Childrens Services,TIMSBURY CHILDCARE,01/04/2020,18059.71
Bath and North East Somerset Council,80907780,LK4,Nursery/Childcare Vouchers,P21,Childrens Services,BATH & WELLS DIOCESAN ACADEMIES TRUST ST ANDREWS PRI,01/04/2020,18242.5
Bath and North East Somerset Council,80907881,PC1,Precepts,Z99,Outside Revenue Accounts,WHITCHURCH PARISH COUNCIL,01/04/2020,18500
Bath and North East Somerset Council,80907687,LK4,Nursery/Childcare Vouchers,P21,Childrens Services,MIDSOMER NORTON SCHOOLS PARTNERSHIP,01/04/2020,19195.58
Bath and North East Somerset Council,80907782,LK4,Nursery/Childcare Vouchers,P21,Childrens Services,ALICE PARK NURSERY,01/04/2020,19362.09
Bath and North East Somerset Council,80907803,LK4,Nursery/Childcare Vouchers,P21,Childrens Services,BISHOP SUTTON PRE-SCHOOL AND FOREST CLUB,01/04/2020,19463.23
Bath and North East Somerset Council,80907757,LK4,Nursery/Childcare Vouchers,P21,Childrens Services,PEPPERPOT BATHFORD PRE-SCHOOL,01/04/2020,21085.44
Bath and North East Somerset Council,80907758,LK4,Nursery/Childcare Vouchers,P21,Childrens Services,PETER PAN PLAYGROUP,01/04/2020,21199.68
Bath and North East Somerset Council,80907771,LK4,Nursery/Childcare Vouchers,P21,Childrens Services,SUNSHINE PRE SCHOOL,01/04/2020,21294.34
Bath and North East Somerset Council,80907776,LK4,Nursery/Childcare Vouchers,P21,Childrens Services,BUMBLES DAYCARE T/A WELTON SCHOOL PLAY,01/04/2020,22270.27
Bath and North East Somerset Council,80907814,LK4,Nursery/Childcare Vouchers,P21,Childrens Services,HIGH LITTLETON PRE SCHOOL,01/04/2020,22355.14
Bath and North East Somerset Council,80907760,LK4,Nursery/Childcare Vouchers,P21,Childrens Services,QUEENS ROAD CHURCH PRE SCHOOL,01/04/2020,24871.68
Bath and North East Somerset Council,80907838,PC1,Precepts,Z99,Outside Revenue Accounts,CLUTTON PARISH COUNCIL,01/04/2020,24954
Bath and North East Somerset Council,80907816,LK4,Nursery/Childcare Vouchers,P21,Childrens Services,REDACTED,01/04/2020,1973.09
Bath and North East Somerset Council,80907738,LK4,Nursery/Childcare Vouchers,P21,Childrens Services,REDACTED,01/04/2020,2132.52
Bath and North East Somerset Council,80907731,LK4,Nursery/Childcare Vouchers,P21,Childrens Services,THE NURSERY AT NEW MANOR,01/04/2020,17694.14
Bath and North East Somerset Council,80907822,LK4,Nursery/Childcare Vouchers,P21,Childrens Services,REDACTED,01/04/2020,572.83
Bath and North East Somerset Council,80907857,PC1,Precepts,Z99,Outside Revenue Accounts,BATHEASTON PARISH COUNCIL,01/04/2020,25200
Bath and North East Somerset Council,80907754,LK4,Nursery/Childcare Vouchers,P21,Childrens Services,NOAHS ARK PRE-SCHOOL,01/04/2020,25325.38
Bath and North East Somerset Council,80907746,LK4,Nursery/Childcare Vouchers,P21,Childrens Services,KING EDWARDS PRE PREP SCHOOL,01/04/2020,25416.77
Bath and North East Somerset Council,80907777,LK4,Nursery/Childcare Vouchers,P21,Childrens Services,WESTWOOD NURSERY SCHOOL,01/04/2020,25597.42
Bath and North East Somerset Council,80907747,LK4,Nursery/Childcare Vouchers,P21,Childrens Services,KINGSWOOD PRE SCHOOL,01/04/2020,25811.71
Bath and North East Somerset Council,80907778,LK4,Nursery/Childcare Vouchers,P21,Childrens Services,WIDCOMBE ACORNS PRE-SCHOOL,01/04/2020,26222.98
Bath and North East Somerset Council,80907753,LK4,Nursery/Childcare Vouchers,P21,Childrens Services,MONKTON COMBE PRE-PREPATORY SCHOOL,01/04/2020,27394.75
Bath and North East Somerset Council,80907825,LK4,Nursery/Childcare Vouchers,P21,Childrens Services,"BROADLANDS ACADEMY, ACADEMIES ENTERPRISE TRUST",01/04/2020,28041.02
Bath and North East Somerset Council,80907835,LK4,Nursery/Childcare Vouchers,P21,Childrens Services,BATH & MENDIP P'SHIP TRUST RE CASTLE PRIMARY SCHOOL,01/04/2020,28723.2
Bath and North East Somerset Council,80907785,LK4,Nursery/Childcare Vouchers,P21,Childrens Services,NOAH'S ARK PRE-SCHOOL,01/04/2020,29258.5
Bath and North East Somerset Council,80907767,LK4,Nursery/Childcare Vouchers,P21,Childrens Services,TEDDY BEAR NURSERY,01/04/2020,29846.02
Bath and North East Somerset Council,80907829,LK4,Nursery/Childcare Vouchers,P21,Childrens Services,ST KEYNA PRIMARY SCHOOL,01/04/2020,30169.15
Bath and North East Somerset Council,80907826,LK4,Nursery/Childcare Vouchers,P21,Childrens Services,LITTLE STAR NURSERY,01/04/2020,30397.63
Bath and North East Somerset Council,80907718,LK4,Nursery/Childcare Vouchers,P21,Childrens Services,A M PARFITT,01/04/2020,32150.4
Bath and North East Somerset Council,80907791,LK4,Nursery/Childcare Vouchers,P21,Childrens Services,MAGNA MINORS DAY NURSERY,01/04/2020,32568.19
Bath and North East Somerset Council,80907770,LK4,Nursery/Childcare Vouchers,P21,Childrens Services,MIDSOMER NORTON SCHOOLS PARTNERSHIP,01/04/2020,33766.08
Bath and North East Somerset Council,80907875,PC1,Precepts,Z99,Outside Revenue Accounts,TIMSBURY PARISH COUNCIL,01/04/2020,34500
Bath and North East Somerset Council,80907786,LK4,Nursery/Childcare Vouchers,P21,Childrens Services,BATH & MENDIP P'SHIP TRUST RE ROUNDHILL PRIMARY,01/04/2020,36553.54
Bath and North East Somerset Council,80907762,LK4,Nursery/Childcare Vouchers,P21,Childrens Services,LEARNING TREE DAY NURSERY,01/04/2020,37695.94
Bath and North East Somerset Council,80907702,LK4,Nursery/Childcare Vouchers,P21,Childrens Services,EAST HARPTREE PRE-SCHOOL,01/04/2020,38306.3
Bath and North East Somerset Council,80907752,LK4,Nursery/Childcare Vouchers,P21,Childrens Services,MIDSOMER NORTON SCHOOLS PARTNERSHIP,01/04/2020,42748.61
Bath and North East Somerset Council,80907745,LK4,Nursery/Childcare Vouchers,P21,Childrens Services,HOPSCOTCH NURSERY SCHOOL,01/04/2020,43688.64
Bath and North East Somerset Council,80907725,LK4,Nursery/Childcare Vouchers,P21,Childrens Services,MAMA BEAR'S DAY NURSERY,01/04/2020,43802.93
Bath and North East Somerset Council,80907683,LK4,Nursery/Childcare Vouchers,P21,Childrens Services,LITTLE WILLOW DAY NURSERY,01/04/2020,44494.85
Bath and North East Somerset Council,80907775,LK4,Nursery/Childcare Vouchers,P21,Childrens Services,TWERTON INFANT SCHOOL,01/04/2020,50259.07
Bath and North East Somerset Council,80907769,LK4,Nursery/Childcare Vouchers,P21,Childrens Services,SUNFLOWERS NURSERY LTD,01/04/2020,50275.39
Bath and North East Somerset Council,80907763,LK4,Nursery/Childcare Vouchers,P21,Childrens Services,SNAPDRAGONS NURSERY,01/04/2020,51571.2
Bath and North East Somerset Council,80907756,LK4,Nursery/Childcare Vouchers,P21,Childrens Services,MIDSOMER NORTON SCHOOLS PARTNERSHIP,01/04/2020,52060.8
Bath and North East Somerset Council,80907764,LK4,Nursery/Childcare Vouchers,P21,Childrens Services,ST JOHNS C OF E PRIMARY SCHOOL,01/04/2020,55122.43
Bath and North East Somerset Council,80907773,LK4,Nursery/Childcare Vouchers,P21,Childrens Services,TIDDLERS DAY NURSERY LTD,01/04/2020,65586.82
Bath and North East Somerset Council,80907804,LK4,Nursery/Childcare Vouchers,P21,Childrens Services,REDACTED,01/04/2020,3808.27
Bath and North East Somerset Council,80907828,LK4,Nursery/Childcare Vouchers,P21,Childrens Services,COMBE DOWN NURSERY,01/04/2020,78610.18
Bath and North East Somerset Council,80907880,PC1,Precepts,Z99,Outside Revenue Accounts,WESTFIELD PARISH COUNCIL,01/04/2020,103550
Bath and North East Somerset Council,80907862,PC1,Precepts,Z99,Outside Revenue Accounts,PAULTON PARISH COUNCIL,01/04/2020,123316
Bath and North East Somerset Council,80907863,PC1,Precepts,Z99,Outside Revenue Accounts,PEASEDOWN ST JOHN PARISH COUNCIL,01/04/2020,125726
Bath and North East Somerset Council,80907795,LK4,Nursery/Childcare Vouchers,P21,Childrens Services,SNAPDRAGONS NURSERY,01/04/2020,126581.18
Bath and North East Somerset Council,80907866,PC1,Precepts,Z99,Outside Revenue Accounts,RADSTOCK TOWN COUNCIL,01/04/2020,132647
Bath and North East Somerset Council,80907692,LK4,Nursery/Childcare Vouchers,P21,Childrens Services,FREE RANGERS FOREST SCHOOLS LTD,01/04/2020,135110.02
Bath and North East Somerset Council,80907856,PC1,Precepts,Z99,Outside Revenue Accounts,MIDSOMER NORTON TOWN COUNCIL,01/04/2020,194078
Bath and North East Somerset Council,80907854,PC1,Precepts,Z99,Outside Revenue Accounts,KEYNSHAM TOWN COUNCIL,01/04/2020,303889
Bath and North East Somerset Council,80908946,LM8,Home Care,P20,Adult Services,CARE SOUTH,02/04/2020,71.88
Bath and North East Somerset Council,80908946,LM8,Home Care,P20,Adult Services,CARE SOUTH,02/04/2020,71.88
Bath and North East Somerset Council,10932870,LJ4,Contracts,P25,Transport Services,EUROTAXIS (BRISTOL) LTD,02/04/2020,84
Bath and North East Somerset Council,80908957,LM6,Nursing Care,P20,Adult Services,ST MONICAS GENERAL ACCOUNT,02/04/2020,104.67
Bath and North East Somerset Council,80908946,LM8,Home Care,P20,Adult Services,CARE SOUTH,02/04/2020,119.8
Bath and North East Somerset Council,80908946,LM8,Home Care,P20,Adult Services,CARE SOUTH,02/04/2020,119.8
Bath and North East Somerset Council,80908946,LM8,Home Care,P20,Adult Services,CARE SOUTH,02/04/2020,119.8
Bath and North East Somerset Council,80908932,LM8,Home Care,P20,Adult Services,I & S DUTTON LTD T/A CAREWATCH,02/04/2020,143.76
Bath and North East Somerset Council,10932806,LW9,Other Expenses,P21,Childrens Services,B&NES COUNCIL -  OFFICE SERVICES,02/04/2020,2889.05
Bath and North East Somerset Council,10932849,LV1,Grants to Voluntary Bodies,P21,Childrens Services,BA1 RADIO,02/04/2020,1925.3
Bath and North East Somerset Council,80908946,LM8,Home Care,P20,Adult Services,CARE SOUTH,02/04/2020,179.7
Bath and North East Somerset Council,80908946,LM8,Home Care,P20,Adult Services,CARE SOUTH,02/04/2020,227.62
Bath and North East Somerset Council,80908946,LM8,Home Care,P20,Adult Services,CARE SOUTH,02/04/2020,239.6
Bath and North East Somerset Council,80908946,LM8,Home Care,P20,Adult Services,CARE SOUTH,02/04/2020,239.6
Bath and North East Somerset Council,80908946,LM8,Home Care,P20,Adult Services,CARE SOUTH,02/04/2020,239.6
Bath and North East Somerset Council,80908946,LM8,Home Care,P20,Adult Services,CARE SOUTH,02/04/2020,239.6
Bath and North East Somerset Council,80908946,LM8,Home Care,P20,Adult Services,CARE SOUTH,02/04/2020,275.54
Bath and North East Somerset Council,80908946,LM8,Home Care,P20,Adult Services,CARE SOUTH,02/04/2020,287.52
Bath and North East Somerset Council,80908946,LM8,Home Care,P20,Adult Services,CARE SOUTH,02/04/2020,287.52
Bath and North East Somerset Council,80908946,LM8,Home Care,P20,Adult Services,CARE SOUTH,02/04/2020,287.52
Bath and North East Somerset Council,80908957,LM6,Nursing Care,P20,Adult Services,ST MONICAS GENERAL ACCOUNT,02/04/2020,314.01
Bath and North East Somerset Council,80908946,LM8,Home Care,P20,Adult Services,CARE SOUTH,02/04/2020,323.46
Bath and North East Somerset Council,10932871,LJ4,Contracts,P25,Transport Services,V CARS,02/04/2020,325
Bath and North East Somerset Council,10932872,LA2,Training Materials,P19,Resources and Deputy Leader,Bath and North East Somerset Third Sector Group CIO,02/04/2020,2000
Bath and North East Somerset Council,80908954,LL3,Supported Living,P20,Adult Services,BRADBURY OUTREACH SERVICES,02/04/2020,240
Bath and North East Somerset Council,80908954,LL3,Supported Living,P20,Adult Services,BRADBURY OUTREACH SERVICES,02/04/2020,319.48
Bath and North East Somerset Council,80908954,LL3,Supported Living,P20,Adult Services,BRADBURY OUTREACH SERVICES,02/04/2020,365.12
Bath and North East Somerset Council,80908954,LL3,Supported Living,P20,Adult Services,BRADBURY OUTREACH SERVICES,02/04/2020,378
Bath and North East Somerset Council,80908954,LL3,Supported Living,P20,Adult Services,BRADBURY OUTREACH SERVICES,02/04/2020,730.24
Bath and North East Somerset Council,80908954,LL3,Supported Living,P20,Adult Services,BRADBURY OUTREACH SERVICES,02/04/2020,730.24
Bath and North East Somerset Council,80908954,LL3,Supported Living,P20,Adult Services,BRADBURY OUTREACH SERVICES,02/04/2020,1000
Bath and North East Somerset Council,80908954,LL3,Supported Living,P20,Adult Services,BRADBURY OUTREACH SERVICES,02/04/2020,1232
Bath and North East Somerset Council,80908954,LL3,Supported Living,P20,Adult Services,BRADBURY OUTREACH SERVICES,02/04/2020,1232.28
Bath and North East Somerset Council,80908954,LL3,Supported Living,P20,Adult Services,BRADBURY OUTREACH SERVICES,02/04/2020,1584
Bath and North East Somerset Council,80908954,LL3,Supported Living,P20,Adult Services,BRADBURY OUTREACH SERVICES,02/04/2020,2920.26
Bath and North East Somerset Council,80908954,LL3,Supported Living,P20,Adult Services,BRADBURY OUTREACH SERVICES,02/04/2020,3120
Bath and North East Somerset Council,80908954,LL3,Supported Living,P20,Adult Services,BRADBURY OUTREACH SERVICES,02/04/2020,3845.52
Bath and North East Somerset Council,80908948,LM8,Home Care,P20,Adult Services,BUTTERFLY HOME HELP,02/04/2020,169.68
Bath and North East Somerset Council,80908948,LM8,Home Care,P20,Adult Services,BUTTERFLY HOME HELP,02/04/2020,225
Bath and North East Somerset Council,80908948,LM8,Home Care,P20,Adult Services,BUTTERFLY HOME HELP,02/04/2020,314.26
Bath and North East Somerset Council,80908948,LM8,Home Care,P20,Adult Services,BUTTERFLY HOME HELP,02/04/2020,426.88
Bath and North East Somerset Council,80908948,LM8,Home Care,P20,Adult Services,BUTTERFLY HOME HELP,02/04/2020,426.88
Bath and North East Somerset Council,80908948,LM8,Home Care,P20,Adult Services,BUTTERFLY HOME HELP,02/04/2020,443.22
Bath and North East Somerset Council,80908948,LM8,Home Care,P20,Adult Services,BUTTERFLY HOME HELP,02/04/2020,484.64
Bath and North East Somerset Council,80908948,LM8,Home Care,P20,Adult Services,BUTTERFLY HOME HELP,02/04/2020,606.04
Bath and North East Somerset Council,80908948,LM8,Home Care,P20,Adult Services,BUTTERFLY HOME HELP,02/04/2020,850.12
Bath and North East Somerset Council,80908948,LM8,Home Care,P20,Adult Services,BUTTERFLY HOME HELP,02/04/2020,925.28
Bath and North East Somerset Council,80908948,LM8,Home Care,P20,Adult Services,BUTTERFLY HOME HELP,02/04/2020,1264.78
Bath and North East Somerset Council,80908948,LM8,Home Care,P20,Adult Services,BUTTERFLY HOME HELP,02/04/2020,1280.18
Bath and North East Somerset Council,80908948,LM8,Home Care,P20,Adult Services,BUTTERFLY HOME HELP,02/04/2020,1293.02
Bath and North East Somerset Council,80908948,LM8,Home Care,P20,Adult Services,BUTTERFLY HOME HELP,02/04/2020,1530
Bath and North East Somerset Council,80908948,LM8,Home Care,P20,Adult Services,BUTTERFLY HOME HELP,02/04/2020,1782.48
Bath and North East Somerset Council,80908948,LM8,Home Care,P20,Adult Services,BUTTERFLY HOME HELP,02/04/2020,1804.6
Bath and North East Somerset Council,80908948,LM8,Home Care,P20,Adult Services,BUTTERFLY HOME HELP,02/04/2020,4159.4
Bath and North East Somerset Council,80908944,LM9,Day Care,P20,Adult Services,CARE FUTURES,02/04/2020,1442.76
Bath and North East Somerset Council,80908946,LM8,Home Care,P20,Adult Services,CARE SOUTH,02/04/2020,359.4
Bath and North East Somerset Council,80908946,LM8,Home Care,P20,Adult Services,CARE SOUTH,02/04/2020,359.4
Bath and North East Somerset Council,80908946,LM8,Home Care,P20,Adult Services,CARE SOUTH,02/04/2020,395.34
Bath and North East Somerset Council,80908946,LM8,Home Care,P20,Adult Services,CARE SOUTH,02/04/2020,407.32
Bath and North East Somerset Council,80908946,LM8,Home Care,P20,Adult Services,CARE SOUTH,02/04/2020,419.3
Bath and North East Somerset Council,80908946,LM8,Home Care,P20,Adult Services,CARE SOUTH,02/04/2020,419.3
Bath and North East Somerset Council,80908946,LM8,Home Care,P20,Adult Services,CARE SOUTH,02/04/2020,419.3
Bath and North East Somerset Council,80908946,LM8,Home Care,P20,Adult Services,CARE SOUTH,02/04/2020,419.3
Bath and North East Somerset Council,80908946,LM8,Home Care,P20,Adult Services,CARE SOUTH,02/04/2020,419.3
Bath and North East Somerset Council,80908946,LM8,Home Care,P20,Adult Services,CARE SOUTH,02/04/2020,419.3
Bath and North East Somerset Council,10932900,LA5,Materials,P24,Community Services,FOUNTAIN TIMBER PRODUCTS LTD,02/04/2020,448.4
Bath and North East Somerset Council,10932852,HA2,Servicing,P19,Resources and Deputy Leader,ADT FIRE & SECURITY PLC,02/04/2020,464
Bath and North East Somerset Council,80908946,LM8,Home Care,P20,Adult Services,CARE SOUTH,02/04/2020,479.2
Bath and North East Somerset Council,80908946,LM8,Home Care,P20,Adult Services,CARE SOUTH,02/04/2020,503.16
Bath and North East Somerset Council,10932792,LH5,Marketing,P24,Community Services,PAPER DRAGON DESIGN LTD,02/04/2020,505
Bath and North East Somerset Council,10932800,PB4,Payments to Private Contractors,P22,Climate Emergency & Neighbourhood Services,CLEANSING SERVICE GROUP LTD,02/04/2020,514.62
Bath and North East Somerset Council,80908946,LM8,Home Care,P20,Adult Services,CARE SOUTH,02/04/2020,539.1
Bath and North East Somerset Council,80908946,LM8,Home Care,P20,Adult Services,CARE SOUTH,02/04/2020,539.1
Bath and North East Somerset Council,10932838,LJ4,Contracts,P25,Transport Services,JASON KING LTD,02/04/2020,550
Bath and North East Somerset Council,80908946,LM8,Home Care,P20,Adult Services,CARE SOUTH,02/04/2020,557.07
Bath and North East Somerset Council,80908946,LM8,Home Care,P20,Adult Services,CARE SOUTH,02/04/2020,599
Bath and North East Somerset Council,10932871,LJ4,Contracts,P25,Transport Services,V CARS,02/04/2020,622.5
Bath and North East Somerset Council,80908957,LM6,Nursing Care,P20,Adult Services,ST MONICAS GENERAL ACCOUNT,02/04/2020,628.02
Bath and North East Somerset Council,80908946,LM8,Home Care,P20,Adult Services,CARE SOUTH,02/04/2020,628.95
Bath and North East Somerset Council,80908946,LM8,Home Care,P20,Adult Services,CARE SOUTH,02/04/2020,628.95
Bath and North East Somerset Council,80908946,LM8,Home Care,P20,Adult Services,CARE SOUTH,02/04/2020,628.95
Bath and North East Somerset Council,10932745,LJ2,Legal Fees,P21,Childrens Services,MISS SARAH JENNINGS,02/04/2020,700
Bath and North East Somerset Council,80908946,LM8,Home Care,P20,Adult Services,CARE SOUTH,02/04/2020,701.17
Bath and North East Somerset Council,80908929,PG1,Rent Allowances,P19,Resources and Deputy Leader,CURO,02/04/2020,8610.93
Bath and North East Somerset Council,80908928,PG1,Rent Allowances,P19,Resources and Deputy Leader,CURO,02/04/2020,43048.83
Bath and North East Somerset Council,80908957,LM6,Nursing Care,P20,Adult Services,ST MONICAS GENERAL ACCOUNT,02/04/2020,732.69
Bath and North East Somerset Council,80908946,LM8,Home Care,P20,Adult Services,CARE SOUTH,02/04/2020,750.8
Bath and North East Somerset Council,10932798,HA3,Planned Maintenance,P24,Community Services,WESSEX WATER ENTERPRISES,02/04/2020,751.37
Bath and North East Somerset Council,10932809,LD1,Protective & Safety Clothing,P22,Climate Emergency & Neighbourhood Services,EVOLVE CORPORATE LTD,02/04/2020,765
Bath and North East Somerset Council,10932773,LK1,Fees,P23,"Housing, Planning & Economic Development",YOUTH CONNECT SOUTH WEST,02/04/2020,775
Bath and North East Somerset Council,80908946,LM8,Home Care,P20,Adult Services,CARE SOUTH,02/04/2020,778.7
Bath and North East Somerset Council,80908946,LM8,Home Care,P20,Adult Services,CARE SOUTH,02/04/2020,778.7
Bath and North East Somerset Council,80908946,LM8,Home Care,P20,Adult Services,CARE SOUTH,02/04/2020,778.7
Bath and North East Somerset Council,80908946,LM8,Home Care,P20,Adult Services,CARE SOUTH,02/04/2020,790.68
Bath and North East Somerset Council,80908966,LL3,Supported Living,P20,Adult Services,DIMENSIONS PERSONALISED SUPPORT LTD,02/04/2020,0.02
Bath and North East Somerset Council,80908966,LL3,Supported Living,P20,Adult Services,DIMENSIONS PERSONALISED SUPPORT LTD,02/04/2020,0.02
Bath and North East Somerset Council,80908966,LL3,Supported Living,P20,Adult Services,DIMENSIONS PERSONALISED SUPPORT LTD,02/04/2020,0.02
Bath and North East Somerset Council,80908966,LL3,Supported Living,P20,Adult Services,DIMENSIONS PERSONALISED SUPPORT LTD,02/04/2020,0.02
Bath and North East Somerset Council,80908966,LL3,Supported Living,P20,Adult Services,DIMENSIONS PERSONALISED SUPPORT LTD,02/04/2020,0.02
Bath and North East Somerset Council,80908966,LL3,Supported Living,P20,Adult Services,DIMENSIONS PERSONALISED SUPPORT LTD,02/04/2020,0.02
Bath and North East Somerset Council,80908966,LL3,Supported Living,P20,Adult Services,DIMENSIONS PERSONALISED SUPPORT LTD,02/04/2020,0.02
Bath and North East Somerset Council,80908966,LL3,Supported Living,P20,Adult Services,DIMENSIONS PERSONALISED SUPPORT LTD,02/04/2020,0.02
Bath and North East Somerset Council,80908966,LL3,Supported Living,P20,Adult Services,DIMENSIONS PERSONALISED SUPPORT LTD,02/04/2020,0.02
Bath and North East Somerset Council,80908966,LL3,Supported Living,P20,Adult Services,DIMENSIONS PERSONALISED SUPPORT LTD,02/04/2020,0.02
Bath and North East Somerset Council,80908966,LL3,Supported Living,P20,Adult Services,DIMENSIONS PERSONALISED SUPPORT LTD,02/04/2020,0.02
Bath and North East Somerset Council,80908966,LL3,Supported Living,P20,Adult Services,DIMENSIONS PERSONALISED SUPPORT LTD,02/04/2020,0.02
Bath and North East Somerset Council,10932720,LK2,Licences,P19,Resources and Deputy Leader,CROWD TECHNOLOGIES LIMITED,02/04/2020,804
Bath and North East Somerset Council,80908966,LL3,Supported Living,P20,Adult Services,DIMENSIONS PERSONALISED SUPPORT LTD,02/04/2020,0.02
Bath and North East Somerset Council,80908966,LL3,Supported Living,P20,Adult Services,DIMENSIONS PERSONALISED SUPPORT LTD,02/04/2020,0.03
Bath and North East Somerset Council,80908966,LM8,Home Care,P20,Adult Services,DIMENSIONS PERSONALISED SUPPORT LTD,02/04/2020,35.6
Bath and North East Somerset Council,80908966,LL3,Supported Living,P20,Adult Services,DIMENSIONS PERSONALISED SUPPORT LTD,02/04/2020,130.84
Bath and North East Somerset Council,80908966,LL3,Supported Living,P20,Adult Services,DIMENSIONS PERSONALISED SUPPORT LTD,02/04/2020,168.21
Bath and North East Somerset Council,80908966,LL3,Supported Living,P20,Adult Services,DIMENSIONS PERSONALISED SUPPORT LTD,02/04/2020,299.09
Bath and North East Somerset Council,80908966,LL3,Supported Living,P20,Adult Services,DIMENSIONS PERSONALISED SUPPORT LTD,02/04/2020,336.35
Bath and North East Somerset Council,80908946,LM8,Home Care,P20,Adult Services,CARE SOUTH,02/04/2020,838.6
Bath and North East Somerset Council,80908966,LL3,Supported Living,P20,Adult Services,DIMENSIONS PERSONALISED SUPPORT LTD,02/04/2020,448.56
Bath and North East Somerset Council,80908966,LL3,Supported Living,P20,Adult Services,DIMENSIONS PERSONALISED SUPPORT LTD,02/04/2020,490.28
Bath and North East Somerset Council,80908966,LL3,Supported Living,P20,Adult Services,DIMENSIONS PERSONALISED SUPPORT LTD,02/04/2020,490.28
Bath and North East Somerset Council,80908966,LL3,Supported Living,P20,Adult Services,DIMENSIONS PERSONALISED SUPPORT LTD,02/04/2020,490.28
Bath and North East Somerset Council,80908966,LL3,Supported Living,P20,Adult Services,DIMENSIONS PERSONALISED SUPPORT LTD,02/04/2020,490.33
Bath and North East Somerset Council,80908966,LL3,Supported Living,P20,Adult Services,DIMENSIONS PERSONALISED SUPPORT LTD,02/04/2020,490.33
Bath and North East Somerset Council,80908966,LL3,Supported Living,P20,Adult Services,DIMENSIONS PERSONALISED SUPPORT LTD,02/04/2020,490.33
Bath and North East Somerset Council,80908966,LL3,Supported Living,P20,Adult Services,DIMENSIONS PERSONALISED SUPPORT LTD,02/04/2020,490.33
Bath and North East Somerset Council,80908966,LL3,Supported Living,P20,Adult Services,DIMENSIONS PERSONALISED SUPPORT LTD,02/04/2020,490.33
Bath and North East Somerset Council,80908966,LL3,Supported Living,P20,Adult Services,DIMENSIONS PERSONALISED SUPPORT LTD,02/04/2020,490.33
Bath and North East Somerset Council,80908966,LL3,Supported Living,P20,Adult Services,DIMENSIONS PERSONALISED SUPPORT LTD,02/04/2020,490.38
Bath and North East Somerset Council,80908966,LL3,Supported Living,P20,Adult Services,DIMENSIONS PERSONALISED SUPPORT LTD,02/04/2020,490.38
Bath and North East Somerset Council,80908966,LL3,Supported Living,P20,Adult Services,DIMENSIONS PERSONALISED SUPPORT LTD,02/04/2020,490.38
Bath and North East Somerset Council,80908966,LL3,Supported Living,P20,Adult Services,DIMENSIONS PERSONALISED SUPPORT LTD,02/04/2020,560.55
Bath and North East Somerset Council,80908966,LL3,Supported Living,P20,Adult Services,DIMENSIONS PERSONALISED SUPPORT LTD,02/04/2020,747.6
Bath and North East Somerset Council,10932733,LJ2,Legal Fees,P21,Childrens Services,MR P BAGGLEY,02/04/2020,860
Bath and North East Somerset Council,80908966,LL3,Supported Living,P20,Adult Services,DIMENSIONS PERSONALISED SUPPORT LTD,02/04/2020,906.26
Bath and North East Somerset Council,80908966,LL3,Supported Living,P20,Adult Services,DIMENSIONS PERSONALISED SUPPORT LTD,02/04/2020,934.52
Bath and North East Somerset Council,80908966,LL3,Supported Living,P20,Adult Services,DIMENSIONS PERSONALISED SUPPORT LTD,02/04/2020,934.52
Bath and North East Somerset Council,80908966,LL3,Supported Living,P20,Adult Services,DIMENSIONS PERSONALISED SUPPORT LTD,02/04/2020,934.52
Bath and North East Somerset Council,80908966,LL3,Supported Living,P20,Adult Services,DIMENSIONS PERSONALISED SUPPORT LTD,02/04/2020,1046.69
Bath and North East Somerset Council,80908946,LM8,Home Care,P20,Adult Services,CARE SOUTH,02/04/2020,892.51
Bath and North East Somerset Council,80908946,LM8,Home Care,P20,Adult Services,CARE SOUTH,02/04/2020,898.5
Bath and North East Somerset Council,80908966,LL3,Supported Living,P20,Adult Services,DIMENSIONS PERSONALISED SUPPORT LTD,02/04/2020,1121.4
Bath and North East Somerset Council,80908966,LL3,Supported Living,P20,Adult Services,DIMENSIONS PERSONALISED SUPPORT LTD,02/04/2020,1121.4
Bath and North East Somerset Council,80908966,LL3,Supported Living,P20,Adult Services,DIMENSIONS PERSONALISED SUPPORT LTD,02/04/2020,1121.4
Bath and North East Somerset Council,80908966,LL3,Supported Living,P20,Adult Services,DIMENSIONS PERSONALISED SUPPORT LTD,02/04/2020,1130.51
Bath and North East Somerset Council,10932762,LA1,Equipment Purchase,P22,Climate Emergency & Neighbourhood Services,FREESTYLE DESIGNS BATH LTD,02/04/2020,907.2
Bath and North East Somerset Council,10932805,LA5,Materials,P22,Climate Emergency & Neighbourhood Services,IMPERIAL POLYTHENE PRODUCTS LTD,02/04/2020,907.5
Bath and North East Somerset Council,10932737,LM4,Respite Care,P21,Childrens Services,THORNBURY NURSING SERVICES,02/04/2020,908.58
Bath and North East Somerset Council,80908966,LL3,Supported Living,P20,Adult Services,DIMENSIONS PERSONALISED SUPPORT LTD,02/04/2020,1196.16
Bath and North East Somerset Council,80908966,LL3,Supported Living,P20,Adult Services,DIMENSIONS PERSONALISED SUPPORT LTD,02/04/2020,1196.16
Bath and North East Somerset Council,80908966,LL3,Supported Living,P20,Adult Services,DIMENSIONS PERSONALISED SUPPORT LTD,02/04/2020,1196.16
Bath and North East Somerset Council,80908966,LL3,Supported Living,P20,Adult Services,DIMENSIONS PERSONALISED SUPPORT LTD,02/04/2020,1196.16
Bath and North East Somerset Council,80908966,LL3,Supported Living,P20,Adult Services,DIMENSIONS PERSONALISED SUPPORT LTD,02/04/2020,1196.16
Bath and North East Somerset Council,80908966,LL3,Supported Living,P20,Adult Services,DIMENSIONS PERSONALISED SUPPORT LTD,02/04/2020,1196.16
Bath and North East Somerset Council,80908966,LL3,Supported Living,P20,Adult Services,DIMENSIONS PERSONALISED SUPPORT LTD,02/04/2020,1420.13
Bath and North East Somerset Council,80908966,LL3,Supported Living,P20,Adult Services,DIMENSIONS PERSONALISED SUPPORT LTD,02/04/2020,1495.2
Bath and North East Somerset Council,80908966,LL3,Supported Living,P20,Adult Services,DIMENSIONS PERSONALISED SUPPORT LTD,02/04/2020,1611.78
Bath and North East Somerset Council,80908966,LL3,Supported Living,P20,Adult Services,DIMENSIONS PERSONALISED SUPPORT LTD,02/04/2020,1611.78
Bath and North East Somerset Council,80908966,LL3,Supported Living,P20,Adult Services,DIMENSIONS PERSONALISED SUPPORT LTD,02/04/2020,1611.78
Bath and North East Somerset Council,80908946,LM8,Home Care,P20,Adult Services,CARE SOUTH,02/04/2020,928.45
Bath and North East Somerset Council,80908946,LM8,Home Care,P20,Adult Services,CARE SOUTH,02/04/2020,934.44
Bath and North East Somerset Council,80908960,LL3,Supported Living,P20,Adult Services,ALWAYS PRECIOUS LTD,02/04/2020,937.5
Bath and North East Somerset Council,80908960,LL3,Supported Living,P20,Adult Services,ALWAYS PRECIOUS LTD,02/04/2020,945
Bath and North East Somerset Council,10932789,KA3,Fuel,P22,Climate Emergency & Neighbourhood Services,CERTAS ENERGY UK LTD,02/04/2020,963.23
Bath and North East Somerset Council,80908966,LL3,Supported Living,P20,Adult Services,DIMENSIONS PERSONALISED SUPPORT LTD,02/04/2020,2451.3
Bath and North East Somerset Council,80908966,LL3,Supported Living,P20,Adult Services,DIMENSIONS PERSONALISED SUPPORT LTD,02/04/2020,2451.3
Bath and North East Somerset Council,80908966,LL3,Supported Living,P20,Adult Services,DIMENSIONS PERSONALISED SUPPORT LTD,02/04/2020,2451.3
Bath and North East Somerset Council,80908966,LL3,Supported Living,P20,Adult Services,DIMENSIONS PERSONALISED SUPPORT LTD,02/04/2020,3223.1
Bath and North East Somerset Council,80908966,LL3,Supported Living,P20,Adult Services,DIMENSIONS PERSONALISED SUPPORT LTD,02/04/2020,3223.1
Bath and North East Somerset Council,80908966,LL3,Supported Living,P20,Adult Services,DIMENSIONS PERSONALISED SUPPORT LTD,02/04/2020,3223.1
Bath and North East Somerset Council,10932871,LJ4,Contracts,P25,Transport Services,V CARS,02/04/2020,980
Bath and North East Somerset Council,80908966,LL3,Supported Living,P20,Adult Services,DIMENSIONS PERSONALISED SUPPORT LTD,02/04/2020,6736.8
Bath and North East Somerset Council,80908966,LL3,Supported Living,P20,Adult Services,DIMENSIONS PERSONALISED SUPPORT LTD,02/04/2020,6736.8
Bath and North East Somerset Council,80908966,LL3,Supported Living,P20,Adult Services,DIMENSIONS PERSONALISED SUPPORT LTD,02/04/2020,6736.8
Bath and North East Somerset Council,80908966,LL3,Supported Living,P20,Adult Services,DIMENSIONS PERSONALISED SUPPORT LTD,02/04/2020,6800.19
Bath and North East Somerset Council,80908966,LL3,Supported Living,P20,Adult Services,DIMENSIONS PERSONALISED SUPPORT LTD,02/04/2020,6800.2
Bath and North East Somerset Council,80908966,LL3,Supported Living,P20,Adult Services,DIMENSIONS PERSONALISED SUPPORT LTD,02/04/2020,6800.2
Bath and North East Somerset Council,80908966,LL3,Supported Living,P20,Adult Services,DIMENSIONS PERSONALISED SUPPORT LTD,02/04/2020,8329.7
Bath and North East Somerset Council,80908966,LL3,Supported Living,P20,Adult Services,DIMENSIONS PERSONALISED SUPPORT LTD,02/04/2020,8341.1
Bath and North East Somerset Council,80908966,LL3,Supported Living,P20,Adult Services,DIMENSIONS PERSONALISED SUPPORT LTD,02/04/2020,8341.1
Bath and North East Somerset Council,80908966,LL3,Supported Living,P20,Adult Services,DIMENSIONS PERSONALISED SUPPORT LTD,02/04/2020,8341.1
Bath and North East Somerset Council,80908966,LL3,Supported Living,P20,Adult Services,DIMENSIONS PERSONALISED SUPPORT LTD,02/04/2020,9932.9
Bath and North East Somerset Council,80908966,LL3,Supported Living,P20,Adult Services,DIMENSIONS PERSONALISED SUPPORT LTD,02/04/2020,10400.5
Bath and North East Somerset Council,80908966,LL3,Supported Living,P20,Adult Services,DIMENSIONS PERSONALISED SUPPORT LTD,02/04/2020,11001.7
Bath and North East Somerset Council,80908966,LL3,Supported Living,P20,Adult Services,DIMENSIONS PERSONALISED SUPPORT LTD,02/04/2020,11548.43
Bath and North East Somerset Council,80908966,LL3,Supported Living,P20,Adult Services,DIMENSIONS PERSONALISED SUPPORT LTD,02/04/2020,11548.43
Bath and North East Somerset Council,80908966,LL3,Supported Living,P20,Adult Services,DIMENSIONS PERSONALISED SUPPORT LTD,02/04/2020,11548.43
Bath and North East Somerset Council,80908966,LL3,Supported Living,P20,Adult Services,DIMENSIONS PERSONALISED SUPPORT LTD,02/04/2020,12738.5
Bath and North East Somerset Council,80908966,LL3,Supported Living,P20,Adult Services,DIMENSIONS PERSONALISED SUPPORT LTD,02/04/2020,12960.26
Bath and North East Somerset Council,80908966,LL3,Supported Living,P20,Adult Services,DIMENSIONS PERSONALISED SUPPORT LTD,02/04/2020,12960.26
Bath and North East Somerset Council,80908966,LL3,Supported Living,P20,Adult Services,DIMENSIONS PERSONALISED SUPPORT LTD,02/04/2020,12960.26
Bath and North East Somerset Council,80908946,LM8,Home Care,P20,Adult Services,CARE SOUTH,02/04/2020,1036.27
Bath and North East Somerset Council,80908957,LM6,Nursing Care,P20,Adult Services,ST MONICAS GENERAL ACCOUNT,02/04/2020,1046.7
Bath and North East Somerset Council,10932755,3F7,PCB External Fees,P19,Resources and Deputy Leader,INTEGRA ASSOCIATES LTD,02/04/2020,1050
Bath and North East Somerset Council,10932844,LJ4,Contracts,P25,Transport Services,R E & V P JEFFRIES,02/04/2020,1100
Bath and North East Somerset Council,10932887,KA1,Repairs & Maintenance,P22,Climate Emergency & Neighbourhood Services,TRUCTYRE FLEET MANAGEMENT LTD,02/04/2020,1111.92
Bath and North East Somerset Council,80908946,LM8,Home Care,P20,Adult Services,CARE SOUTH,02/04/2020,1126.12
Bath and North East Somerset Council,10932775,LJ4,Contracts,P25,Transport Services,JASON KING LTD,02/04/2020,1130
Bath and North East Somerset Council,10932759,LJ2,Legal Fees,P21,Childrens Services,AG FAMILY SUPPORT LTD,02/04/2020,1152.94
Bath and North East Somerset Council,80908946,LM8,Home Care,P20,Adult Services,CARE SOUTH,02/04/2020,1186.02
Bath and North East Somerset Council,80908946,LM8,Home Care,P20,Adult Services,CARE SOUTH,02/04/2020,1198
Bath and North East Somerset Council,80908960,LL3,Supported Living,P20,Adult Services,ALWAYS PRECIOUS LTD,02/04/2020,1200
Bath and North East Somerset Council,80908960,LL3,Supported Living,P20,Adult Services,ALWAYS PRECIOUS LTD,02/04/2020,1207.5
Bath and North East Somerset Council,80908946,LM8,Home Care,P20,Adult Services,CARE SOUTH,02/04/2020,1221.96
Bath and North East Somerset Council,80908946,LM8,Home Care,P20,Adult Services,CARE SOUTH,02/04/2020,1233.94
Bath and North East Somerset Council,80908946,LM8,Home Care,P20,Adult Services,CARE SOUTH,02/04/2020,1257.9
Bath and North East Somerset Council,80908946,LM8,Home Care,P20,Adult Services,CARE SOUTH,02/04/2020,1257.9
Bath and North East Somerset Council,10932779,LJ4,Contracts,P25,Transport Services,JASON KING LTD,02/04/2020,1265
Bath and North East Somerset Council,10932781,LJ4,Contracts,P25,Transport Services,JASON KING LTD,02/04/2020,1265
Bath and North East Somerset Council,80908960,LL3,Supported Living,P20,Adult Services,ALWAYS PRECIOUS LTD,02/04/2020,1320
Bath and North East Somerset Council,10932820,LJ4,Contracts,P22,Climate Emergency & Neighbourhood Services,MOTUS COMMERCIALS LTD,02/04/2020,1330.1
Bath and North East Somerset Council,80908960,LL3,Supported Living,P20,Adult Services,ALWAYS PRECIOUS LTD,02/04/2020,1357.5
Bath and North East Somerset Council,80908946,LM8,Home Care,P20,Adult Services,CARE SOUTH,02/04/2020,1377.7
Bath and North East Somerset Council,10932776,LJ4,Contracts,P25,Transport Services,JASON KING LTD,02/04/2020,1380
Bath and North East Somerset Council,80908946,LM8,Home Care,P20,Adult Services,CARE SOUTH,02/04/2020,1437.6
Bath and North East Somerset Council,80908946,LM8,Home Care,P20,Adult Services,CARE SOUTH,02/04/2020,1437.6
Bath and North East Somerset Council,80908946,LM8,Home Care,P20,Adult Services,CARE SOUTH,02/04/2020,1467.55
Bath and North East Somerset Council,10932856,PA3,Payments to Health Authorities,P20,Adult Services,NHS BATH & NORTH EAST SOMERSET CCG,02/04/2020,1472.97
Bath and North East Somerset Council,80908946,LM8,Home Care,P20,Adult Services,CARE SOUTH,02/04/2020,1497.5
Bath and North East Somerset Council,80908946,LM8,Home Care,P20,Adult Services,CARE SOUTH,02/04/2020,1575.37
Bath and North East Somerset Council,80908933,LM8,Home Care,P20,Adult Services,KUMARI HOMECARE SERVICE,02/04/2020,560
Bath and North East Somerset Council,80908933,LM8,Home Care,P20,Adult Services,KUMARI HOMECARE SERVICE,02/04/2020,700
Bath and North East Somerset Council,80908933,LM8,Home Care,P20,Adult Services,KUMARI HOMECARE SERVICE,02/04/2020,980
Bath and North East Somerset Council,80908933,LM8,Home Care,P20,Adult Services,KUMARI HOMECARE SERVICE,02/04/2020,980
Bath and North East Somerset Council,10932822,LJ4,Contracts,P22,Climate Emergency & Neighbourhood Services,MOTUS COMMERCIALS LTD,02/04/2020,1627.71
Bath and North East Somerset Council,10932815,LA5,Materials,P22,Climate Emergency & Neighbourhood Services,IMPERIAL POLYTHENE PRODUCTS LTD,02/04/2020,1635
Bath and North East Somerset Council,80908946,LM8,Home Care,P20,Adult Services,CARE SOUTH,02/04/2020,1677.2
Bath and North East Somerset Council,80908946,LM8,Home Care,P20,Adult Services,CARE SOUTH,02/04/2020,1677.2
Bath and North East Somerset Council,80908946,LM8,Home Care,P20,Adult Services,CARE SOUTH,02/04/2020,1749.08
Bath and North East Somerset Council,80908946,LM8,Home Care,P20,Adult Services,CARE SOUTH,02/04/2020,1785.02
Bath and North East Somerset Council,10932758,LA5,Materials,P22,Climate Emergency & Neighbourhood Services,MR L D TAYLOR T/A AQUARIUS SOLUTIONS,02/04/2020,1801
Bath and North East Somerset Council,80908946,LM8,Home Care,P20,Adult Services,CARE SOUTH,02/04/2020,1802.65
Bath and North East Somerset Council,10932870,LJ4,Contracts,P25,Transport Services,EUROTAXIS (BRISTOL) LTD,02/04/2020,1818.32
Bath and North East Somerset Council,80908946,LM8,Home Care,P20,Adult Services,CARE SOUTH,02/04/2020,1826.95
Bath and North East Somerset Council,10932767,LJ4,Contracts,P25,Transport Services,JASON KING LTD,02/04/2020,1870
Bath and North East Somerset Council,10932808,HP6,Water Charges,P19,Resources and Deputy Leader,WATER2BUSINESS,02/04/2020,1870.46
Bath and North East Somerset Council,80908957,LM6,Nursing Care,P20,Adult Services,ST MONICAS GENERAL ACCOUNT,02/04/2020,1884.06
Bath and North East Somerset Council,80908946,LM8,Home Care,P20,Adult Services,CARE SOUTH,02/04/2020,1886.85
Bath and North East Somerset Council,80908946,LM8,Home Care,P20,Adult Services,CARE SOUTH,02/04/2020,1916.8
Bath and North East Somerset Council,80908957,LM6,Nursing Care,P20,Adult Services,ST MONICAS GENERAL ACCOUNT,02/04/2020,1988.73
Bath and North East Somerset Council,80908946,LM8,Home Care,P20,Adult Services,CARE SOUTH,02/04/2020,2006.65
Bath and North East Somerset Council,80908946,LM8,Home Care,P20,Adult Services,CARE SOUTH,02/04/2020,2096.5
Bath and North East Somerset Council,80908964,LM8,Home Care,P20,Adult Services,MIDSHIRES CARE LTD T/A HELPING HANDS,02/04/2020,1061.15
Bath and North East Somerset Council,80908964,LM8,Home Care,P20,Adult Services,MIDSHIRES CARE LTD T/A HELPING HANDS,02/04/2020,1096.5
Bath and North East Somerset Council,80908964,LM8,Home Care,P20,Adult Services,MIDSHIRES CARE LTD T/A HELPING HANDS,02/04/2020,1096.5
Bath and North East Somerset Council,80908964,LM8,Home Care,P20,Adult Services,MIDSHIRES CARE LTD T/A HELPING HANDS,02/04/2020,1100.5
Bath and North East Somerset Council,80908964,LM8,Home Care,P20,Adult Services,MIDSHIRES CARE LTD T/A HELPING HANDS,02/04/2020,1111.65
Bath and North East Somerset Council,80908964,LM8,Home Care,P20,Adult Services,MIDSHIRES CARE LTD T/A HELPING HANDS,02/04/2020,1115.65
Bath and North East Somerset Council,80908964,LM8,Home Care,P20,Adult Services,MIDSHIRES CARE LTD T/A HELPING HANDS,02/04/2020,1127.85
Bath and North East Somerset Council,80908964,LM8,Home Care,P20,Adult Services,MIDSHIRES CARE LTD T/A HELPING HANDS,02/04/2020,1127.85
Bath and North East Somerset Council,80908964,LM8,Home Care,P20,Adult Services,MIDSHIRES CARE LTD T/A HELPING HANDS,02/04/2020,1131.85
Bath and North East Somerset Council,80908946,LM8,Home Care,P20,Adult Services,CARE SOUTH,02/04/2020,2126.45
Bath and North East Somerset Council,10932856,PA3,Payments to Health Authorities,P20,Adult Services,NHS BATH & NORTH EAST SOMERSET CCG,02/04/2020,2141.81
Bath and North East Somerset Council,80908951,LM8,Home Care,P20,Adult Services,MILLIES CARE & SUPPORT AGENCY,02/04/2020,15.15
Bath and North East Somerset Council,80908951,LM8,Home Care,P20,Adult Services,MILLIES CARE & SUPPORT AGENCY,02/04/2020,88
Bath and North East Somerset Council,80908951,LM8,Home Care,P20,Adult Services,MILLIES CARE & SUPPORT AGENCY,02/04/2020,88
Bath and North East Somerset Council,80908951,LM8,Home Care,P20,Adult Services,MILLIES CARE & SUPPORT AGENCY,02/04/2020,94
Bath and North East Somerset Council,80908951,LM8,Home Care,P20,Adult Services,MILLIES CARE & SUPPORT AGENCY,02/04/2020,100
Bath and North East Somerset Council,80908951,LM8,Home Care,P20,Adult Services,MILLIES CARE & SUPPORT AGENCY,02/04/2020,109
Bath and North East Somerset Council,10932804,3F7,PCB External Fees,P24,Community Services,METHOD CONSULTING LLP,02/04/2020,2200
Bath and North East Somerset Council,80908951,LM8,Home Care,P20,Adult Services,MILLIES CARE & SUPPORT AGENCY,02/04/2020,130
Bath and North East Somerset Council,10932858,LJ4,Contracts,P25,Transport Services,HIGHWAY TAXIS & TRAVEL,02/04/2020,2227.28
Bath and North East Somerset Council,10932753,LM4,Respite Care,P21,Childrens Services,ACTION FOR CHILDREN,02/04/2020,2230.56
Bath and North East Somerset Council,80908951,LM8,Home Care,P20,Adult Services,MILLIES CARE & SUPPORT AGENCY,02/04/2020,130
Bath and North East Somerset Council,80908951,LM8,Home Care,P20,Adult Services,MILLIES CARE & SUPPORT AGENCY,02/04/2020,161
Bath and North East Somerset Council,80908951,LM8,Home Care,P20,Adult Services,MILLIES CARE & SUPPORT AGENCY,02/04/2020,161
Bath and North East Somerset Council,80908951,LM8,Home Care,P20,Adult Services,MILLIES CARE & SUPPORT AGENCY,02/04/2020,218
Bath and North East Somerset Council,80908951,LM8,Home Care,P20,Adult Services,MILLIES CARE & SUPPORT AGENCY,02/04/2020,218
Bath and North East Somerset Council,10932863,LJ4,Contracts,P25,Transport Services,V CARS,02/04/2020,2244
Bath and North East Somerset Council,80908951,LM8,Home Care,P20,Adult Services,MILLIES CARE & SUPPORT AGENCY,02/04/2020,239
Bath and North East Somerset Council,10932811,LJ2,Legal Fees,P21,Childrens Services,PSYCHOLOGY ASSOCIATES,02/04/2020,2263.3
Bath and North East Somerset Council,80908951,LM8,Home Care,P20,Adult Services,MILLIES CARE & SUPPORT AGENCY,02/04/2020,239
Bath and North East Somerset Council,80908951,LM8,Home Care,P20,Adult Services,MILLIES CARE & SUPPORT AGENCY,02/04/2020,254
Bath and North East Somerset Council,80908951,LM8,Home Care,P20,Adult Services,MILLIES CARE & SUPPORT AGENCY,02/04/2020,254
Bath and North East Somerset Council,80908951,LM8,Home Care,P20,Adult Services,MILLIES CARE & SUPPORT AGENCY,02/04/2020,288
Bath and North East Somerset Council,10932848,LJ4,Contracts,P25,Transport Services,SOMERBUS LTD,02/04/2020,2286.24
Bath and North East Somerset Council,80908951,LM8,Home Care,P20,Adult Services,MILLIES CARE & SUPPORT AGENCY,02/04/2020,288
Bath and North East Somerset Council,80908951,LM8,Home Care,P20,Adult Services,MILLIES CARE & SUPPORT AGENCY,02/04/2020,305
Bath and North East Somerset Council,80908951,LM8,Home Care,P20,Adult Services,MILLIES CARE & SUPPORT AGENCY,02/04/2020,305
Bath and North East Somerset Council,80908951,LM8,Home Care,P20,Adult Services,MILLIES CARE & SUPPORT AGENCY,02/04/2020,310
Bath and North East Somerset Council,80908951,LM8,Home Care,P20,Adult Services,MILLIES CARE & SUPPORT AGENCY,02/04/2020,310
Bath and North East Somerset Council,80908951,LM8,Home Care,P20,Adult Services,MILLIES CARE & SUPPORT AGENCY,02/04/2020,314
Bath and North East Somerset Council,80908951,LM8,Home Care,P20,Adult Services,MILLIES CARE & SUPPORT AGENCY,02/04/2020,314
Bath and North East Somerset Council,80908951,LM8,Home Care,P20,Adult Services,MILLIES CARE & SUPPORT AGENCY,02/04/2020,324.85
Bath and North East Somerset Council,80908951,LM8,Home Care,P20,Adult Services,MILLIES CARE & SUPPORT AGENCY,02/04/2020,326
Bath and North East Somerset Council,80908951,LM8,Home Care,P20,Adult Services,MILLIES CARE & SUPPORT AGENCY,02/04/2020,348
Bath and North East Somerset Council,80908951,LM8,Home Care,P20,Adult Services,MILLIES CARE & SUPPORT AGENCY,02/04/2020,368
Bath and North East Somerset Council,80908951,LM8,Home Care,P20,Adult Services,MILLIES CARE & SUPPORT AGENCY,02/04/2020,368
Bath and North East Somerset Council,80908951,LM8,Home Care,P20,Adult Services,MILLIES CARE & SUPPORT AGENCY,02/04/2020,391
Bath and North East Somerset Council,80908951,LM8,Home Care,P20,Adult Services,MILLIES CARE & SUPPORT AGENCY,02/04/2020,391
Bath and North East Somerset Council,80908951,LM8,Home Care,P20,Adult Services,MILLIES CARE & SUPPORT AGENCY,02/04/2020,396
Bath and North East Somerset Council,80908951,LM8,Home Care,P20,Adult Services,MILLIES CARE & SUPPORT AGENCY,02/04/2020,396
Bath and North East Somerset Council,80908951,LM8,Home Care,P20,Adult Services,MILLIES CARE & SUPPORT AGENCY,02/04/2020,421
Bath and North East Somerset Council,80908951,LM8,Home Care,P20,Adult Services,MILLIES CARE & SUPPORT AGENCY,02/04/2020,425
Bath and North East Somerset Council,80908951,LM8,Home Care,P20,Adult Services,MILLIES CARE & SUPPORT AGENCY,02/04/2020,425
Bath and North East Somerset Council,80908951,LM8,Home Care,P20,Adult Services,MILLIES CARE & SUPPORT AGENCY,02/04/2020,436
Bath and North East Somerset Council,80908951,LM8,Home Care,P20,Adult Services,MILLIES CARE & SUPPORT AGENCY,02/04/2020,436
Bath and North East Somerset Council,80908951,LM8,Home Care,P20,Adult Services,MILLIES CARE & SUPPORT AGENCY,02/04/2020,484
Bath and North East Somerset Council,80908951,LM8,Home Care,P20,Adult Services,MILLIES CARE & SUPPORT AGENCY,02/04/2020,485
Bath and North East Somerset Council,80908951,LM8,Home Care,P20,Adult Services,MILLIES CARE & SUPPORT AGENCY,02/04/2020,485
Bath and North East Somerset Council,80908951,LM8,Home Care,P20,Adult Services,MILLIES CARE & SUPPORT AGENCY,02/04/2020,485
Bath and North East Somerset Council,80908951,LM8,Home Care,P20,Adult Services,MILLIES CARE & SUPPORT AGENCY,02/04/2020,485
Bath and North East Somerset Council,80908951,LM8,Home Care,P20,Adult Services,MILLIES CARE & SUPPORT AGENCY,02/04/2020,487
Bath and North East Somerset Council,80908951,LM8,Home Care,P20,Adult Services,MILLIES CARE & SUPPORT AGENCY,02/04/2020,794
Bath and North East Somerset Council,80908951,LM8,Home Care,P20,Adult Services,MILLIES CARE & SUPPORT AGENCY,02/04/2020,794
Bath and North East Somerset Council,80908951,LM8,Home Care,P20,Adult Services,MILLIES CARE & SUPPORT AGENCY,02/04/2020,900
Bath and North East Somerset Council,80908951,LM8,Home Care,P20,Adult Services,MILLIES CARE & SUPPORT AGENCY,02/04/2020,900
Bath and North East Somerset Council,80908946,LM8,Home Care,P20,Adult Services,CARE SOUTH,02/04/2020,2396
Bath and North East Somerset Council,80908957,LM6,Nursing Care,P20,Adult Services,ST MONICAS GENERAL ACCOUNT,02/04/2020,2512.08
Bath and North East Somerset Council,80908946,LM8,Home Care,P20,Adult Services,CARE SOUTH,02/04/2020,2515.8
Bath and North East Somerset Council,80908229,PG1,Rent Allowances,P19,Resources and Deputy Leader,REDACTED,02/04/2020,670.14
Bath and North East Somerset Council,80908946,LM8,Home Care,P20,Adult Services,CARE SOUTH,02/04/2020,2635.6
Bath and North East Somerset Council,10932854,LK1,Fees,P21,Childrens Services,REDACTED,02/04/2020,3151.92
Bath and North East Somerset Council,10932746,LM4,Respite Care,P21,Childrens Services,ALWAYS PRECIOUS LTD,02/04/2020,2677.5
Bath and North East Somerset Council,10932774,LJ4,Contracts,P25,Transport Services,WELTON CABS,02/04/2020,2794
Bath and North East Somerset Council,80908834,PG1,Rent Allowances,P19,Resources and Deputy Leader,REDACTED,02/04/2020,566.18
Bath and North East Somerset Council,80908932,LM8,Home Care,P20,Adult Services,I & S DUTTON LTD T/A CAREWATCH,02/04/2020,2970.46
Bath and North East Somerset Council,80908802,PG1,Rent Allowances,P19,Resources and Deputy Leader,REDACTED,02/04/2020,611.13
Bath and North East Somerset Council,10932888,LJ4,Contracts,P25,Transport Services,S W STENTAFORD,02/04/2020,3168
Bath and North East Somerset Council,80908957,LM6,Nursing Care,P20,Adult Services,ST MONICAS GENERAL ACCOUNT,02/04/2020,3349.44
Bath and North East Somerset Council,10932856,PA3,Payments to Health Authorities,P20,Adult Services,NHS BATH & NORTH EAST SOMERSET CCG,02/04/2020,3364.03
Bath and North East Somerset Council,10932856,PA3,Payments to Health Authorities,P19,Resources and Deputy Leader,NHS BATH & NORTH EAST SOMERSET CCG,02/04/2020,3373.87
Bath and North East Somerset Council,10932842,LJ4,Contracts,P25,Transport Services,EAGLE COACHES LTD,02/04/2020,3444
Bath and North East Somerset Council,10932843,LJ4,Contracts,P25,Transport Services,EAGLE COACHES LTD,02/04/2020,3528
Bath and North East Somerset Council,80908957,LM6,Nursing Care,P20,Adult Services,ST MONICAS GENERAL ACCOUNT,02/04/2020,3558.78
Bath and North East Somerset Council,80908946,LM8,Home Care,P20,Adult Services,CARE SOUTH,02/04/2020,3761.72
Bath and North East Somerset Council,80908946,LM8,Home Care,P20,Adult Services,CARE SOUTH,02/04/2020,3773.7
Bath and North East Somerset Council,10932841,LJ4,Contracts,P25,Transport Services,EAGLE COACHES LTD,02/04/2020,3900
Bath and North East Somerset Council,80908946,LM8,Home Care,P20,Adult Services,CARE SOUTH,02/04/2020,3905.48
Bath and North East Somerset Council,80908946,LM8,Home Care,P20,Adult Services,CARE SOUTH,02/04/2020,3935.43
Bath and North East Somerset Council,10932721,LH3,Publicity,P19,Resources and Deputy Leader,AIMEDIADATA LTD,02/04/2020,4000
Bath and North East Somerset Council,80908842,PG1,Rent Allowances,P19,Resources and Deputy Leader,REDACTED,02/04/2020,521.64
Bath and North East Somerset Council,80908947,LM6,Nursing Care,P20,Adult Services,NEWCROSS HEALTHCARE SOLUTIONS LTD,02/04/2020,4093.02
Bath and North East Somerset Council,10932840,LJ4,Contracts,P25,Transport Services,1ST AVENUE TRAVEL,02/04/2020,4140
Bath and North East Somerset Council,80907977,PG1,Rent Allowances,P19,Resources and Deputy Leader,REDACTED,02/04/2020,553.84
Bath and North East Somerset Council,10932856,PA3,Payments to Health Authorities,P20,Adult Services,NHS BATH & NORTH EAST SOMERSET CCG,02/04/2020,4594.6
Bath and North East Somerset Council,80908946,LM8,Home Care,P20,Adult Services,CARE SOUTH,02/04/2020,4612.3
Bath and North East Somerset Council,80908946,LM8,Home Care,P20,Adult Services,CARE SOUTH,02/04/2020,4666.21
Bath and North East Somerset Council,80908164,PG1,Rent Allowances,P19,Resources and Deputy Leader,REDACTED,02/04/2020,656.85
Bath and North East Somerset Council,80908946,LM8,Home Care,P20,Adult Services,CARE SOUTH,02/04/2020,5396.99
Bath and North East Somerset Council,80908957,LM6,Nursing Care,P20,Adult Services,ST MONICAS GENERAL ACCOUNT,02/04/2020,5861.52
Bath and North East Somerset Council,80907922,PG1,Rent Allowances,P19,Resources and Deputy Leader,REDACTED,02/04/2020,656.85
Bath and North East Somerset Council,80908463,PG1,Rent Allowances,P19,Resources and Deputy Leader,REDACTED,02/04/2020,581.54
Bath and North East Somerset Council,80908252,PG1,Rent Allowances,P19,Resources and Deputy Leader,REDACTED,02/04/2020,553.84
Bath and North East Somerset Council,10932741,LK1,Fees,P20,Adult Services,MMG Health and Social Care Consultancy,02/04/2020,8992.76
Bath and North East Somerset Council,10932786,KA3,Fuel,P22,Climate Emergency & Neighbourhood Services,WATSON FUELS,02/04/2020,9071.37
Bath and North East Somerset Council,10932834,LC1,Provisions,P19,Resources and Deputy Leader,SAINSBURY'S BUSINESS DIRECT,02/04/2020,9700
Bath and North East Somerset Council,80908193,PG1,Rent Allowances,P19,Resources and Deputy Leader,REDACTED,02/04/2020,515.58
Bath and North East Somerset Council,10932812,LF5,Postages,P19,Resources and Deputy Leader,NEOPOST CREDIFON,02/04/2020,10000
Bath and North East Somerset Council,80908274,PG1,Rent Allowances,P19,Resources and Deputy Leader,REDACTED,02/04/2020,656.47
Bath and North East Somerset Council,80908292,PG1,Rent Allowances,P19,Resources and Deputy Leader,REDACTED,02/04/2020,656.85
Bath and North East Somerset Council,80908649,PG1,Rent Allowances,P19,Resources and Deputy Leader,REDACTED,02/04/2020,1021.22
Bath and North East Somerset Council,80908247,PG1,Rent Allowances,P19,Resources and Deputy Leader,REDACTED,02/04/2020,505.57
Bath and North East Somerset Council,80907995,PG1,Rent Allowances,P19,Resources and Deputy Leader,REDACTED,02/04/2020,2160.16
Bath and North East Somerset Council,80908371,PG1,Rent Allowances,P19,Resources and Deputy Leader,REDACTED,02/04/2020,586.38
Bath and North East Somerset Council,80908962,LM8,Home Care,P20,Adult Services,MY WILLOWS - SOMERSET CARE AT HOME LTD,02/04/2020,61.2
Bath and North East Somerset Council,80908962,LM8,Home Care,P20,Adult Services,MY WILLOWS - SOMERSET CARE AT HOME LTD,02/04/2020,506
Bath and North East Somerset Council,80908962,LM8,Home Care,P20,Adult Services,MY WILLOWS - SOMERSET CARE AT HOME LTD,02/04/2020,703.8
Bath and North East Somerset Council,80908959,LL3,Supported Living,P20,Adult Services,PRESTIGE NURSING LTD,02/04/2020,132.51
Bath and North East Somerset Council,80908959,LL3,Supported Living,P20,Adult Services,PRESTIGE NURSING LTD,02/04/2020,140.51
Bath and North East Somerset Council,80908959,LL3,Supported Living,P20,Adult Services,PRESTIGE NURSING LTD,02/04/2020,1421.5
Bath and North East Somerset Council,80908959,LL3,Supported Living,P20,Adult Services,PRESTIGE NURSING LTD,02/04/2020,1790.46
Bath and North East Somerset Council,80908959,LM8,Home Care,P20,Adult Services,PRESTIGE NURSING LTD,02/04/2020,3126.52
Bath and North East Somerset Council,80908969,LM8,Home Care,P20,Adult Services,PRESTIGE NURSING LTD,02/04/2020,3163.51
Bath and North East Somerset Council,80908959,LM8,Home Care,P20,Adult Services,PRESTIGE NURSING LTD,02/04/2020,3548.64
Bath and North East Somerset Council,80908959,LM8,Home Care,P20,Adult Services,PRESTIGE NURSING LTD,02/04/2020,6076.34
Bath and North East Somerset Council,80908959,LM8,Home Care,P20,Adult Services,PRESTIGE NURSING LTD,02/04/2020,6120.36
Bath and North East Somerset Council,10932738,LK1,Fees,P21,Childrens Services,REDACTED,02/04/2020,5300
Bath and North East Somerset Council,80908939,LL3,Supported Living,P20,Adult Services,ROYAL MENCAP SOCIETY,02/04/2020,353.8
Bath and North East Somerset Council,80908939,LL3,Supported Living,P20,Adult Services,ROYAL MENCAP SOCIETY,02/04/2020,707.6
Bath and North East Somerset Council,80908939,LL3,Supported Living,P20,Adult Services,ROYAL MENCAP SOCIETY,02/04/2020,813.76
Bath and North East Somerset Council,80908939,LL3,Supported Living,P20,Adult Services,ROYAL MENCAP SOCIETY,02/04/2020,884.52
Bath and North East Somerset Council,80908939,LL3,Supported Living,P20,Adult Services,ROYAL MENCAP SOCIETY,02/04/2020,1952.72
Bath and North East Somerset Council,80908939,LM8,Home Care,P20,Adult Services,ROYAL MENCAP SOCIETY,02/04/2020,2271.16
Bath and North East Somerset Council,80908939,LM8,Home Care,P20,Adult Services,ROYAL MENCAP SOCIETY,02/04/2020,2306.52
Bath and North East Somerset Council,80908939,LM8,Home Care,P20,Adult Services,ROYAL MENCAP SOCIETY,02/04/2020,2404.84
Bath and North East Somerset Council,80908939,LL3,Supported Living,P20,Adult Services,ROYAL MENCAP SOCIETY,02/04/2020,5747.32
Bath and North East Somerset Council,80908939,LL3,Supported Living,P20,Adult Services,ROYAL MENCAP SOCIETY,02/04/2020,6242.64
Bath and North East Somerset Council,10932771,LX3,Refunds,P24,Community Services,REDACTED,02/04/2020,667.71
Bath and North East Somerset Council,80908941,LM8,Home Care,P20,Adult Services,SUNNYMEDE LTD,02/04/2020,1540
Bath and North East Somerset Council,80908941,LM8,Home Care,P20,Adult Services,SUNNYMEDE LTD,02/04/2020,4840
Bath and North East Somerset Council,80908935,LM9,Day Care,P20,Adult Services,SWALLOW LTD,02/04/2020,7.6
Bath and North East Somerset Council,80908935,LM9,Day Care,P20,Adult Services,SWALLOW LTD,02/04/2020,82.56
Bath and North East Somerset Council,80908935,LM9,Day Care,P20,Adult Services,SWALLOW LTD,02/04/2020,85.44
Bath and North East Somerset Council,80908935,LM8,Home Care,P20,Adult Services,SWALLOW LTD,02/04/2020,129.75
Bath and North East Somerset Council,80908935,LM9,Day Care,P20,Adult Services,SWALLOW LTD,02/04/2020,129.75
Bath and North East Somerset Council,80908935,LM9,Day Care,P20,Adult Services,SWALLOW LTD,02/04/2020,129.75
Bath and North East Somerset Council,80908935,LM9,Day Care,P20,Adult Services,SWALLOW LTD,02/04/2020,201
Bath and North East Somerset Council,80908935,LM9,Day Care,P20,Adult Services,SWALLOW LTD,02/04/2020,220.16
Bath and North East Somerset Council,80908935,LM9,Day Care,P20,Adult Services,SWALLOW LTD,02/04/2020,359.64
Bath and North East Somerset Council,80908935,LM9,Day Care,P20,Adult Services,SWALLOW LTD,02/04/2020,359.64
Bath and North East Somerset Council,80908935,LL3,Supported Living,P20,Adult Services,SWALLOW LTD,02/04/2020,373.8
Bath and North East Somerset Council,80908935,LL3,Supported Living,P20,Adult Services,SWALLOW LTD,02/04/2020,373.8
Bath and North East Somerset Council,80908935,LL3,Supported Living,P20,Adult Services,SWALLOW LTD,02/04/2020,373.8
Bath and North East Somerset Council,80908935,LL3,Supported Living,P20,Adult Services,SWALLOW LTD,02/04/2020,448.56
Bath and North East Somerset Council,80908935,LL3,Supported Living,P20,Adult Services,SWALLOW LTD,02/04/2020,448.56
Bath and North East Somerset Council,80908935,LL3,Supported Living,P20,Adult Services,SWALLOW LTD,02/04/2020,467.25
Bath and North East Somerset Council,80908935,LL3,Supported Living,P20,Adult Services,SWALLOW LTD,02/04/2020,523.32
Bath and North East Somerset Council,80908935,LL3,Supported Living,P20,Adult Services,SWALLOW LTD,02/04/2020,560.7
Bath and North East Somerset Council,80908935,LL3,Supported Living,P20,Adult Services,SWALLOW LTD,02/04/2020,654.15
Bath and North East Somerset Council,80908935,LL3,Supported Living,P20,Adult Services,SWALLOW LTD,02/04/2020,654.15
Bath and North East Somerset Council,80908935,LL3,Supported Living,P20,Adult Services,SWALLOW LTD,02/04/2020,747.6
Bath and North East Somerset Council,80908935,LL3,Supported Living,P20,Adult Services,SWALLOW LTD,02/04/2020,766.29
Bath and North East Somerset Council,80908935,LL3,Supported Living,P20,Adult Services,SWALLOW LTD,02/04/2020,934.5
Bath and North East Somerset Council,80908935,LL3,Supported Living,P20,Adult Services,SWALLOW LTD,02/04/2020,942.51
Bath and North East Somerset Council,80908935,LL3,Supported Living,P20,Adult Services,SWALLOW LTD,02/04/2020,1039.04
Bath and North East Somerset Council,80908935,LL3,Supported Living,P20,Adult Services,SWALLOW LTD,02/04/2020,1308.3
Bath and North East Somerset Council,80908935,LL3,Supported Living,P20,Adult Services,SWALLOW LTD,02/04/2020,1401.75
Bath and North East Somerset Council,80908935,LL3,Supported Living,P20,Adult Services,SWALLOW LTD,02/04/2020,1495.2
Bath and North East Somerset Council,80908935,LL3,Supported Living,P20,Adult Services,SWALLOW LTD,02/04/2020,2055.9
Bath and North East Somerset Council,10932743,LL2,Personal Needs of Clients,P21,Childrens Services,FAMILY CROSSPOINT LIMITED,02/04/2020,16800
Bath and North East Somerset Council,10932818,KA3,Fuel,P22,Climate Emergency & Neighbourhood Services,WATSON FUELS,02/04/2020,17683.55
Bath and North East Somerset Council,10932750,LL2,Personal Needs of Clients,P21,Childrens Services,DEVON COUNTY COUNCIL,02/04/2020,18000
Bath and North East Somerset Council,80908936,LM3,Residential Care,P20,Adult Services,WESC FOUNDATION,02/04/2020,19824.63
Bath and North East Somerset Council,80908945,LM8,Home Care,P20,Adult Services,WAY AHEAD COMMUNITY SERVICES LTD,02/04/2020,96.8
Bath and North East Somerset Council,80908945,LM8,Home Care,P20,Adult Services,WAY AHEAD COMMUNITY SERVICES LTD,02/04/2020,163.35
Bath and North East Somerset Council,80908945,LM8,Home Care,P20,Adult Services,WAY AHEAD COMMUNITY SERVICES LTD,02/04/2020,181.5
Bath and North East Somerset Council,80908945,LM8,Home Care,P20,Adult Services,WAY AHEAD COMMUNITY SERVICES LTD,02/04/2020,181.5
Bath and North East Somerset Council,80908945,LM8,Home Care,P20,Adult Services,WAY AHEAD COMMUNITY SERVICES LTD,02/04/2020,181.5
Bath and North East Somerset Council,80908945,LM8,Home Care,P20,Adult Services,WAY AHEAD COMMUNITY SERVICES LTD,02/04/2020,242
Bath and North East Somerset Council,80908945,LM8,Home Care,P20,Adult Services,WAY AHEAD COMMUNITY SERVICES LTD,02/04/2020,242
Bath and North East Somerset Council,80908945,LM8,Home Care,P20,Adult Services,WAY AHEAD COMMUNITY SERVICES LTD,02/04/2020,242
Bath and North East Somerset Council,80908945,LM8,Home Care,P20,Adult Services,WAY AHEAD COMMUNITY SERVICES LTD,02/04/2020,242
Bath and North East Somerset Council,80908945,LM8,Home Care,P20,Adult Services,WAY AHEAD COMMUNITY SERVICES LTD,02/04/2020,242
Bath and North East Somerset Council,80908945,LM8,Home Care,P20,Adult Services,WAY AHEAD COMMUNITY SERVICES LTD,02/04/2020,242
Bath and North East Somerset Council,80908945,LM8,Home Care,P20,Adult Services,WAY AHEAD COMMUNITY SERVICES LTD,02/04/2020,242
Bath and North East Somerset Council,80908945,LM8,Home Care,P20,Adult Services,WAY AHEAD COMMUNITY SERVICES LTD,02/04/2020,242
Bath and North East Somerset Council,80908945,LM8,Home Care,P20,Adult Services,WAY AHEAD COMMUNITY SERVICES LTD,02/04/2020,302.5
Bath and North East Somerset Council,80908945,LM8,Home Care,P20,Adult Services,WAY AHEAD COMMUNITY SERVICES LTD,02/04/2020,302.5
Bath and North East Somerset Council,80908945,LM8,Home Care,P20,Adult Services,WAY AHEAD COMMUNITY SERVICES LTD,02/04/2020,314.6
Bath and North East Somerset Council,80908945,LM8,Home Care,P20,Adult Services,WAY AHEAD COMMUNITY SERVICES LTD,02/04/2020,387.2
Bath and North East Somerset Council,80908945,LM8,Home Care,P20,Adult Services,WAY AHEAD COMMUNITY SERVICES LTD,02/04/2020,387.2
Bath and North East Somerset Council,80908945,LM8,Home Care,P20,Adult Services,WAY AHEAD COMMUNITY SERVICES LTD,02/04/2020,423.5
Bath and North East Somerset Council,80908945,LM8,Home Care,P20,Adult Services,WAY AHEAD COMMUNITY SERVICES LTD,02/04/2020,423.5
Bath and North East Somerset Council,80908945,LM8,Home Care,P20,Adult Services,WAY AHEAD COMMUNITY SERVICES LTD,02/04/2020,423.5
Bath and North East Somerset Council,80908945,LM8,Home Care,P20,Adult Services,WAY AHEAD COMMUNITY SERVICES LTD,02/04/2020,423.5
Bath and North East Somerset Council,80908945,LM8,Home Care,P20,Adult Services,WAY AHEAD COMMUNITY SERVICES LTD,02/04/2020,423.5
Bath and North East Somerset Council,80908945,LM8,Home Care,P20,Adult Services,WAY AHEAD COMMUNITY SERVICES LTD,02/04/2020,423.5
Bath and North East Somerset Council,80908945,LM8,Home Care,P20,Adult Services,WAY AHEAD COMMUNITY SERVICES LTD,02/04/2020,423.5
Bath and North East Somerset Council,80908945,LM8,Home Care,P20,Adult Services,WAY AHEAD COMMUNITY SERVICES LTD,02/04/2020,453.75
Bath and North East Somerset Council,80908945,LM8,Home Care,P20,Adult Services,WAY AHEAD COMMUNITY SERVICES LTD,02/04/2020,544.5
Bath and North East Somerset Council,80908945,LM8,Home Care,P20,Adult Services,WAY AHEAD COMMUNITY SERVICES LTD,02/04/2020,598.95
Bath and North East Somerset Council,80908945,LM8,Home Care,P20,Adult Services,WAY AHEAD COMMUNITY SERVICES LTD,02/04/2020,605
Bath and North East Somerset Council,80908945,LM8,Home Care,P20,Adult Services,WAY AHEAD COMMUNITY SERVICES LTD,02/04/2020,635.25
Bath and North East Somerset Council,80908945,LM8,Home Care,P20,Adult Services,WAY AHEAD COMMUNITY SERVICES LTD,02/04/2020,635.25
Bath and North East Somerset Council,80908945,LM8,Home Care,P20,Adult Services,WAY AHEAD COMMUNITY SERVICES LTD,02/04/2020,665.5
Bath and North East Somerset Council,80908945,LM8,Home Care,P20,Adult Services,WAY AHEAD COMMUNITY SERVICES LTD,02/04/2020,701.8
Bath and North East Somerset Council,80908945,LM8,Home Care,P20,Adult Services,WAY AHEAD COMMUNITY SERVICES LTD,02/04/2020,701.8
Bath and North East Somerset Council,80908945,LM8,Home Care,P20,Adult Services,WAY AHEAD COMMUNITY SERVICES LTD,02/04/2020,786.5
Bath and North East Somerset Council,80908945,LM8,Home Care,P20,Adult Services,WAY AHEAD COMMUNITY SERVICES LTD,02/04/2020,810.7
Bath and North East Somerset Council,80908945,LM8,Home Care,P20,Adult Services,WAY AHEAD COMMUNITY SERVICES LTD,02/04/2020,847
Bath and North East Somerset Council,80908945,LM8,Home Care,P20,Adult Services,WAY AHEAD COMMUNITY SERVICES LTD,02/04/2020,847
Bath and North East Somerset Council,80908945,LM8,Home Care,P20,Adult Services,WAY AHEAD COMMUNITY SERVICES LTD,02/04/2020,847
Bath and North East Somerset Council,80908945,LM8,Home Care,P20,Adult Services,WAY AHEAD COMMUNITY SERVICES LTD,02/04/2020,847
Bath and North East Somerset Council,80908945,LM8,Home Care,P20,Adult Services,WAY AHEAD COMMUNITY SERVICES LTD,02/04/2020,847
Bath and North East Somerset Council,80908945,LM8,Home Care,P20,Adult Services,WAY AHEAD COMMUNITY SERVICES LTD,02/04/2020,919.6
Bath and North East Somerset Council,80908945,LM8,Home Care,P20,Adult Services,WAY AHEAD COMMUNITY SERVICES LTD,02/04/2020,943.8
Bath and North East Somerset Council,80908945,LM8,Home Care,P20,Adult Services,WAY AHEAD COMMUNITY SERVICES LTD,02/04/2020,1058.75
Bath and North East Somerset Council,80908945,LM8,Home Care,P20,Adult Services,WAY AHEAD COMMUNITY SERVICES LTD,02/04/2020,1058.75
Bath and North East Somerset Council,80908945,LM8,Home Care,P20,Adult Services,WAY AHEAD COMMUNITY SERVICES LTD,02/04/2020,1101.1
Bath and North East Somerset Council,80908945,LM8,Home Care,P20,Adult Services,WAY AHEAD COMMUNITY SERVICES LTD,02/04/2020,1179.75
Bath and North East Somerset Council,80908945,LM8,Home Care,P20,Adult Services,WAY AHEAD COMMUNITY SERVICES LTD,02/04/2020,1210
Bath and North East Somerset Council,80908945,LM8,Home Care,P20,Adult Services,WAY AHEAD COMMUNITY SERVICES LTD,02/04/2020,1270.5
Bath and North East Somerset Council,80908945,LM8,Home Care,P20,Adult Services,WAY AHEAD COMMUNITY SERVICES LTD,02/04/2020,1270.5
Bath and North East Somerset Council,80908945,LM8,Home Care,P20,Adult Services,WAY AHEAD COMMUNITY SERVICES LTD,02/04/2020,1270.5
Bath and North East Somerset Council,80908945,LM8,Home Care,P20,Adult Services,WAY AHEAD COMMUNITY SERVICES LTD,02/04/2020,1270.5
Bath and North East Somerset Council,80908945,LM8,Home Care,P20,Adult Services,WAY AHEAD COMMUNITY SERVICES LTD,02/04/2020,1355.2
Bath and North East Somerset Council,80908945,LM8,Home Care,P20,Adult Services,WAY AHEAD COMMUNITY SERVICES LTD,02/04/2020,1391.5
Bath and North East Somerset Council,80908945,LM8,Home Care,P20,Adult Services,WAY AHEAD COMMUNITY SERVICES LTD,02/04/2020,1482.25
Bath and North East Somerset Council,80908945,LM8,Home Care,P20,Adult Services,WAY AHEAD COMMUNITY SERVICES LTD,02/04/2020,1603.25
Bath and North East Somerset Council,80908945,LM8,Home Care,P20,Adult Services,WAY AHEAD COMMUNITY SERVICES LTD,02/04/2020,1633.5
Bath and North East Somerset Council,80908945,LM8,Home Care,P20,Adult Services,WAY AHEAD COMMUNITY SERVICES LTD,02/04/2020,1694
Bath and North East Somerset Council,80908945,LM8,Home Care,P20,Adult Services,WAY AHEAD COMMUNITY SERVICES LTD,02/04/2020,1694
Bath and North East Somerset Council,80908945,LM8,Home Care,P20,Adult Services,WAY AHEAD COMMUNITY SERVICES LTD,02/04/2020,1718.2
Bath and North East Somerset Council,80908945,LM8,Home Care,P20,Adult Services,WAY AHEAD COMMUNITY SERVICES LTD,02/04/2020,1724.25
Bath and North East Somerset Council,80908945,LM8,Home Care,P20,Adult Services,WAY AHEAD COMMUNITY SERVICES LTD,02/04/2020,2008.6
Bath and North East Somerset Council,80908945,LM8,Home Care,P20,Adult Services,WAY AHEAD COMMUNITY SERVICES LTD,02/04/2020,2117.5
Bath and North East Somerset Council,80908945,LM8,Home Care,P20,Adult Services,WAY AHEAD COMMUNITY SERVICES LTD,02/04/2020,2438.15
Bath and North East Somerset Council,80908945,LM8,Home Care,P20,Adult Services,WAY AHEAD COMMUNITY SERVICES LTD,02/04/2020,2541
Bath and North East Somerset Council,80908945,LM8,Home Care,P20,Adult Services,WAY AHEAD COMMUNITY SERVICES LTD,02/04/2020,2589.4
Bath and North East Somerset Council,80908945,LM8,Home Care,P20,Adult Services,WAY AHEAD COMMUNITY SERVICES LTD,02/04/2020,2934.25
Bath and North East Somerset Council,80908945,LM8,Home Care,P20,Adult Services,WAY AHEAD COMMUNITY SERVICES LTD,02/04/2020,4222.9
Bath and North East Somerset Council,80908745,PG1,Rent Allowances,P19,Resources and Deputy Leader,Y.M.C.A.,02/04/2020,1333.92
Bath and North East Somerset Council,10932840,LJ4,Contracts,P25,Transport Services,1ST AVENUE TRAVEL,02/04/2020,45293.7
Bath and North East Somerset Council,80909046,LL5,Adoption Allowances,P21,Childrens Services,REDACTED,06/04/2020,286
Bath and North East Somerset Council,80909046,LL5,Adoption Allowances,P21,Childrens Services,REDACTED,06/04/2020,325.78
Bath and North East Somerset Council,80909080,LM2,Foster Carer Allowances,P21,Childrens Services,REDACTED,06/04/2020,830
Bath and North East Somerset Council,80909095,LL5,Adoption Allowances,P21,Childrens Services,REDACTED,06/04/2020,258.36
Bath and North East Somerset Council,80909095,LL5,Adoption Allowances,P21,Childrens Services,REDACTED,06/04/2020,800
Bath and North East Somerset Council,10933038,KE3,Transport & Travel,P19,Resources and Deputy Leader,CLICK TRAVEL LTD,06/04/2020,376.28
Bath and North East Somerset Council,10932923,LA1,Equipment Purchase,P22,Climate Emergency & Neighbourhood Services,REXEL NO 1,06/04/2020,422
Bath and North East Somerset Council,10932966,KA1,Repairs & Maintenance,P22,Climate Emergency & Neighbourhood Services,TRUCTYRE FLEET MANAGEMENT LTD,06/04/2020,426.72
Bath and North East Somerset Council,10932897,HA1,Responsive Maintenance,P19,Resources and Deputy Leader,MANNINGS FACILITIES MANAGEMENT LTD,06/04/2020,435
Bath and North East Somerset Council,10932945,HA1,Responsive Maintenance,P19,Resources and Deputy Leader,MANNINGS FACILITIES MANAGEMENT LTD,06/04/2020,444.98
Bath and North East Somerset Council,10932989,LJ4,Contracts,P25,Transport Services,SOMERSET TRANSPORT SERVICES LTD,06/04/2020,450
Bath and North East Somerset Council,10932956,HA1,Responsive Maintenance,P19,Resources and Deputy Leader,MANNINGS FACILITIES MANAGEMENT LTD,06/04/2020,458.26
Bath and North East Somerset Council,80909086,LM2,Foster Carer Allowances,P21,Childrens Services,REDACTED,06/04/2020,125
Bath and North East Somerset Council,80909086,KE3,Transport & Travel,P21,Childrens Services,REDACTED,06/04/2020,189
Bath and North East Somerset Council,80909086,LM2,Foster Carer Allowances,P21,Childrens Services,REDACTED,06/04/2020,261
Bath and North East Somerset Council,10932867,LA1,Equipment Purchase,P19,Resources and Deputy Leader,NAILSEA ELECTRICAL LTD,06/04/2020,483.34
Bath and North East Somerset Council,10932936,LA2,Training Materials,P19,Resources and Deputy Leader,KEYNSHAM & DISTRICT DIAL-A-RIDE,06/04/2020,500
Bath and North East Somerset Council,10932801,LK2,Licences,P24,Community Services,KSS CRC LTD (BGSW DIVISION),06/04/2020,500
Bath and North East Somerset Council,10932987,HA1,Responsive Maintenance,P19,Resources and Deputy Leader,MANNINGS FACILITIES MANAGEMENT LTD,06/04/2020,505.53
Bath and North East Somerset Council,10932919,KA3,Fuel,P22,Climate Emergency & Neighbourhood Services,CERTAS ENERGY UK LTD,06/04/2020,511.94
Bath and North East Somerset Council,10932875,LA1,Equipment Purchase,P19,Resources and Deputy Leader,NAILSEA ELECTRICAL LTD,06/04/2020,520.84
Bath and North East Somerset Council,10933021,LJ3,Other Services to the Council,P20,Adult Services,CHELSEA WESTMINSTER  HOSPITAL NHS FOUND,06/04/2020,555.73
Bath and North East Somerset Council,10932909,HA1,Responsive Maintenance,P19,Resources and Deputy Leader,MANNINGS FACILITIES MANAGEMENT LTD,06/04/2020,555.9
Bath and North East Somerset Council,10933017,LA4,Equipment Hire/Rent,P24,Community Services,INITIAL WASHROOM SOLUTIONS,06/04/2020,591.44
Bath and North East Somerset Council,10933012,LD1,Protective & Safety Clothing,P22,Climate Emergency & Neighbourhood Services,SMI GROUP LTD,06/04/2020,641.2
Bath and North East Somerset Council,10932912,HA1,Responsive Maintenance,P19,Resources and Deputy Leader,MANNINGS FACILITIES MANAGEMENT LTD,06/04/2020,667.43
Bath and North East Somerset Council,10933030,HA2,Servicing,P19,Resources and Deputy Leader,MANNINGS FACILITIES MANAGEMENT LTD,06/04/2020,682
Bath and North East Somerset Council,10933031,HA2,Servicing,P19,Resources and Deputy Leader,MANNINGS FACILITIES MANAGEMENT LTD,06/04/2020,682
Bath and North East Somerset Council,10932998,HA1,Responsive Maintenance,P19,Resources and Deputy Leader,MANNINGS FACILITIES MANAGEMENT LTD,06/04/2020,723.14
Bath and North East Somerset Council,10932965,KA1,Repairs & Maintenance,P22,Climate Emergency & Neighbourhood Services,TRUCTYRE FLEET MANAGEMENT LTD,06/04/2020,761.1
Bath and North East Somerset Council,10933015,LA1,Equipment Purchase,P25,Transport Services,NALESTAR LIMITED,06/04/2020,906.65
Bath and North East Somerset Council,10932951,LK1,Fees,P22,Climate Emergency & Neighbourhood Services,RESOURCE FUTURES LTD,06/04/2020,980
Bath and North East Somerset Council,10933011,KB1,Hire of Vehicles,P22,Climate Emergency & Neighbourhood Services,BRISTOL FORKLIFTS LTD,06/04/2020,1012
Bath and North East Somerset Council,10932964,LT2,Hospitality,P21,Childrens Services,TAUNTON RUGBY FOOTBALL CLUB LTD,06/04/2020,1060
Bath and North East Somerset Council,80909096,LL6,Needs & Services,P21,Childrens Services,REDACTED,06/04/2020,43.2
Bath and North East Somerset Council,80909096,LM2,Foster Carer Allowances,P21,Childrens Services,REDACTED,06/04/2020,150
Bath and North East Somerset Council,80909096,LM2,Foster Carer Allowances,P21,Childrens Services,REDACTED,06/04/2020,250
Bath and North East Somerset Council,80909096,LM2,Foster Carer Allowances,P21,Childrens Services,REDACTED,06/04/2020,430
Bath and North East Somerset Council,80909096,LM2,Foster Carer Allowances,P21,Childrens Services,REDACTED,06/04/2020,854
Bath and North East Somerset Council,10932961,HA1,Responsive Maintenance,P19,Resources and Deputy Leader,MANNINGS FACILITIES MANAGEMENT LTD,06/04/2020,1144.5
Bath and North East Somerset Council,10932732,PB4,Payments to Private Contractors,P22,Climate Emergency & Neighbourhood Services,ETM RECYCLING LTD,06/04/2020,1159.4
Bath and North East Somerset Council,10932886,HA1,Responsive Maintenance,P19,Resources and Deputy Leader,MANNINGS FACILITIES MANAGEMENT LTD,06/04/2020,1184.89
Bath and North East Somerset Council,80909082,LL5,Adoption Allowances,P21,Childrens Services,REDACTED,06/04/2020,256.96
Bath and North East Somerset Council,80909082,LL5,Adoption Allowances,P21,Childrens Services,REDACTED,06/04/2020,256.96
Bath and North East Somerset Council,80909082,LL5,Adoption Allowances,P21,Childrens Services,REDACTED,06/04/2020,256.96
Bath and North East Somerset Council,10933023,LA1,Equipment Purchase,P25,Transport Services,FREESTYLE DESIGNS BATH LTD,06/04/2020,1240
Bath and North East Somerset Council,10932864,HP6,Water Charges,P19,Resources and Deputy Leader,WATER2BUSINESS,06/04/2020,1417.68
Bath and North East Somerset Council,10933000,HA1,Responsive Maintenance,P22,Climate Emergency & Neighbourhood Services,MANNINGS FACILITIES MANAGEMENT LTD,06/04/2020,1502.15
Bath and North East Somerset Council,10932985,KA1,Repairs & Maintenance,P22,Climate Emergency & Neighbourhood Services,TRUCTYRE FLEET MANAGEMENT LTD,06/04/2020,1534.72
Bath and North East Somerset Council,10933028,LJ4,Contracts,P25,Transport Services,CENTURION CARS,06/04/2020,1632
Bath and North East Somerset Council,10932768,PB4,Payments to Private Contractors,P22,Climate Emergency & Neighbourhood Services,ETM RECYCLING LTD,06/04/2020,1643.4
Bath and North East Somerset Council,10932967,LJ4,Contracts,P25,Transport Services,CENTURION CARS,06/04/2020,1663.2
Bath and North East Somerset Council,10932973,LJ4,Contracts,P25,Transport Services,CENTURION CARS,06/04/2020,1672
Bath and North East Somerset Council,80909061,LM2,Foster Carer Allowances,P21,Childrens Services,REDACTED,06/04/2020,150
Bath and North East Somerset Council,80909061,LM2,Foster Carer Allowances,P21,Childrens Services,REDACTED,06/04/2020,430
Bath and North East Somerset Council,10932977,LJ4,Contracts,P25,Transport Services,CENTURION CARS,06/04/2020,1872
Bath and North East Somerset Council,10932972,LJ4,Contracts,P25,Transport Services,CENTURION CARS,06/04/2020,1953.6
Bath and North East Somerset Council,10932969,LJ4,Contracts,P25,Transport Services,CENTURION CARS,06/04/2020,2016
Bath and North East Somerset Council,10932970,LJ4,Contracts,P25,Transport Services,CENTURION CARS,06/04/2020,2112
Bath and North East Somerset Council,10932984,LJ4,Contracts,P25,Transport Services,CENTURION CARS,06/04/2020,2112
Bath and North East Somerset Council,10932876,HA1,Responsive Maintenance,P19,Resources and Deputy Leader,ADT FIRE & SECURITY PLC,06/04/2020,2218
Bath and North East Somerset Council,10933005,KA1,Repairs & Maintenance,P22,Climate Emergency & Neighbourhood Services,HOLT JCB LTD,06/04/2020,2250.5
Bath and North East Somerset Council,10932974,LJ4,Contracts,P25,Transport Services,CENTURION CARS,06/04/2020,2288
Bath and North East Somerset Council,80909057,LM2,Foster Carer Allowances,P21,Childrens Services,REDACTED,06/04/2020,522
Bath and North East Somerset Council,80909044,LM2,Foster Carer Allowances,P21,Childrens Services,REDACTED,06/04/2020,150
Bath and North East Somerset Council,80909044,LM2,Foster Carer Allowances,P21,Childrens Services,REDACTED,06/04/2020,150
Bath and North East Somerset Council,80909044,LM2,Foster Carer Allowances,P21,Childrens Services,REDACTED,06/04/2020,304
Bath and North East Somerset Council,80909044,LM2,Foster Carer Allowances,P21,Childrens Services,REDACTED,06/04/2020,342
Bath and North East Somerset Council,80909030,LM2,Foster Carer Allowances,P21,Childrens Services,REDACTED,06/04/2020,195.75
Bath and North East Somerset Council,80909030,LL9,Special Guardianship,P21,Childrens Services,REDACTED,06/04/2020,460
Bath and North East Somerset Council,10932976,LJ4,Contracts,P25,Transport Services,CENTURION CARS,06/04/2020,2709
Bath and North East Somerset Council,80909072,LL7,Residence Orders,P21,Childrens Services,REDACTED,06/04/2020,275.64
Bath and North East Somerset Council,80909072,LL7,Residence Orders,P21,Childrens Services,REDACTED,06/04/2020,289.64
Bath and North East Somerset Council,10932885,3C4,Building Works,P21,Childrens Services,ADT FIRE & SECURITY PLC,06/04/2020,3644
Bath and North East Somerset Council,10932946,LL2,Personal Needs of Clients,P21,Childrens Services,FUSION FOSTERING LTD,06/04/2020,3835.71
Bath and North East Somerset Council,10933045,HA2,Servicing,P19,Resources and Deputy Leader,MANNINGS FACILITIES MANAGEMENT LTD,06/04/2020,4036.02
Bath and North East Somerset Council,10932962,3F7,PCB External Fees,P25,Transport Services,HORDERS,06/04/2020,4052.14
Bath and North East Somerset Council,80909068,LM2,Foster Carer Allowances,P21,Childrens Services,REDACTED,06/04/2020,75
Bath and North East Somerset Council,80909068,LM2,Foster Carer Allowances,P21,Childrens Services,REDACTED,06/04/2020,75
Bath and North East Somerset Council,80909068,LM2,Foster Carer Allowances,P21,Childrens Services,REDACTED,06/04/2020,75
Bath and North East Somerset Council,80909068,LM2,Foster Carer Allowances,P21,Childrens Services,REDACTED,06/04/2020,125
Bath and North East Somerset Council,80909068,LM2,Foster Carer Allowances,P21,Childrens Services,REDACTED,06/04/2020,125
Bath and North East Somerset Council,80909068,LM2,Foster Carer Allowances,P21,Childrens Services,REDACTED,06/04/2020,125
Bath and North East Somerset Council,80909068,LM2,Foster Carer Allowances,P21,Childrens Services,REDACTED,06/04/2020,215
Bath and North East Somerset Council,80909068,LM2,Foster Carer Allowances,P21,Childrens Services,REDACTED,06/04/2020,215
Bath and North East Somerset Council,80909068,LM2,Foster Carer Allowances,P21,Childrens Services,REDACTED,06/04/2020,215
Bath and North East Somerset Council,10932954,3J2,PCB Consultants,P22,Climate Emergency & Neighbourhood Services,APSE,06/04/2020,5369.19
Bath and North East Somerset Council,10932953,3F7,PCB External Fees,P22,Climate Emergency & Neighbourhood Services,CH2M HILL UK,06/04/2020,5381.92
Bath and North East Somerset Council,80909035,LM2,Foster Carer Allowances,P21,Childrens Services,REDACTED,06/04/2020,75
Bath and North East Somerset Council,80909035,LM2,Foster Carer Allowances,P21,Childrens Services,REDACTED,06/04/2020,75
Bath and North East Somerset Council,80909035,LM2,Foster Carer Allowances,P21,Childrens Services,REDACTED,06/04/2020,152
Bath and North East Somerset Council,80909035,LM2,Foster Carer Allowances,P21,Childrens Services,REDACTED,06/04/2020,152
Bath and North East Somerset Council,80909035,KE3,Transport & Travel,P21,Childrens Services,REDACTED,06/04/2020,207.9
Bath and North East Somerset Council,10933022,LM4,Respite Care,P21,Childrens Services,VIRGIN CARE SERVICES LTD,06/04/2020,6096.06
Bath and North East Somerset Council,80909047,LM2,Foster Carer Allowances,P21,Childrens Services,REDACTED,06/04/2020,150
Bath and North East Somerset Council,80909047,LM2,Foster Carer Allowances,P21,Childrens Services,REDACTED,06/04/2020,150
Bath and North East Somerset Council,80909047,LM2,Foster Carer Allowances,P21,Childrens Services,REDACTED,06/04/2020,150
Bath and North East Somerset Council,80909047,LM2,Foster Carer Allowances,P21,Childrens Services,REDACTED,06/04/2020,250
Bath and North East Somerset Council,80909047,LM2,Foster Carer Allowances,P21,Childrens Services,REDACTED,06/04/2020,342
Bath and North East Somerset Council,80909047,LM2,Foster Carer Allowances,P21,Childrens Services,REDACTED,06/04/2020,522
Bath and North East Somerset Council,10932772,3C4,Building Works,P21,Childrens Services,M D BUILDING SERVICES LTD,06/04/2020,7132.87
Bath and North East Somerset Council,10933038,KE3,Transport & Travel,P19,Resources and Deputy Leader,CLICK TRAVEL LTD,06/04/2020,7213.85
Bath and North East Somerset Council,80909083,LL9,Special Guardianship,P21,Childrens Services,REDACTED,06/04/2020,298.72
Bath and North East Somerset Council,80909083,LL9,Special Guardianship,P21,Childrens Services,REDACTED,06/04/2020,336.72
Bath and North East Somerset Council,10932911,LP8,SPARE - never used,P19,Resources and Deputy Leader,IDEAGEN MK LTD,06/04/2020,7937.52
Bath and North East Somerset Council,10932990,LF6,Subscriptions,P19,Resources and Deputy Leader,SOUTH WEST COUNCILS,06/04/2020,8414
Bath and North East Somerset Council,10932995,LP5,Software Support,P23,"Housing, Planning & Economic Development",EXACOM SYSTEMS LTD,06/04/2020,8953.31
Bath and North East Somerset Council,10933036,KA3,Fuel,P22,Climate Emergency & Neighbourhood Services,ALLSTAR BUSINESS SOLUTIONS LTD,06/04/2020,9276.58
Bath and North East Somerset Council,80909024,LL9,Special Guardianship,P21,Childrens Services,REDACTED,06/04/2020,267.52
Bath and North East Somerset Council,80909024,LL9,Special Guardianship,P21,Childrens Services,REDACTED,06/04/2020,267.54
Bath and North East Somerset Council,10932869,HA1,Responsive Maintenance,P19,Resources and Deputy Leader,HORDERS,06/04/2020,13248.27
Bath and North East Somerset Council,10932955,LA1,Equipment Purchase,P19,Resources and Deputy Leader,CIVICA UK LTD,06/04/2020,15750
Bath and North East Somerset Council,10932955,LP5,Software Support,P19,Resources and Deputy Leader,CIVICA UK LTD,06/04/2020,35228
Bath and North East Somerset Council,10933039,DB1,Agency Staff,P19,Resources and Deputy Leader,COMENSURA LTD,06/04/2020,40427.21
Bath and North East Somerset Council,10932955,LK1,Fees,P19,Resources and Deputy Leader,CIVICA UK LTD,06/04/2020,45513
Bath and North East Somerset Council,10932748,LJ4,Contracts,P21,Childrens Services,YOUTH CONNECT SOUTH WEST,06/04/2020,258500
Bath and North East Somerset Council,80909137,PG1,Rent Allowances,P19,Resources and Deputy Leader,REDACTED,07/04/2020,549.24
Bath and North East Somerset Council,80909106,PG1,Rent Allowances,P19,Resources and Deputy Leader,REDACTED,07/04/2020,576.39
Bath and North East Somerset Council,80909210,PG1,Rent Allowances,P19,Resources and Deputy Leader,ACTION ON HEARING LOSS,07/04/2020,1566.48
Bath and North East Somerset Council,80909107,PG1,Rent Allowances,P19,Resources and Deputy Leader,ADVANCE HOUSING SUPPORT LTD,07/04/2020,6828.52
Bath and North East Somerset Council,80909187,PG1,Rent Allowances,P19,Resources and Deputy Leader,ANCHOR HANOVER GROUP,07/04/2020,2740.76
Bath and North East Somerset Council,80909190,PG1,Rent Allowances,P19,Resources and Deputy Leader,ANCHOR HANOVER GROUP,07/04/2020,9201.5
Bath and North East Somerset Council,10933126,LX3,Refunds,P24,Community Services,REDACTED,07/04/2020,2541.67
Bath and North East Somerset Council,80909219,PG1,Rent Allowances,P19,Resources and Deputy Leader,ANDREWS PROPERTY MANAGEMENT,07/04/2020,576.39
Bath and North East Somerset Council,80909238,PG4,Support Grants,P19,Resources and Deputy Leader,COVID-19 BUSINESS GRANT,07/04/2020,10000
Bath and North East Somerset Council,80909237,PG4,Support Grants,P19,Resources and Deputy Leader,COVID-19 BUSINESS GRANT,07/04/2020,10000
Bath and North East Somerset Council,80909201,PG1,Rent Allowances,P19,Resources and Deputy Leader,ASSURED PROPERTY RENTALS,07/04/2020,746.31
Bath and North East Somerset Council,80909251,PG4,Support Grants,P19,Resources and Deputy Leader,COVID-19 BUSINESS GRANT,07/04/2020,25000
Bath and North East Somerset Council,80909220,PG1,Rent Allowances,P19,Resources and Deputy Leader,BATH CHRISTIAN TRUST,07/04/2020,3237.28
Bath and North East Somerset Council,80909168,PG1,Rent Allowances,P19,Resources and Deputy Leader,BATH MIND,07/04/2020,4095.13
Bath and North East Somerset Council,80909206,PG1,Rent Allowances,P19,Resources and Deputy Leader,BATH PROPERTY SERVICES,07/04/2020,589.84
Bath and North East Somerset Council,80909239,PG4,Support Grants,P19,Resources and Deputy Leader,COVID-19 BUSINESS GRANT,07/04/2020,25000
Bath and North East Somerset Council,10933090,LW1,Rechargeable Works/Expenses,P20,Adult Services,BNES-RE SOCIAL SERV ADMINS IMPT A/C,07/04/2020,965.25
Bath and North East Somerset Council,80909249,PG4,Support Grants,P19,Resources and Deputy Leader,COVID-19 BUSINESS GRANT,07/04/2020,25000
Bath and North East Somerset Council,10933147,LK6,Photography/Artworks/Graphics,P24,Community Services,MELTONE GALLERY (WORKSHOP),07/04/2020,446.67
Bath and North East Somerset Council,10933188,LJ1,Consultants Fees,P19,Resources and Deputy Leader,BLOOM PROCUREMENT SERVICES LIMITED,07/04/2020,446.81
Bath and North East Somerset Council,10932091,HV3,Window Cleaning,P19,Resources and Deputy Leader,ABC WINDOW CLEANING SERVICES,07/04/2020,473.5
Bath and North East Somerset Council,10933060,DB1,Agency Staff,P22,Climate Emergency & Neighbourhood Services,M4 RECRUITMENT LTD,07/04/2020,474.24
Bath and North East Somerset Council,10933209,HA1,Responsive Maintenance,P24,Community Services,BUILDING MANAGEMENT SOLUTIONS INTEGRATORS LIMITED,07/04/2020,475
Bath and North East Somerset Council,10932089,HV1,Contract Cleaning,P19,Resources and Deputy Leader,DIRECT CLEANING SERVICES SW LTD,07/04/2020,487.5
Bath and North East Somerset Council,10933212,LX1,Educational Activity,P21,Childrens Services,TAYLOR EDUCATION CONSULTANCY LTD,07/04/2020,503.13
Bath and North East Somerset Council,10931112,LL1,Services to/for Clients,P21,Childrens Services,CHILDREN'S CONTACT SERVICES LTD,07/04/2020,511.5
Bath and North East Somerset Council,10931114,LL1,Services to/for Clients,P21,Childrens Services,CHILDREN'S CONTACT SERVICES LTD,07/04/2020,517.9
Bath and North East Somerset Council,10933035,LK1,Fees,P19,Resources and Deputy Leader,GBS RE DBS POA,07/04/2020,520
Bath and North East Somerset Council,10933105,HA3,Planned Maintenance,P24,Community Services,WELLSWAY CONTRACT FLOORING LTD,07/04/2020,530
Bath and North East Somerset Council,10933175,LJ1,Consultants Fees,P19,Resources and Deputy Leader,BLOOM PROCUREMENT SERVICES LIMITED,07/04/2020,540
Bath and North East Somerset Council,10933245,LK1,Fees,P24,Community Services,CHURCHILL SECURITY SERVICES,07/04/2020,595.13
Bath and North East Somerset Council,10933219,LX1,Educational Activity,P21,Childrens Services,TAYLOR EDUCATION CONSULTANCY LTD,07/04/2020,615.93
Bath and North East Somerset Council,10933236,3C4,Building Works,P19,Resources and Deputy Leader,ADT FIRE & SECURITY PLC,07/04/2020,643
Bath and North East Somerset Council,10933058,DB1,Agency Staff,P22,Climate Emergency & Neighbourhood Services,Driving Force Recruitment Limited,07/04/2020,651.75
Bath and North East Somerset Council,80909235,PG1,Rent Allowances,P19,Resources and Deputy Leader,CURO,07/04/2020,2259.55
Bath and North East Somerset Council,80909234,PG1,Rent Allowances,P19,Resources and Deputy Leader,CURO,07/04/2020,42514.56
Bath and North East Somerset Council,80909108,PG1,Rent Allowances,P19,Resources and Deputy Leader,CURO (MARKET RENTS),07/04/2020,3232.99
Bath and North East Somerset Council,80909232,PG1,Rent Allowances,P19,Resources and Deputy Leader,DELANEY PROPERTIES LTD,07/04/2020,537.24
Bath and North East Somerset Council,80909118,PG1,Rent Allowances,P19,Resources and Deputy Leader,DEVELOPING HEALTH AND INDEPENDENCE,07/04/2020,2975.08
Bath and North East Somerset Council,80909205,PG1,Rent Allowances,P19,Resources and Deputy Leader,DEVELOPING HEALTH AND INDEPENDENCE,07/04/2020,11925.93
Bath and North East Somerset Council,80909180,PG1,Rent Allowances,P19,Resources and Deputy Leader,DIMENSIONS (UK) LTD,07/04/2020,25937.66
Bath and North East Somerset Council,10933171,KE3,Transport & Travel,P22,Climate Emergency & Neighbourhood Services,MR J CHAMBERS,07/04/2020,800
Bath and North East Somerset Council,10933106,PB4,Payments to Private Contractors,P22,Climate Emergency & Neighbourhood Services,VIRIDOR WASTE MANAGEMENT LTD,07/04/2020,833.5
Bath and North East Somerset Council,10933149,LL1,Services to/for Clients,P21,Childrens Services,ALWAYS PRECIOUS LTD,07/04/2020,840
Bath and North East Somerset Council,10933065,DB1,Agency Staff,P22,Climate Emergency & Neighbourhood Services,M4 RECRUITMENT LTD,07/04/2020,859.56
Bath and North East Somerset Council,10933128,LK1,Fees,P21,Childrens Services,VIRGIN CARE SERVICES LTD,07/04/2020,864.73
Bath and North East Somerset Council,10933157,HA3,Planned Maintenance,P24,Community Services,AVON ALARMS LIMITED,07/04/2020,997
Bath and North East Somerset Council,10933166,HP6,Water Charges,P22,Climate Emergency & Neighbourhood Services,M PERA & D PERA T/A RICHMARK,07/04/2020,1020.58
Bath and North East Somerset Council,80909181,PG1,Rent Allowances,P19,Resources and Deputy Leader,DUCHY OF CORNWALL,07/04/2020,1463.19
Bath and North East Somerset Council,10933201,LJ1,Consultants Fees,P19,Resources and Deputy Leader,BLOOM PROCUREMENT SERVICES LIMITED,07/04/2020,1101.06
Bath and North East Somerset Council,10933230,HA3,Planned Maintenance,P24,Community Services,GORDON MORRIS LTD,07/04/2020,1105.65
Bath and North East Somerset Council,10933032,DB1,Agency Staff,P22,Climate Emergency & Neighbourhood Services,Driving Force Recruitment Limited,07/04/2020,1179.76
Bath and North East Somerset Council,80909209,PG1,Rent Allowances,P19,Resources and Deputy Leader,GOLDEN LANE HOUSING LTD,07/04/2020,5382.42
Bath and North East Somerset Council,10933131,LH5,Marketing,P24,Community Services,THE ART FUND SERVICES,07/04/2020,1250
Bath and North East Somerset Council,10933153,LH5,Marketing,P24,Community Services,THE ART FUND SERVICES,07/04/2020,1250
Bath and North East Somerset Council,10933108,HN1,Electricity,P22,Climate Emergency & Neighbourhood Services,M PERA & D PERA T/A RICHMARK,07/04/2020,1332.03
Bath and North East Somerset Council,80909179,PG1,Rent Allowances,P19,Resources and Deputy Leader,HOME GROUP LIMITED,07/04/2020,14209.88
Bath and North East Somerset Council,80909169,PG1,Rent Allowances,P19,Resources and Deputy Leader,HOMELETS OF BATH,07/04/2020,1058.41
Bath and North East Somerset Council,80909253,PG4,Support Grants,P19,Resources and Deputy Leader,COVID-19 BUSINESS GRANT,07/04/2020,10000
Bath and North East Somerset Council,80909242,PG4,Support Grants,P19,Resources and Deputy Leader,COVID-19 BUSINESS GRANT,07/04/2020,25000
Bath and North East Somerset Council,10933202,LJ1,Consultants Fees,P19,Resources and Deputy Leader,BLOOM PROCUREMENT SERVICES LIMITED,07/04/2020,1428
Bath and North East Somerset Council,80909240,PG4,Support Grants,P19,Resources and Deputy Leader,COVID-19 BUSINESS GRANT,07/04/2020,10000
Bath and North East Somerset Council,80909248,PG4,Support Grants,P19,Resources and Deputy Leader,COVID-19 BUSINESS GRANT,07/04/2020,10000
Bath and North East Somerset Council,10933183,3C4,Building Works,P19,Resources and Deputy Leader,L D CUNDICK T/A CUNDICK TRANSPORT,07/04/2020,1500
Bath and North East Somerset Council,80909170,PG1,Rent Allowances,P19,Resources and Deputy Leader,JULIAN HOUSE,07/04/2020,51881.03
Bath and North East Somerset Council,10932756,3N7,PCB Misc. Costs,P25,Transport Services,BT OPENREACH,07/04/2020,1522.8
Bath and North East Somerset Council,10932853,LK1,Fees,P21,Childrens Services,REDACTED,07/04/2020,3766
Bath and North East Somerset Council,10933051,HA2,Servicing,P19,Resources and Deputy Leader,MANNINGS FACILITIES MANAGEMENT LTD,07/04/2020,1544
Bath and North East Somerset Council,80909115,PG1,Rent Allowances,P19,Resources and Deputy Leader,LETTINGS-R-US PROPERTIES LIMITED,07/04/2020,692.32
Bath and North East Somerset Council,80909166,PG1,Rent Allowances,P19,Resources and Deputy Leader,LIVEWEST HOMES LIMITED,07/04/2020,969.04
Bath and North East Somerset Council,80909236,PG4,Support Grants,P19,Resources and Deputy Leader,COVID-19 BUSINESS GRANT,07/04/2020,25000
Bath and North East Somerset Council,10933211,KB1,Hire of Vehicles,P22,Climate Emergency & Neighbourhood Services,SMITH'S GLOUCESTER LTD,07/04/2020,1885
Bath and North East Somerset Council,80909231,PG1,Rent Allowances,P19,Resources and Deputy Leader,MARTIN & CO,07/04/2020,586.28
Bath and North East Somerset Council,80909129,PG1,Rent Allowances,P19,Resources and Deputy Leader,MERCY IN ACTION,07/04/2020,2429.92
Bath and North East Somerset Council,80909112,PG1,Rent Allowances,P19,Resources and Deputy Leader,MERLIN HOUSING SOCIETY LIMITED,07/04/2020,5280.03
Bath and North East Somerset Council,80909165,PG1,Rent Allowances,P19,Resources and Deputy Leader,METHODIST HOMES (CHURCH COURT),07/04/2020,3170.84
Bath and North East Somerset Council,80909186,PG1,Rent Allowances,P19,Resources and Deputy Leader,METHODIST HOMES HOUSING ASSOCIATION,07/04/2020,3327.27
Bath and North East Somerset Council,80909254,PG4,Support Grants,P19,Resources and Deputy Leader,COVID-19 BUSINESS GRANT,07/04/2020,10000
Bath and North East Somerset Council,10933232,LH1,Liability Insurance,P24,Community Services,ART WORKS EXHIBITION SERVICES LTD,07/04/2020,2055
Bath and North East Somerset Council,10933093,LK1,Fees,P21,Childrens Services,LEARN@MAT,07/04/2020,2061.39
Bath and North East Somerset Council,10933063,DC1,Apprenticeship Levy,P22,Climate Emergency & Neighbourhood Services,M4 RECRUITMENT LTD,07/04/2020,2105.49
Bath and North East Somerset Council,10933176,LJ1,Consultants Fees,P19,Resources and Deputy Leader,BLOOM PROCUREMENT SERVICES LIMITED,07/04/2020,2160
Bath and North East Somerset Council,10933062,DB1,Agency Staff,P22,Climate Emergency & Neighbourhood Services,M4 RECRUITMENT LTD,07/04/2020,2195.24
Bath and North East Somerset Council,10933080,DB3,Temporary Staff,P21,Childrens Services,VIRGIN CARE SERVICES LTD,07/04/2020,2237.83
Bath and North East Somerset Council,10933160,HP6,Water Charges,P24,Community Services,WATER2BUSINESS,07/04/2020,2314.15
Bath and North East Somerset Council,10933228,LJ1,Consultants Fees,P24,Community Services,CTS TRAFFIC AND TRANSPORTATION,07/04/2020,2373.75
Bath and North East Somerset Council,10933107,KF1,Motor Insurance Premium,Z99,Outside Revenue Accounts,MOTOR ACCIDENT PROTECTION,07/04/2020,2380.22
Bath and North East Somerset Council,10933100,LJ2,Legal Fees,P21,Childrens Services,A+BILITY LIMITED,07/04/2020,2430
Bath and North East Somerset Council,10932078,HP6,Water Charges,P19,Resources and Deputy Leader,CANAL & RIVER TRUST,07/04/2020,2506
Bath and North East Somerset Council,80909121,PG1,Rent Allowances,P19,Resources and Deputy Leader,REDACTED,07/04/2020,660
Bath and North East Somerset Council,80909196,PG1,Rent Allowances,P19,Resources and Deputy Leader,REDACTED,07/04/2020,615.17
Bath and North East Somerset Council,80909197,PG1,Rent Allowances,P19,Resources and Deputy Leader,REDACTED,07/04/2020,615.17
Bath and North East Somerset Council,10933146,LL1,Services to/for Clients,P21,Childrens Services,ALWAYS PRECIOUS LTD,07/04/2020,2700
Bath and North East Somerset Council,10932855,LK1,Fees,P21,Childrens Services,REDACTED,07/04/2020,1765.66
Bath and North East Somerset Council,10933040,PB4,Payments to Private Contractors,P22,Climate Emergency & Neighbourhood Services,ETM RECYCLING LTD,07/04/2020,2816.36
Bath and North East Somerset Council,10933169,LM1,Volunt Homes Placements Top/Up,P21,Childrens Services,THORNBURY NURSING SERVICES,07/04/2020,2846.72
Bath and North East Somerset Council,80909122,PG1,Rent Allowances,P19,Resources and Deputy Leader,REDACTED,07/04/2020,806.56
Bath and North East Somerset Council,10933194,LM2,Foster Carer Allowances,P21,Childrens Services,SWIIS FOSTER CARE LTD,07/04/2020,3098.2
Bath and North East Somerset Council,80909252,PG4,Support Grants,P19,Resources and Deputy Leader,COVID-19 BUSINESS GRANT,07/04/2020,10000
Bath and North East Somerset Council,80909229,PG1,Rent Allowances,P19,Resources and Deputy Leader,REDACTED,07/04/2020,553.84
Bath and North East Somerset Council,80909152,PG1,Rent Allowances,P19,Resources and Deputy Leader,REDACTED,07/04/2020,539.99
Bath and North East Somerset Council,10933155,LL1,Services to/for Clients,P21,Childrens Services,ALWAYS PRECIOUS LTD,07/04/2020,3325
Bath and North East Somerset Council,80909113,PG1,Rent Allowances,P19,Resources and Deputy Leader,REDACTED,07/04/2020,606.07
Bath and North East Somerset Council,80909133,PG1,Rent Allowances,P19,Resources and Deputy Leader,REDACTED,07/04/2020,826.34
Bath and North East Somerset Council,80909132,PG1,Rent Allowances,P19,Resources and Deputy Leader,REDACTED,07/04/2020,783.84
Bath and North East Somerset Council,80909224,PG1,Rent Allowances,P19,Resources and Deputy Leader,REDACTED,07/04/2020,596.17
Bath and North East Somerset Council,80909216,PG1,Rent Allowances,P19,Resources and Deputy Leader,REDACTED,07/04/2020,615.17
Bath and North East Somerset Council,80909164,PG1,Rent Allowances,P19,Resources and Deputy Leader,REDACTED,07/04/2020,1236.25
Bath and North East Somerset Council,80909225,PG1,Rent Allowances,P19,Resources and Deputy Leader,REDACTED,07/04/2020,511.84
Bath and North East Somerset Council,10931427,LL2,Personal Needs of Clients,P21,Childrens Services,FUSION FOSTERING LTD,07/04/2020,3915
Bath and North East Somerset Council,10933173,LJ1,Consultants Fees,P19,Resources and Deputy Leader,BLOOM PROCUREMENT SERVICES LIMITED,07/04/2020,4000
Bath and North East Somerset Council,10931428,LL2,Personal Needs of Clients,P21,Childrens Services,FUSION FOSTERING LTD,07/04/2020,4002.86
Bath and North East Somerset Council,80909131,PG1,Rent Allowances,P19,Resources and Deputy Leader,REDACTED,07/04/2020,507.68
Bath and North East Somerset Council,10933163,LL1,Services to/for Clients,P21,Childrens Services,ALWAYS PRECIOUS LTD,07/04/2020,4375
Bath and North East Somerset Council,80909221,PG1,Rent Allowances,P19,Resources and Deputy Leader,REDACTED,07/04/2020,1096.67
Bath and North East Somerset Council,10933117,LK1,Fees,P21,Childrens Services,SEVERNPLUS,07/04/2020,4666.66
Bath and North East Somerset Council,80909120,PG1,Rent Allowances,P19,Resources and Deputy Leader,REDACTED,07/04/2020,684.86
Bath and North East Somerset Council,10933104,PB4,Payments to Private Contractors,P22,Climate Emergency & Neighbourhood Services,HILLS WASTE SOLUTIONS LTD,07/04/2020,4920.3
Bath and North East Somerset Council,10932769,3E4,Furniture/Equipment,P24,Community Services,BROXAP LIMITED,07/04/2020,5587
Bath and North East Somerset Council,10933195,LM1,Volunt Homes Placements Top/Up,P21,Childrens Services,BLUE MOUNTAIN HOMES,07/04/2020,5661.43
Bath and North East Somerset Council,80909130,PG1,Rent Allowances,P19,Resources and Deputy Leader,REDACTED,07/04/2020,612
Bath and North East Somerset Council,10933120,3L4,Site Investigation,P25,Transport Services,WSP UK LTD,07/04/2020,5900.37
Bath and North East Somerset Council,10933177,LJ1,Consultants Fees,P19,Resources and Deputy Leader,BLOOM PROCUREMENT SERVICES LIMITED,07/04/2020,6001
Bath and North East Somerset Council,80909114,PG1,Rent Allowances,P19,Resources and Deputy Leader,REDACTED,07/04/2020,516.92
Bath and North East Somerset Council,80909117,PG1,Rent Allowances,P19,Resources and Deputy Leader,REDACTED,07/04/2020,600
Bath and North East Somerset Council,10933116,3L4,Site Investigation,P25,Transport Services,WSP UK LTD,07/04/2020,7287.72
Bath and North East Somerset Council,80909200,PG1,Rent Allowances,P19,Resources and Deputy Leader,REDACTED,07/04/2020,615.17
Bath and North East Somerset Council,10933156,LL1,Services to/for Clients,P21,Childrens Services,ALWAYS PRECIOUS LTD,07/04/2020,9055
Bath and North East Somerset Council,80909214,PG1,Rent Allowances,P19,Resources and Deputy Leader,REDACTED,07/04/2020,651.71
Bath and North East Somerset Council,10933210,3C4,Building Works,P19,Resources and Deputy Leader,ADT FIRE & SECURITY PLC,07/04/2020,9774
Bath and North East Somerset Council,80909194,PG1,Rent Allowances,P19,Resources and Deputy Leader,REDACTED,07/04/2020,540
Bath and North East Somerset Council,10933216,3C4,Building Works,P19,Resources and Deputy Leader,N K S CONTRACTS LTD,07/04/2020,9958.87
Bath and North East Somerset Council,10933220,LJ4,Contracts,P24,Community Services,BATH ARTS WORKSHOP LTD,07/04/2020,9998.98
Bath and North East Somerset Council,10933165,LL1,Services to/for Clients,P23,"Housing, Planning & Economic Development",BATH YMCA TRADING,07/04/2020,10000
Bath and North East Somerset Council,80909151,PG1,Rent Allowances,P19,Resources and Deputy Leader,REDACTED,07/04/2020,715.4
Bath and North East Somerset Council,80909148,PG1,Rent Allowances,P19,Resources and Deputy Leader,REDACTED,07/04/2020,607.39
Bath and North East Somerset Council,80909125,PG1,Rent Allowances,P19,Resources and Deputy Leader,REDACTED,07/04/2020,806.56
Bath and North East Somerset Council,80909212,PG1,Rent Allowances,P19,Resources and Deputy Leader,REDACTED,07/04/2020,710.2
Bath and North East Somerset Council,80909250,PG4,Support Grants,P19,Resources and Deputy Leader,COVID-19 BUSINESS GRANT,07/04/2020,25000
Bath and North East Somerset Council,80909227,PG1,Rent Allowances,P19,Resources and Deputy Leader,REDACTED,07/04/2020,600
Bath and North East Somerset Council,80909160,PG1,Rent Allowances,P19,Resources and Deputy Leader,REDACTED,07/04/2020,544.6
Bath and North East Somerset Council,80909218,PG1,Rent Allowances,P19,Resources and Deputy Leader,REDACTED,07/04/2020,516.92
Bath and North East Somerset Council,80909228,PG1,Rent Allowances,P19,Resources and Deputy Leader,REDACTED,07/04/2020,586.28
Bath and North East Somerset Council,10933135,LX3,Refunds,P24,Community Services,REDACTED,07/04/2020,3135
Bath and North East Somerset Council,80909175,PG1,Rent Allowances,P19,Resources and Deputy Leader,PICTURE LIVING INVESTMENTS GP LL,07/04/2020,2236.16
Bath and North East Somerset Council,80909184,PG1,Rent Allowances,P19,Resources and Deputy Leader,PLACES FOR PEOPLE LIVING+ LIMITE,07/04/2020,3656.35
Bath and North East Somerset Council,80909247,PG4,Support Grants,P19,Resources and Deputy Leader,COVID-19 BUSINESS GRANT,07/04/2020,25000
Bath and North East Somerset Council,80909136,PG1,Rent Allowances,P19,Resources and Deputy Leader,PREMIER PROPERTIES LTD,07/04/2020,558.48
Bath and North East Somerset Council,80909204,PG1,Rent Allowances,P19,Resources and Deputy Leader,RIVERSIDE - E.C.H.G.,07/04/2020,2421.42
Bath and North East Somerset Council,80909135,PG1,Rent Allowances,P19,Resources and Deputy Leader,S P G PROPERTIES,07/04/2020,678.48
Bath and North East Somerset Council,80909188,PG1,Rent Allowances,P19,Resources and Deputy Leader,S.W.A.L.L.O.W.,07/04/2020,8248.69
Bath and North East Somerset Council,80909176,PG1,Rent Allowances,P19,Resources and Deputy Leader,SANCTUARY HOUSING SERVICES LIMITED,07/04/2020,10778.37
Bath and North East Somerset Council,80909173,PG1,Rent Allowances,P19,Resources and Deputy Leader,SOLON (SOUTH WEST) HOUSING ASSOCIATION,07/04/2020,9988.09
Bath and North East Somerset Council,80909203,PG1,Rent Allowances,P19,Resources and Deputy Leader,SOLON HOUSING ASSOCIATION,07/04/2020,942.01
Bath and North East Somerset Council,80909191,PG1,Rent Allowances,P19,Resources and Deputy Leader,SOVEREIGN HOUSING ASSOCIATION,07/04/2020,17508.78
Bath and North East Somerset Council,80909110,PG1,Rent Allowances,P19,Resources and Deputy Leader,ST MUNGOS,07/04/2020,13043.55
Bath and North East Somerset Council,80909223,PG1,Rent Allowances,P19,Resources and Deputy Leader,SUPPORTED INDEPENDENCE LTD,07/04/2020,5278.98
Bath and North East Somerset Council,10933265,LK1,Fees,P25,Transport Services,CHORD UK LTD,07/04/2020,10047.55
Bath and North East Somerset Council,10933110,LK1,Fees,P21,Childrens Services,YOUTH CONNECT SOUTH WEST,07/04/2020,11212.5
Bath and North East Somerset Council,10933067,HP1,Rent Payable,P22,Climate Emergency & Neighbourhood Services,M PERA & D PERA T/A RICHMARK,07/04/2020,12000
Bath and North East Somerset Council,10933068,HP1,Rent Payable,P22,Climate Emergency & Neighbourhood Services,M PERA & D PERA T/A RICHMARK,07/04/2020,12000
Bath and North East Somerset Council,10933037,HK1,Highway Maintenance,P25,Transport Services,DYNNIQ UK LTD,07/04/2020,12071.09
Bath and North East Somerset Council,10933119,3L4,Site Investigation,P25,Transport Services,WSP UK LTD,07/04/2020,12251.4
Bath and North East Somerset Council,10933172,LJ1,Consultants Fees,P19,Resources and Deputy Leader,BLOOM PROCUREMENT SERVICES LIMITED,07/04/2020,12825
Bath and North East Somerset Council,10933193,LM1,Volunt Homes Placements Top/Up,P21,Childrens Services,EXETER ROYAL ACADEMY FOR DEAF EDUCATION,07/04/2020,15186
Bath and North East Somerset Council,10933118,3L4,Site Investigation,P25,Transport Services,WSP UK LTD,07/04/2020,17371.47
Bath and North East Somerset Council,10933246,LJ4,Contracts,P24,Community Services,CHURCHILL SECURITY SERVICES,07/04/2020,17859.46
Bath and North East Somerset Council,10933148,LA3,Equipment Maintenance,P24,Community Services,WEBSITE EXPRESS LIMITED,07/04/2020,18800
Bath and North East Somerset Council,10933102,PB4,Payments to Private Contractors,P22,Climate Emergency & Neighbourhood Services,HILLS WASTE SOLUTIONS LTD,07/04/2020,19303.46
Bath and North East Somerset Council,10933217,3C4,Building Works,P19,Resources and Deputy Leader,N K S CONTRACTS LTD,07/04/2020,21021.57
Bath and North East Somerset Council,80909185,PG1,Rent Allowances,P19,Resources and Deputy Leader,THATCHER AND HALLAM,07/04/2020,1142.27
Bath and North East Somerset Council,80909244,PG4,Support Grants,P19,Resources and Deputy Leader,COVID-19 BUSINESS GRANT,07/04/2020,25000
Bath and North East Somerset Council,80909172,PG1,Rent Allowances,P19,Resources and Deputy Leader,THE GUINNESS PARTNERSHIP,07/04/2020,28287.09
Bath and North East Somerset Council,80909171,PG1,Rent Allowances,P19,Resources and Deputy Leader,THE GUINNESS PARTNERSHIP,07/04/2020,33648.9
Bath and North East Somerset Council,80909241,PG4,Support Grants,P19,Resources and Deputy Leader,COVID-19 BUSINESS GRANT,07/04/2020,10000
Bath and North East Somerset Council,80909109,PG1,Rent Allowances,P19,Resources and Deputy Leader,THE ROMANS GROUP,07/04/2020,1459.91
Bath and North East Somerset Council,80909243,PG4,Support Grants,P19,Resources and Deputy Leader,COVID-19 BUSINESS GRANT,07/04/2020,25000
Bath and North East Somerset Council,80909245,PG4,Support Grants,P19,Resources and Deputy Leader,COVID-19 BUSINESS GRANT,07/04/2020,10000
Bath and North East Somerset Council,80909246,PG4,Support Grants,P19,Resources and Deputy Leader,COVID-19 BUSINESS GRANT,07/04/2020,10000
Bath and North East Somerset Council,80909255,PG4,Support Grants,P19,Resources and Deputy Leader,COVID-19 BUSINESS GRANT,07/04/2020,10000
Bath and North East Somerset Council,80909202,PG1,Rent Allowances,P19,Resources and Deputy Leader,TRUSTEES OF REDACTED,07/04/2020,1009.44
Bath and North East Somerset Council,80909177,PG1,Rent Allowances,P19,Resources and Deputy Leader,UNITED HOUSING ASSOCIATION,07/04/2020,1368.53
Bath and North East Somerset Council,80909119,PG1,Rent Allowances,P19,Resources and Deputy Leader,VALLEY PROPERTY MANAGERS,07/04/2020,576.39
Bath and North East Somerset Council,80909134,PG1,Rent Allowances,P19,Resources and Deputy Leader,VI-LETS PROPERTY MANAGEMENT,07/04/2020,1241.91
Bath and North East Somerset Council,80909183,PG1,Rent Allowances,P19,Resources and Deputy Leader,WHITE HORSE HOUSING ASSOCIATION,07/04/2020,628.52
Bath and North East Somerset Council,10933112,HN1,Electricity,P25,Transport Services,SOUTHERN ELECTRIC PLC,07/04/2020,31698.48
Bath and North East Somerset Council,10933199,LM1,Volunt Homes Placements Top/Up,P21,Childrens Services,BLUE MOUNTAIN HOMES,07/04/2020,32836.29
Bath and North East Somerset Council,10933196,LM1,Volunt Homes Placements Top/Up,P21,Childrens Services,BLUE MOUNTAIN HOMES,07/04/2020,33968.57
Bath and North East Somerset Council,10933197,LM1,Volunt Homes Placements Top/Up,P21,Childrens Services,BLUE MOUNTAIN HOMES,07/04/2020,35100.86
Bath and North East Somerset Council,10933198,LM1,Volunt Homes Placements Top/Up,P21,Childrens Services,BLUE MOUNTAIN HOMES,07/04/2020,35100.86
Bath and North East Somerset Council,80909163,PG1,Rent Allowances,P19,Resources and Deputy Leader,Y.M.C.A.,07/04/2020,10710.21
Bath and North East Somerset Council,10933170,LM1,Volunt Homes Placements Top/Up,P21,Childrens Services,THORNBURY NURSING SERVICES,07/04/2020,46032.96
Bath and North East Somerset Council,10932996,LJ3,Other Services to the Council,P19,Resources and Deputy Leader,CITIZENS ADVICE BUREAU,07/04/2020,135000
Bath and North East Somerset Council,10933092,HA2,Servicing,P19,Resources and Deputy Leader,MANNINGS FACILITIES MANAGEMENT LTD,08/04/2020,452
Bath and North East Somerset Council,10933345,3C4,Building Works,P25,Transport Services,SURVEYBASE LTD,08/04/2020,500
Bath and North East Somerset Council,10933251,3F7,PCB External Fees,P19,Resources and Deputy Leader,CAPITA SYMONDS,08/04/2020,516.6
Bath and North East Somerset Council,10933191,PB4,Payments to Private Contractors,P22,Climate Emergency & Neighbourhood Services,CLEANSING SERVICE GROUP LTD,08/04/2020,561.62
Bath and North East Somerset Council,10933279,LJ6,Waste Disposal,P24,Community Services,SUEZ RECYCLING AND RECOVERY UK LTD,08/04/2020,568.83
Bath and North East Somerset Council,10933348,LJ4,Contracts,P24,Community Services,Public Analyst Scientific Services Ltd,08/04/2020,600
Bath and North East Somerset Council,10933281,LK1,Fees,P21,Childrens Services,IMPACT MENTORING,08/04/2020,648
Bath and North East Somerset Council,10933255,3C4,Building Works,P19,Resources and Deputy Leader,N K S CONTRACTS LTD,08/04/2020,680.93
Bath and North East Somerset Council,10933167,PB4,Payments to Private Contractors,P22,Climate Emergency & Neighbourhood Services,CLEANSING SERVICE GROUP LTD,08/04/2020,781.62
Bath and North East Somerset Council,10933203,HA1,Responsive Maintenance,P19,Resources and Deputy Leader,MANNINGS FACILITIES MANAGEMENT LTD,08/04/2020,783.91
Bath and North East Somerset Council,10933186,HN1,Electricity,P22,Climate Emergency & Neighbourhood Services,EDF ENERGY,08/04/2020,817.84
Bath and North East Somerset Council,10933184,HA1,Responsive Maintenance,P19,Resources and Deputy Leader,MANNINGS FACILITIES MANAGEMENT LTD,08/04/2020,901.02
Bath and North East Somerset Council,10933295,HE5,Security of Premises,P24,Community Services,S P WATKINS,08/04/2020,950
Bath and North East Somerset Council,10933352,3C4,Building Works,P25,Transport Services,TRAFFIC GB LTD,08/04/2020,1000
Bath and North East Somerset Council,10933328,LP1,Hardware Purchase,P21,Childrens Services,IONET SYSTEMS LTD,08/04/2020,1008
Bath and North East Somerset Council,10933059,HA2,Servicing,P19,Resources and Deputy Leader,MANNINGS FACILITIES MANAGEMENT LTD,08/04/2020,1011.17
Bath and North East Somerset Council,10933123,PB4,Payments to Private Contractors,P22,Climate Emergency & Neighbourhood Services,CLEANSING SERVICE GROUP LTD,08/04/2020,1042.12
Bath and North East Somerset Council,10933064,HA2,Servicing,P19,Resources and Deputy Leader,MANNINGS FACILITIES MANAGEMENT LTD,08/04/2020,1090.53
Bath and North East Somerset Council,10933187,HN1,Electricity,P22,Climate Emergency & Neighbourhood Services,EDF ENERGY,08/04/2020,1468.65
Bath and North East Somerset Council,10933324,HA6,Planned Maintenance PCB,P19,Resources and Deputy Leader,HORDERS,08/04/2020,1480.43
Bath and North East Somerset Council,10933249,3F7,PCB External Fees,P19,Resources and Deputy Leader,CAPITA SYMONDS,08/04/2020,1549.8
Bath and North East Somerset Council,10931157,EA1,Training,P24,Community Services,KAPLAN FINANCIAL LTD,08/04/2020,1640.16
Bath and North East Somerset Council,10933250,3F7,PCB External Fees,P19,Resources and Deputy Leader,CAPITA SYMONDS,08/04/2020,2066.4
Bath and North East Somerset Council,10933317,3C4,Building Works,P25,Transport Services,TRAFFIC GB LTD,08/04/2020,2250
Bath and North East Somerset Council,10933320,LM2,Foster Carer Allowances,P21,Childrens Services,NATIONAL FOSTERING AGENCY,08/04/2020,3329.4
Bath and North East Somerset Council,10933321,LM2,Foster Carer Allowances,P21,Childrens Services,NATIONAL FOSTERING AGENCY,08/04/2020,3329.4
Bath and North East Somerset Council,10933305,LM2,Foster Carer Allowances,P21,Childrens Services,NATIONAL FOSTERING AGENCY,08/04/2020,3359.57
Bath and North East Somerset Council,10933052,HA2,Servicing,P19,Resources and Deputy Leader,MANNINGS FACILITIES MANAGEMENT LTD,08/04/2020,3410
Bath and North East Somerset Council,10933254,3C4,Building Works,P19,Resources and Deputy Leader,N K S CONTRACTS LTD,08/04/2020,3626.75
Bath and North East Somerset Council,10933285,YF2,Fees & Charges,P23,"Housing, Planning & Economic Development",REDACTED,08/04/2020,535
Bath and North East Somerset Council,10933359,LD1,Protective & Safety Clothing,P25,Transport Services,K.I.T. CO,08/04/2020,4315.68
Bath and North East Somerset Council,10933303,LK1,Fees,P23,"Housing, Planning & Economic Development",AARON EVANS ARCHITECTS LTD,08/04/2020,4642.75
Bath and North East Somerset Council,10933243,HA1,Responsive Maintenance,P24,Community Services,MANNINGS FACILITIES MANAGEMENT LTD,08/04/2020,5178.52
Bath and North East Somerset Council,10933337,LP1,Hardware Purchase,P19,Resources and Deputy Leader,SELECT ELECTRICS LTD,08/04/2020,6298
Bath and North East Somerset Council,10933302,PC1,Precepts,Z99,Outside Revenue Accounts,STANTON DREW PARISH COUNCIL,08/04/2020,9012.5
Bath and North East Somerset Council,10933336,3E5,PCB IT Hardware,P23,"Housing, Planning & Economic Development",SELECT ELECTRICS LTD,08/04/2020,11010
Bath and North East Somerset Council,10933294,LK1,Fees,P24,Community Services,VIRGIN CARE SERVICES LTD,08/04/2020,11525
Bath and North East Somerset Council,10933256,3C4,Building Works,P19,Resources and Deputy Leader,BATH CONTRACT FLOORING LTD,08/04/2020,12000
Bath and North East Somerset Council,10933351,LJ1,Consultants Fees,P25,Transport Services,CH2M HILL UK,08/04/2020,12674.76
Bath and North East Somerset Council,10933341,LM1,Volunt Homes Placements Top/Up,P21,Childrens Services,NEW FOREST CARE LTD,08/04/2020,13464.29
Bath and North East Somerset Council,10933325,LM2,Foster Carer Allowances,P21,Childrens Services,WESSEX COLLEGE,08/04/2020,15750
Bath and North East Somerset Council,10933263,LJ4,Contracts,P20,Adult Services,TARGETT BUSINESS TECHNOLOGY LIMITED,08/04/2020,16750
Bath and North East Somerset Council,10933340,LM1,Volunt Homes Placements Top/Up,P21,Childrens Services,NEW FOREST CARE LTD,08/04/2020,19285.71
Bath and North East Somerset Council,10933304,LM1,Volunt Homes Placements Top/Up,P21,Childrens Services,CAMBIAN CHILDCARE LIMITED,08/04/2020,19285.8
Bath and North East Somerset Council,10933262,LJ4,Contracts,P20,Adult Services,TARGETT BUSINESS TECHNOLOGY LIMITED,08/04/2020,33500
Bath and North East Somerset Council,10933256,3C4,Building Works,P19,Resources and Deputy Leader,BATH CONTRACT FLOORING LTD,08/04/2020,44140
Bath and North East Somerset Council,80909548,LL8,Individualised Budget,P20,Adult Services,REDACTED,09/04/2020,5547.18
Bath and North East Somerset Council,80909927,PG4,Support Grants,P19,Resources and Deputy Leader,COVID-19 BUSINESS GRANT,09/04/2020,25000
Bath and North East Somerset Council,80909862,LL3,Supported Living,P20,Adult Services,UNITED RESPONSE,09/04/2020,0.04
Bath and North East Somerset Council,80909862,LM9,Day Care,P20,Adult Services,UNITED RESPONSE,09/04/2020,1.02
Bath and North East Somerset Council,10933460,LN4,Mobile Phones,P19,Resources and Deputy Leader,EE LIMITED,09/04/2020,3.96
Bath and North East Somerset Council,80909941,PG4,Support Grants,P19,Resources and Deputy Leader,COVID-19 BUSINESS GRANT,09/04/2020,10000
Bath and North East Somerset Council,80909838,LL3,Supported Living,P20,Adult Services,VIRGIN CARE SERVICES LTD,09/04/2020,42.64
Bath and North East Somerset Council,80909989,PG4,Support Grants,P19,Resources and Deputy Leader,COVID-19 BUSINESS GRANT,09/04/2020,10000
Bath and North East Somerset Council,80909782,LM3,Residential Care,P20,Adult Services,ACACIA CARE (NOTTINGHAM) LTD,09/04/2020,1320
Bath and North East Somerset Council,80909295,LM6,Nursing Care,P20,Adult Services,ACCOMPLISH GROUP SUPPORT LIMITED,09/04/2020,7055.86
Bath and North East Somerset Council,80909836,LL3,Supported Living,P20,Adult Services,ST MUNGO'S COMMUNITY HOUSING ASSOCIATION LTD,09/04/2020,64.64
Bath and North East Somerset Council,80909867,LM8,Home Care,P20,Adult Services,ACTIVE ASSISTANCE,09/04/2020,5696.43
Bath and North East Somerset Council,80909981,PG4,Support Grants,P19,Resources and Deputy Leader,COVID-19 BUSINESS GRANT,09/04/2020,10000
Bath and North East Somerset Council,80909869,LM8,Home Care,P20,Adult Services,AGINCARE LIVE IN CARE SERVICES LTD,09/04/2020,1400
Bath and North East Somerset Council,80909869,LM8,Home Care,P20,Adult Services,AGINCARE LIVE IN CARE SERVICES LTD,09/04/2020,1530.06
Bath and North East Somerset Council,80909869,LM8,Home Care,P20,Adult Services,AGINCARE LIVE IN CARE SERVICES LTD,09/04/2020,1700.02
Bath and North East Somerset Council,80909403,LL8,Individualised Budget,P20,Adult Services,REDACTED,09/04/2020,2015.3
Bath and North East Somerset Council,80909497,LL8,Individualised Budget,P20,Adult Services,REDACTED,09/04/2020,2969
Bath and North East Somerset Council,80909712,LM3,Residential Care,P20,Adult Services,ALEXANDRA HOMES (BRISTOL) LTD,09/04/2020,3747.84
Bath and North East Somerset Council,80909712,LM3,Residential Care,P20,Adult Services,ALEXANDRA HOMES (BRISTOL) LTD,09/04/2020,3747.84
Bath and North East Somerset Council,80909426,LL8,Individualised Budget,P20,Adult Services,REDACTED,09/04/2020,640.5
Bath and North East Somerset Council,80909360,LL8,Individualised Budget,P20,Adult Services,REDACTED,09/04/2020,696.84
Bath and North East Somerset Council,80909863,LM8,Home Care,P20,Adult Services,AMBER HOMECARE LTD,09/04/2020,417.9
Bath and North East Somerset Council,80909863,LM8,Home Care,P20,Adult Services,AMBER HOMECARE LTD,09/04/2020,450.45
Bath and North East Somerset Council,80909863,LM8,Home Care,P20,Adult Services,AMBER HOMECARE LTD,09/04/2020,474.6
Bath and North East Somerset Council,80909863,LM8,Home Care,P20,Adult Services,AMBER HOMECARE LTD,09/04/2020,507.15
Bath and North East Somerset Council,80909863,LM8,Home Care,P20,Adult Services,AMBER HOMECARE LTD,09/04/2020,585.9
Bath and North East Somerset Council,80909863,LM8,Home Care,P20,Adult Services,AMBER HOMECARE LTD,09/04/2020,966
Bath and North East Somerset Council,80909863,LM8,Home Care,P20,Adult Services,AMBER HOMECARE LTD,09/04/2020,1155
Bath and North East Somerset Council,80909863,LM8,Home Care,P20,Adult Services,AMBER HOMECARE LTD,09/04/2020,1238.57
Bath and North East Somerset Council,80909863,LM8,Home Care,P20,Adult Services,AMBER HOMECARE LTD,09/04/2020,1764
Bath and North East Somerset Council,80909863,LM8,Home Care,P20,Adult Services,AMBER HOMECARE LTD,09/04/2020,1795.5
Bath and North East Somerset Council,80909838,LL3,Supported Living,P20,Adult Services,VIRGIN CARE SERVICES LTD,09/04/2020,106.6
Bath and North East Somerset Council,80909863,LM8,Home Care,P20,Adult Services,AMBER HOMECARE LTD,09/04/2020,2543
Bath and North East Somerset Council,80909586,LL8,Individualised Budget,P20,Adult Services,REDACTED,09/04/2020,703.5
Bath and North East Somerset Council,80909838,LL3,Supported Living,P20,Adult Services,VIRGIN CARE SERVICES LTD,09/04/2020,127.92
Bath and North East Somerset Council,80909834,LL3,Supported Living,P20,Adult Services,ARCH CARE SERVICES,09/04/2020,74.92
Bath and North East Somerset Council,80909834,LL3,Supported Living,P20,Adult Services,ARCH CARE SERVICES,09/04/2020,112.38
Bath and North East Somerset Council,80909838,LL3,Supported Living,P20,Adult Services,VIRGIN CARE SERVICES LTD,09/04/2020,138.58
Bath and North East Somerset Council,80909834,LL3,Supported Living,P20,Adult Services,ARCH CARE SERVICES,09/04/2020,149.84
Bath and North East Somerset Council,80909834,LL3,Supported Living,P20,Adult Services,ARCH CARE SERVICES,09/04/2020,149.84
Bath and North East Somerset Council,80909834,LL3,Supported Living,P20,Adult Services,ARCH CARE SERVICES,09/04/2020,149.84
Bath and North East Somerset Council,80909834,LL3,Supported Living,P20,Adult Services,ARCH CARE SERVICES,09/04/2020,187.3
Bath and North East Somerset Council,80909834,LL3,Supported Living,P20,Adult Services,ARCH CARE SERVICES,09/04/2020,187.3
Bath and North East Somerset Council,80909834,LL3,Supported Living,P20,Adult Services,ARCH CARE SERVICES,09/04/2020,187.3
Bath and North East Somerset Council,80909834,LL3,Supported Living,P20,Adult Services,ARCH CARE SERVICES,09/04/2020,224.76
Bath and North East Somerset Council,80909834,LL3,Supported Living,P20,Adult Services,ARCH CARE SERVICES,09/04/2020,224.76
Bath and North East Somerset Council,80909834,LL3,Supported Living,P20,Adult Services,ARCH CARE SERVICES,09/04/2020,262.22
Bath and North East Somerset Council,80909834,LL3,Supported Living,P20,Adult Services,ARCH CARE SERVICES,09/04/2020,262.22
Bath and North East Somerset Council,80909834,LL3,Supported Living,P20,Adult Services,ARCH CARE SERVICES,09/04/2020,412.06
Bath and North East Somerset Council,80909834,LL3,Supported Living,P20,Adult Services,ARCH CARE SERVICES,09/04/2020,969.1
Bath and North East Somerset Council,80909834,LL3,Supported Living,P20,Adult Services,ARCH CARE SERVICES,09/04/2020,969.1
Bath and North East Somerset Council,80909834,LL3,Supported Living,P20,Adult Services,ARCH CARE SERVICES,09/04/2020,969.1
Bath and North East Somerset Council,80909834,LL3,Supported Living,P20,Adult Services,ARCH CARE SERVICES,09/04/2020,969.1
Bath and North East Somerset Council,80909834,LL3,Supported Living,P20,Adult Services,ARCH CARE SERVICES,09/04/2020,969.1
Bath and North East Somerset Council,80909834,LL3,Supported Living,P20,Adult Services,ARCH CARE SERVICES,09/04/2020,969.1
Bath and North East Somerset Council,80909834,LL3,Supported Living,P20,Adult Services,ARCH CARE SERVICES,09/04/2020,969.1
Bath and North East Somerset Council,80909834,LL3,Supported Living,P20,Adult Services,ARCH CARE SERVICES,09/04/2020,1044.02
Bath and North East Somerset Council,80909834,LL3,Supported Living,P20,Adult Services,ARCH CARE SERVICES,09/04/2020,1193.86
Bath and North East Somerset Council,80909819,LM3,Residential Care,P20,Adult Services,ARTI CARE HOMES (SOUTHWEST) LTD,09/04/2020,1180.74
Bath and North East Somerset Council,80909819,LM3,Residential Care,P20,Adult Services,ARTI CARE HOMES (SOUTHWEST) LTD,09/04/2020,1180.74
Bath and North East Somerset Council,80909819,LM3,Residential Care,P20,Adult Services,ARTI CARE HOMES (SOUTHWEST) LTD,09/04/2020,1180.74
Bath and North East Somerset Council,80909819,LM3,Residential Care,P20,Adult Services,ARTI CARE HOMES (SOUTHWEST) LTD,09/04/2020,1180.74
Bath and North East Somerset Council,80909819,LM3,Residential Care,P20,Adult Services,ARTI CARE HOMES (SOUTHWEST) LTD,09/04/2020,1180.74
Bath and North East Somerset Council,80909819,LM3,Residential Care,P20,Adult Services,ARTI CARE HOMES (SOUTHWEST) LTD,09/04/2020,1250
Bath and North East Somerset Council,80909819,LM3,Residential Care,P20,Adult Services,ARTI CARE HOMES (SOUTHWEST) LTD,09/04/2020,1250
Bath and North East Somerset Council,80909819,LM3,Residential Care,P20,Adult Services,ARTI CARE HOMES (SOUTHWEST) LTD,09/04/2020,1250
Bath and North East Somerset Council,80909819,LM3,Residential Care,P20,Adult Services,ARTI CARE HOMES (SOUTHWEST) LTD,09/04/2020,1300
Bath and North East Somerset Council,80909819,LM3,Residential Care,P20,Adult Services,ARTI CARE HOMES (SOUTHWEST) LTD,09/04/2020,1310
Bath and North East Somerset Council,80909819,LM3,Residential Care,P20,Adult Services,ARTI CARE HOMES (SOUTHWEST) LTD,09/04/2020,1313
Bath and North East Somerset Council,80909819,LM3,Residential Care,P20,Adult Services,ARTI CARE HOMES (SOUTHWEST) LTD,09/04/2020,1400
Bath and North East Somerset Council,80909806,LM3,Residential Care,P20,Adult Services,ARTI SERVICES LTD T/A THE MANOR FARM HOUSE,09/04/2020,1139.52
Bath and North East Somerset Council,80909806,LM3,Residential Care,P20,Adult Services,ARTI SERVICES LTD T/A THE MANOR FARM HOUSE,09/04/2020,1180.74
Bath and North East Somerset Council,80909806,LM3,Residential Care,P20,Adult Services,ARTI SERVICES LTD T/A THE MANOR FARM HOUSE,09/04/2020,1180.74
Bath and North East Somerset Council,80909806,LM3,Residential Care,P20,Adult Services,ARTI SERVICES LTD T/A THE MANOR FARM HOUSE,09/04/2020,1180.74
Bath and North East Somerset Council,80909806,LM3,Residential Care,P20,Adult Services,ARTI SERVICES LTD T/A THE MANOR FARM HOUSE,09/04/2020,1200
Bath and North East Somerset Council,80909806,LM3,Residential Care,P20,Adult Services,ARTI SERVICES LTD T/A THE MANOR FARM HOUSE,09/04/2020,1239.52
Bath and North East Somerset Council,80909806,LM3,Residential Care,P20,Adult Services,ARTI SERVICES LTD T/A THE MANOR FARM HOUSE,09/04/2020,1300
Bath and North East Somerset Council,80909806,LM3,Residential Care,P20,Adult Services,ARTI SERVICES LTD T/A THE MANOR FARM HOUSE,09/04/2020,1411.28
Bath and North East Somerset Council,80909806,LM3,Residential Care,P20,Adult Services,ARTI SERVICES LTD T/A THE MANOR FARM HOUSE,09/04/2020,1461.28
Bath and North East Somerset Council,80909702,LM3,Residential Care,P20,Adult Services,AUTISM SPECIALISED CARE HOMES LTD,09/04/2020,2773.3
Bath and North East Somerset Council,80909958,PG4,Support Grants,P19,Resources and Deputy Leader,COVID-19 BUSINESS GRANT,09/04/2020,10000
Bath and North East Somerset Council,80909428,LL8,Individualised Budget,P20,Adult Services,REDACTED,09/04/2020,1554
Bath and North East Somerset Council,80909664,LM6,Nursing Care,P20,Adult Services,BARCHESTER HEALTH CARE,09/04/2020,331.12
Bath and North East Somerset Council,80909664,LM6,Nursing Care,P20,Adult Services,BARCHESTER HEALTH CARE,09/04/2020,331.12
Bath and North East Somerset Council,80909664,LM6,Nursing Care,P20,Adult Services,BARCHESTER HEALTH CARE,09/04/2020,331.12
Bath and North East Somerset Council,80909664,LM6,Nursing Care,P20,Adult Services,BARCHESTER HEALTH CARE,09/04/2020,331.12
Bath and North East Somerset Council,80909664,LM6,Nursing Care,P20,Adult Services,BARCHESTER HEALTH CARE,09/04/2020,331.12
Bath and North East Somerset Council,80909664,LM6,Nursing Care,P20,Adult Services,BARCHESTER HEALTH CARE,09/04/2020,331.12
Bath and North East Somerset Council,80909664,LM6,Nursing Care,P20,Adult Services,BARCHESTER HEALTH CARE,09/04/2020,331.12
Bath and North East Somerset Council,80909664,LM6,Nursing Care,P20,Adult Services,BARCHESTER HEALTH CARE,09/04/2020,331.12
Bath and North East Somerset Council,80909664,LM6,Nursing Care,P20,Adult Services,BARCHESTER HEALTH CARE,09/04/2020,331.12
Bath and North East Somerset Council,80909664,LM6,Nursing Care,P20,Adult Services,BARCHESTER HEALTH CARE,09/04/2020,331.12
Bath and North East Somerset Council,80909664,LM6,Nursing Care,P20,Adult Services,BARCHESTER HEALTH CARE,09/04/2020,331.12
Bath and North East Somerset Council,80909664,LM6,Nursing Care,P20,Adult Services,BARCHESTER HEALTH CARE,09/04/2020,331.12
Bath and North East Somerset Council,80909664,LM6,Nursing Care,P20,Adult Services,BARCHESTER HEALTH CARE,09/04/2020,331.12
Bath and North East Somerset Council,80909664,LM6,Nursing Care,P20,Adult Services,BARCHESTER HEALTH CARE,09/04/2020,331.12
Bath and North East Somerset Council,80909664,LM6,Nursing Care,P20,Adult Services,BARCHESTER HEALTH CARE,09/04/2020,331.12
Bath and North East Somerset Council,80909664,LM6,Nursing Care,P20,Adult Services,BARCHESTER HEALTH CARE,09/04/2020,331.12
Bath and North East Somerset Council,80909664,LM6,Nursing Care,P20,Adult Services,BARCHESTER HEALTH CARE,09/04/2020,331.12
Bath and North East Somerset Council,80909664,LM6,Nursing Care,P20,Adult Services,BARCHESTER HEALTH CARE,09/04/2020,331.12
Bath and North East Somerset Council,80909664,LM6,Nursing Care,P20,Adult Services,BARCHESTER HEALTH CARE,09/04/2020,331.12
Bath and North East Somerset Council,80909664,LM6,Nursing Care,P20,Adult Services,BARCHESTER HEALTH CARE,09/04/2020,331.12
Bath and North East Somerset Council,80909664,LM6,Nursing Care,P20,Adult Services,BARCHESTER HEALTH CARE,09/04/2020,331.12
Bath and North East Somerset Council,80909664,LM6,Nursing Care,P20,Adult Services,BARCHESTER HEALTH CARE,09/04/2020,331.12
Bath and North East Somerset Council,80909664,LM6,Nursing Care,P20,Adult Services,BARCHESTER HEALTH CARE,09/04/2020,331.12
Bath and North East Somerset Council,80909664,LM6,Nursing Care,P20,Adult Services,BARCHESTER HEALTH CARE,09/04/2020,331.12
Bath and North East Somerset Council,80909817,LM6,Nursing Care,P20,Adult Services,BARCHESTER HEALTH CARE,09/04/2020,1478.4
Bath and North East Somerset Council,80909817,LM6,Nursing Care,P20,Adult Services,BARCHESTER HEALTH CARE,09/04/2020,1489.9
Bath and North East Somerset Council,80909817,LM6,Nursing Care,P20,Adult Services,BARCHESTER HEALTH CARE,09/04/2020,1568.88
Bath and North East Somerset Council,80909817,LM6,Nursing Care,P20,Adult Services,BARCHESTER HEALTH CARE,09/04/2020,1628.4
Bath and North East Somerset Council,80909817,LM6,Nursing Care,P20,Adult Services,BARCHESTER HEALTH CARE,09/04/2020,1628.4
Bath and North East Somerset Council,80909817,LM6,Nursing Care,P20,Adult Services,BARCHESTER HEALTH CARE,09/04/2020,1654.88
Bath and North East Somerset Council,80909817,LM6,Nursing Care,P20,Adult Services,BARCHESTER HEALTH CARE,09/04/2020,1664.88
Bath and North East Somerset Council,80909838,LL3,Supported Living,P20,Adult Services,VIRGIN CARE SERVICES LTD,09/04/2020,170.56
Bath and North East Somerset Council,80909817,LM6,Nursing Care,P20,Adult Services,BARCHESTER HEALTH CARE,09/04/2020,1669.68
Bath and North East Somerset Council,80909691,LM3,Residential Care,P20,Adult Services,ASPECTS & MILESTONES TRUST,09/04/2020,177.78
Bath and North East Somerset Council,80909817,LM6,Nursing Care,P20,Adult Services,BARCHESTER HEALTH CARE,09/04/2020,1868.88
Bath and North East Somerset Council,80909817,LM6,Nursing Care,P20,Adult Services,BARCHESTER HEALTH CARE,09/04/2020,2125.56
Bath and North East Somerset Council,80909817,LM6,Nursing Care,P20,Adult Services,BARCHESTER HEALTH CARE,09/04/2020,2378.4
Bath and North East Somerset Council,80909817,LM6,Nursing Care,P20,Adult Services,BARCHESTER HEALTH CARE,09/04/2020,2463.68
Bath and North East Somerset Council,80909817,LM3,Residential Care,P20,Adult Services,BARCHESTER HEALTH CARE,09/04/2020,2835.88
Bath and North East Somerset Council,80909817,LM6,Nursing Care,P20,Adult Services,BARCHESTER HEALTH CARE,09/04/2020,2960
Bath and North East Somerset Council,80909838,LL3,Supported Living,P20,Adult Services,VIRGIN CARE SERVICES LTD,09/04/2020,191.88
Bath and North East Somerset Council,80909838,LL3,Supported Living,P20,Adult Services,VIRGIN CARE SERVICES LTD,09/04/2020,191.88
Bath and North East Somerset Council,80909836,LL3,Supported Living,P20,Adult Services,ST MUNGO'S COMMUNITY HOUSING ASSOCIATION LTD,09/04/2020,192
Bath and North East Somerset Council,80909654,LM6,Nursing Care,P20,Adult Services,BARCHESTER HEALTHCARE HOMES LTD,09/04/2020,331.12
Bath and North East Somerset Council,80909654,LM6,Nursing Care,P20,Adult Services,BARCHESTER HEALTHCARE HOMES LTD,09/04/2020,331.12
Bath and North East Somerset Council,80909654,LM6,Nursing Care,P20,Adult Services,BARCHESTER HEALTHCARE HOMES LTD,09/04/2020,331.12
Bath and North East Somerset Council,80909654,LM6,Nursing Care,P20,Adult Services,BARCHESTER HEALTHCARE HOMES LTD,09/04/2020,331.12
Bath and North East Somerset Council,80909654,LM6,Nursing Care,P20,Adult Services,BARCHESTER HEALTHCARE HOMES LTD,09/04/2020,331.12
Bath and North East Somerset Council,80909654,LM6,Nursing Care,P20,Adult Services,BARCHESTER HEALTHCARE HOMES LTD,09/04/2020,331.12
Bath and North East Somerset Council,80909654,LM6,Nursing Care,P20,Adult Services,BARCHESTER HEALTHCARE HOMES LTD,09/04/2020,331.12
Bath and North East Somerset Council,80909654,LM6,Nursing Care,P20,Adult Services,BARCHESTER HEALTHCARE HOMES LTD,09/04/2020,331.12
Bath and North East Somerset Council,80909654,LM6,Nursing Care,P20,Adult Services,BARCHESTER HEALTHCARE HOMES LTD,09/04/2020,331.12
Bath and North East Somerset Council,80909654,LM6,Nursing Care,P20,Adult Services,BARCHESTER HEALTHCARE HOMES LTD,09/04/2020,331.12
Bath and North East Somerset Council,80909654,LM6,Nursing Care,P20,Adult Services,BARCHESTER HEALTHCARE HOMES LTD,09/04/2020,331.12
Bath and North East Somerset Council,80909654,LM6,Nursing Care,P20,Adult Services,BARCHESTER HEALTHCARE HOMES LTD,09/04/2020,331.12
Bath and North East Somerset Council,80909654,LM6,Nursing Care,P20,Adult Services,BARCHESTER HEALTHCARE HOMES LTD,09/04/2020,331.12
Bath and North East Somerset Council,80909654,LM6,Nursing Care,P20,Adult Services,BARCHESTER HEALTHCARE HOMES LTD,09/04/2020,331.12
Bath and North East Somerset Council,80909654,LM6,Nursing Care,P20,Adult Services,BARCHESTER HEALTHCARE HOMES LTD,09/04/2020,331.12
Bath and North East Somerset Council,80909654,LM6,Nursing Care,P20,Adult Services,BARCHESTER HEALTHCARE HOMES LTD,09/04/2020,331.12
Bath and North East Somerset Council,80909654,LM6,Nursing Care,P20,Adult Services,BARCHESTER HEALTHCARE HOMES LTD,09/04/2020,331.12
Bath and North East Somerset Council,80909654,LM6,Nursing Care,P20,Adult Services,BARCHESTER HEALTHCARE HOMES LTD,09/04/2020,331.12
Bath and North East Somerset Council,80909654,LM6,Nursing Care,P20,Adult Services,BARCHESTER HEALTHCARE HOMES LTD,09/04/2020,331.12
Bath and North East Somerset Council,80909654,LM6,Nursing Care,P20,Adult Services,BARCHESTER HEALTHCARE HOMES LTD,09/04/2020,331.12
Bath and North East Somerset Council,80909654,LM6,Nursing Care,P20,Adult Services,BARCHESTER HEALTHCARE HOMES LTD,09/04/2020,331.12
Bath and North East Somerset Council,80909654,LM6,Nursing Care,P20,Adult Services,BARCHESTER HEALTHCARE HOMES LTD,09/04/2020,331.12
Bath and North East Somerset Council,80909654,LM6,Nursing Care,P20,Adult Services,BARCHESTER HEALTHCARE HOMES LTD,09/04/2020,331.12
Bath and North East Somerset Council,80909654,LM6,Nursing Care,P20,Adult Services,BARCHESTER HEALTHCARE HOMES LTD,09/04/2020,331.12
Bath and North East Somerset Council,80909654,LM6,Nursing Care,P20,Adult Services,BARCHESTER HEALTHCARE HOMES LTD,09/04/2020,331.12
Bath and North East Somerset Council,80909654,LM6,Nursing Care,P20,Adult Services,BARCHESTER HEALTHCARE HOMES LTD,09/04/2020,331.12
Bath and North East Somerset Council,80909654,LM6,Nursing Care,P20,Adult Services,BARCHESTER HEALTHCARE HOMES LTD,09/04/2020,331.12
Bath and North East Somerset Council,80909654,LM6,Nursing Care,P20,Adult Services,BARCHESTER HEALTHCARE HOMES LTD,09/04/2020,331.12
Bath and North East Somerset Council,80909654,LM6,Nursing Care,P20,Adult Services,BARCHESTER HEALTHCARE HOMES LTD,09/04/2020,331.12
Bath and North East Somerset Council,80909838,LL3,Supported Living,P20,Adult Services,VIRGIN CARE SERVICES LTD,09/04/2020,213.2
Bath and North East Somerset Council,80909838,LL3,Supported Living,P20,Adult Services,VIRGIN CARE SERVICES LTD,09/04/2020,213.2
Bath and North East Somerset Council,80909654,LM6,Nursing Care,P20,Adult Services,BARCHESTER HEALTHCARE HOMES LTD,09/04/2020,331.12
Bath and North East Somerset Council,80909654,LM6,Nursing Care,P20,Adult Services,BARCHESTER HEALTHCARE HOMES LTD,09/04/2020,331.12
Bath and North East Somerset Council,80909654,LM6,Nursing Care,P20,Adult Services,BARCHESTER HEALTHCARE HOMES LTD,09/04/2020,331.12
Bath and North East Somerset Council,80909654,LM6,Nursing Care,P20,Adult Services,BARCHESTER HEALTHCARE HOMES LTD,09/04/2020,331.12
Bath and North East Somerset Council,80909654,LM6,Nursing Care,P20,Adult Services,BARCHESTER HEALTHCARE HOMES LTD,09/04/2020,331.12
Bath and North East Somerset Council,80909654,LM6,Nursing Care,P20,Adult Services,BARCHESTER HEALTHCARE HOMES LTD,09/04/2020,331.12
Bath and North East Somerset Council,80909654,LM6,Nursing Care,P20,Adult Services,BARCHESTER HEALTHCARE HOMES LTD,09/04/2020,331.12
Bath and North East Somerset Council,80909654,LM6,Nursing Care,P20,Adult Services,BARCHESTER HEALTHCARE HOMES LTD,09/04/2020,331.12
Bath and North East Somerset Council,80909654,LM6,Nursing Care,P20,Adult Services,BARCHESTER HEALTHCARE HOMES LTD,09/04/2020,331.12
Bath and North East Somerset Council,80909654,LM6,Nursing Care,P20,Adult Services,BARCHESTER HEALTHCARE HOMES LTD,09/04/2020,331.12
Bath and North East Somerset Council,80909654,LM6,Nursing Care,P20,Adult Services,BARCHESTER HEALTHCARE HOMES LTD,09/04/2020,331.12
Bath and North East Somerset Council,80909654,LM6,Nursing Care,P20,Adult Services,BARCHESTER HEALTHCARE HOMES LTD,09/04/2020,331.12
Bath and North East Somerset Council,80909654,LM6,Nursing Care,P20,Adult Services,BARCHESTER HEALTHCARE HOMES LTD,09/04/2020,331.12
Bath and North East Somerset Council,80909654,LM6,Nursing Care,P20,Adult Services,BARCHESTER HEALTHCARE HOMES LTD,09/04/2020,331.12
Bath and North East Somerset Council,80909654,LM6,Nursing Care,P20,Adult Services,BARCHESTER HEALTHCARE HOMES LTD,09/04/2020,331.12
Bath and North East Somerset Council,80909654,LM6,Nursing Care,P20,Adult Services,BARCHESTER HEALTHCARE HOMES LTD,09/04/2020,331.12
Bath and North East Somerset Council,80909654,LM6,Nursing Care,P20,Adult Services,BARCHESTER HEALTHCARE HOMES LTD,09/04/2020,331.12
Bath and North East Somerset Council,80909654,LM6,Nursing Care,P20,Adult Services,BARCHESTER HEALTHCARE HOMES LTD,09/04/2020,331.12
Bath and North East Somerset Council,80909795,LM3,Residential Care,P20,Adult Services,BARCHESTER HEALTHCARE HOMES LTD,09/04/2020,1080.76
Bath and North East Somerset Council,80909795,LM3,Residential Care,P20,Adult Services,BARCHESTER HEALTHCARE HOMES LTD,09/04/2020,1139.52
Bath and North East Somerset Council,80909795,LM6,Nursing Care,P20,Adult Services,BARCHESTER HEALTHCARE HOMES LTD,09/04/2020,1145.6
Bath and North East Somerset Council,80909795,LM6,Nursing Care,P20,Adult Services,BARCHESTER HEALTHCARE HOMES LTD,09/04/2020,1145.6
Bath and North East Somerset Council,80909795,LM6,Nursing Care,P20,Adult Services,BARCHESTER HEALTHCARE HOMES LTD,09/04/2020,1145.6
Bath and North East Somerset Council,80909795,LM6,Nursing Care,P20,Adult Services,BARCHESTER HEALTHCARE HOMES LTD,09/04/2020,1145.6
Bath and North East Somerset Council,80909795,LM6,Nursing Care,P20,Adult Services,BARCHESTER HEALTHCARE HOMES LTD,09/04/2020,1145.6
Bath and North East Somerset Council,80909795,LM3,Residential Care,P20,Adult Services,BARCHESTER HEALTHCARE HOMES LTD,09/04/2020,1200
Bath and North East Somerset Council,80909795,LM6,Nursing Care,P20,Adult Services,BARCHESTER HEALTHCARE HOMES LTD,09/04/2020,1278.4
Bath and North East Somerset Council,80909795,LM6,Nursing Care,P20,Adult Services,BARCHESTER HEALTHCARE HOMES LTD,09/04/2020,1294.4
Bath and North East Somerset Council,80909795,LM3,Residential Care,P20,Adult Services,BARCHESTER HEALTHCARE HOMES LTD,09/04/2020,1300
Bath and North East Somerset Council,80909795,LM6,Nursing Care,P20,Adult Services,BARCHESTER HEALTHCARE HOMES LTD,09/04/2020,1383.68
Bath and North East Somerset Council,80909795,LM3,Residential Care,P20,Adult Services,BARCHESTER HEALTHCARE HOMES LTD,09/04/2020,1400
Bath and North East Somerset Council,80909293,LM6,Nursing Care,P20,Adult Services,BARCHESTER HEALTHCARE HOMES LTD,09/04/2020,1539.26
Bath and North East Somerset Council,80909795,LM6,Nursing Care,P20,Adult Services,BARCHESTER HEALTHCARE HOMES LTD,09/04/2020,1568.88
Bath and North East Somerset Council,80909795,LM6,Nursing Care,P20,Adult Services,BARCHESTER HEALTHCARE HOMES LTD,09/04/2020,1588.88
Bath and North East Somerset Council,80909795,LM6,Nursing Care,P20,Adult Services,BARCHESTER HEALTHCARE HOMES LTD,09/04/2020,1596.4
Bath and North East Somerset Council,80909795,LM6,Nursing Care,P20,Adult Services,BARCHESTER HEALTHCARE HOMES LTD,09/04/2020,1639.9
Bath and North East Somerset Council,80909795,LM6,Nursing Care,P20,Adult Services,BARCHESTER HEALTHCARE HOMES LTD,09/04/2020,1639.9
Bath and North East Somerset Council,80909795,LM6,Nursing Care,P20,Adult Services,BARCHESTER HEALTHCARE HOMES LTD,09/04/2020,1648.48
Bath and North East Somerset Council,80909293,LM6,Nursing Care,P20,Adult Services,BARCHESTER HEALTHCARE HOMES LTD,09/04/2020,1765.48
Bath and North East Somerset Council,80909795,LM6,Nursing Care,P20,Adult Services,BARCHESTER HEALTHCARE HOMES LTD,09/04/2020,1989.9
Bath and North East Somerset Council,80909795,LM3,Residential Care,P20,Adult Services,BARCHESTER HEALTHCARE HOMES LTD,09/04/2020,2200
Bath and North East Somerset Council,80909795,XD3,Client Contributions,P20,Adult Services,BARCHESTER HEALTHCARE HOMES LTD,09/04/2020,2359.65
Bath and North East Somerset Council,80909293,LM6,Nursing Care,P20,Adult Services,BARCHESTER HEALTHCARE HOMES LTD,09/04/2020,2373.5
Bath and North East Somerset Council,80909795,LM6,Nursing Care,P20,Adult Services,BARCHESTER HEALTHCARE HOMES LTD,09/04/2020,39600
Bath and North East Somerset Council,80909313,LM6,Nursing Care,P20,Adult Services,BARCHESTER HEALTHCARE HOMES LTD - HENFORD HOUSE,09/04/2020,2020
Bath and North East Somerset Council,80909660,LM6,Nursing Care,P20,Adult Services,BARKER CHEMICALS LTD T/A ST TERESA'S NH,09/04/2020,331.12
Bath and North East Somerset Council,80909660,LM6,Nursing Care,P20,Adult Services,BARKER CHEMICALS LTD T/A ST TERESA'S NH,09/04/2020,331.12
Bath and North East Somerset Council,80909660,LM6,Nursing Care,P20,Adult Services,BARKER CHEMICALS LTD T/A ST TERESA'S NH,09/04/2020,331.12
Bath and North East Somerset Council,80909660,LM6,Nursing Care,P20,Adult Services,BARKER CHEMICALS LTD T/A ST TERESA'S NH,09/04/2020,331.12
Bath and North East Somerset Council,80909660,LM6,Nursing Care,P20,Adult Services,BARKER CHEMICALS LTD T/A ST TERESA'S NH,09/04/2020,331.12
Bath and North East Somerset Council,80909660,LM6,Nursing Care,P20,Adult Services,BARKER CHEMICALS LTD T/A ST TERESA'S NH,09/04/2020,331.12
Bath and North East Somerset Council,80909660,LM6,Nursing Care,P20,Adult Services,BARKER CHEMICALS LTD T/A ST TERESA'S NH,09/04/2020,331.12
Bath and North East Somerset Council,80909660,LM6,Nursing Care,P20,Adult Services,BARKER CHEMICALS LTD T/A ST TERESA'S NH,09/04/2020,331.12
Bath and North East Somerset Council,80909660,LM6,Nursing Care,P20,Adult Services,BARKER CHEMICALS LTD T/A ST TERESA'S NH,09/04/2020,331.12
Bath and North East Somerset Council,80909660,LM6,Nursing Care,P20,Adult Services,BARKER CHEMICALS LTD T/A ST TERESA'S NH,09/04/2020,331.12
Bath and North East Somerset Council,80909660,LM6,Nursing Care,P20,Adult Services,BARKER CHEMICALS LTD T/A ST TERESA'S NH,09/04/2020,331.12
Bath and North East Somerset Council,80909660,LM6,Nursing Care,P20,Adult Services,BARKER CHEMICALS LTD T/A ST TERESA'S NH,09/04/2020,331.12
Bath and North East Somerset Council,80909838,LL3,Supported Living,P20,Adult Services,VIRGIN CARE SERVICES LTD,09/04/2020,253.2
Bath and North East Somerset Council,80909660,LM6,Nursing Care,P20,Adult Services,BARKER CHEMICALS LTD T/A ST TERESA'S NH,09/04/2020,331.12
Bath and North East Somerset Council,80909660,LM6,Nursing Care,P20,Adult Services,BARKER CHEMICALS LTD T/A ST TERESA'S NH,09/04/2020,331.12
Bath and North East Somerset Council,80909838,LL3,Supported Living,P20,Adult Services,VIRGIN CARE SERVICES LTD,09/04/2020,255.84
Bath and North East Somerset Council,80909838,LL3,Supported Living,P20,Adult Services,VIRGIN CARE SERVICES LTD,09/04/2020,255.84
Bath and North East Somerset Council,80909660,LM6,Nursing Care,P20,Adult Services,BARKER CHEMICALS LTD T/A ST TERESA'S NH,09/04/2020,331.12
Bath and North East Somerset Council,80909660,LM6,Nursing Care,P20,Adult Services,BARKER CHEMICALS LTD T/A ST TERESA'S NH,09/04/2020,331.12
Bath and North East Somerset Council,80909660,LM6,Nursing Care,P20,Adult Services,BARKER CHEMICALS LTD T/A ST TERESA'S NH,09/04/2020,331.12
Bath and North East Somerset Council,80909660,LM6,Nursing Care,P20,Adult Services,BARKER CHEMICALS LTD T/A ST TERESA'S NH,09/04/2020,331.12
Bath and North East Somerset Council,80909660,LM6,Nursing Care,P20,Adult Services,BARKER CHEMICALS LTD T/A ST TERESA'S NH,09/04/2020,331.12
Bath and North East Somerset Council,80909660,LM6,Nursing Care,P20,Adult Services,BARKER CHEMICALS LTD T/A ST TERESA'S NH,09/04/2020,331.12
Bath and North East Somerset Council,80909660,LM6,Nursing Care,P20,Adult Services,BARKER CHEMICALS LTD T/A ST TERESA'S NH,09/04/2020,331.12
Bath and North East Somerset Council,80909660,LM6,Nursing Care,P20,Adult Services,BARKER CHEMICALS LTD T/A ST TERESA'S NH,09/04/2020,331.12
Bath and North East Somerset Council,80909660,LM6,Nursing Care,P20,Adult Services,BARKER CHEMICALS LTD T/A ST TERESA'S NH,09/04/2020,331.12
Bath and North East Somerset Council,80909660,LM6,Nursing Care,P20,Adult Services,BARKER CHEMICALS LTD T/A ST TERESA'S NH,09/04/2020,331.12
Bath and North East Somerset Council,80909660,LM6,Nursing Care,P20,Adult Services,BARKER CHEMICALS LTD T/A ST TERESA'S NH,09/04/2020,331.12
Bath and North East Somerset Council,80909660,LM6,Nursing Care,P20,Adult Services,BARKER CHEMICALS LTD T/A ST TERESA'S NH,09/04/2020,331.12
Bath and North East Somerset Council,80909660,LM6,Nursing Care,P20,Adult Services,BARKER CHEMICALS LTD T/A ST TERESA'S NH,09/04/2020,331.12
Bath and North East Somerset Council,80909660,LM6,Nursing Care,P20,Adult Services,BARKER CHEMICALS LTD T/A ST TERESA'S NH,09/04/2020,331.12
Bath and North East Somerset Council,80909660,LM6,Nursing Care,P20,Adult Services,BARKER CHEMICALS LTD T/A ST TERESA'S NH,09/04/2020,331.12
Bath and North East Somerset Council,80909660,LM6,Nursing Care,P20,Adult Services,BARKER CHEMICALS LTD T/A ST TERESA'S NH,09/04/2020,331.12
Bath and North East Somerset Council,80909660,LM6,Nursing Care,P20,Adult Services,BARKER CHEMICALS LTD T/A ST TERESA'S NH,09/04/2020,331.12
Bath and North East Somerset Council,80909660,LM6,Nursing Care,P20,Adult Services,BARKER CHEMICALS LTD T/A ST TERESA'S NH,09/04/2020,331.12
Bath and North East Somerset Council,80909660,LM6,Nursing Care,P20,Adult Services,BARKER CHEMICALS LTD T/A ST TERESA'S NH,09/04/2020,331.12
Bath and North East Somerset Council,80909660,LM6,Nursing Care,P20,Adult Services,BARKER CHEMICALS LTD T/A ST TERESA'S NH,09/04/2020,331.12
Bath and North East Somerset Council,80909660,LM6,Nursing Care,P20,Adult Services,BARKER CHEMICALS LTD T/A ST TERESA'S NH,09/04/2020,331.12
Bath and North East Somerset Council,80909660,LM6,Nursing Care,P20,Adult Services,BARKER CHEMICALS LTD T/A ST TERESA'S NH,09/04/2020,331.12
Bath and North East Somerset Council,80909660,LM6,Nursing Care,P20,Adult Services,BARKER CHEMICALS LTD T/A ST TERESA'S NH,09/04/2020,331.12
Bath and North East Somerset Council,80909660,LM6,Nursing Care,P20,Adult Services,BARKER CHEMICALS LTD T/A ST TERESA'S NH,09/04/2020,331.12
Bath and North East Somerset Council,80909660,LM6,Nursing Care,P20,Adult Services,BARKER CHEMICALS LTD T/A ST TERESA'S NH,09/04/2020,331.12
Bath and North East Somerset Council,80909660,LM6,Nursing Care,P20,Adult Services,BARKER CHEMICALS LTD T/A ST TERESA'S NH,09/04/2020,331.12
Bath and North East Somerset Council,80909660,LM6,Nursing Care,P20,Adult Services,BARKER CHEMICALS LTD T/A ST TERESA'S NH,09/04/2020,331.12
Bath and North East Somerset Council,80909838,LL3,Supported Living,P20,Adult Services,VIRGIN CARE SERVICES LTD,09/04/2020,277.16
Bath and North East Somerset Council,80909849,LM9,Day Care,P20,Adult Services,SENSE - CHILDREN AND ADULT SERVICES,09/04/2020,284.04
Bath and North East Somerset Council,80909838,LL3,Supported Living,P20,Adult Services,VIRGIN CARE SERVICES LTD,09/04/2020,293.15
Bath and North East Somerset Council,80909838,LL3,Supported Living,P20,Adult Services,VIRGIN CARE SERVICES LTD,09/04/2020,303.86
Bath and North East Somerset Council,80909809,LM6,Nursing Care,P20,Adult Services,BARKER CHEMICALS LTD T/A ST TERESA'S NH,09/04/2020,382.2
Bath and North East Somerset Council,80909809,LM6,Nursing Care,P20,Adult Services,BARKER CHEMICALS LTD T/A ST TERESA'S NH,09/04/2020,1182.68
Bath and North East Somerset Council,80909809,LM6,Nursing Care,P20,Adult Services,BARKER CHEMICALS LTD T/A ST TERESA'S NH,09/04/2020,1182.68
Bath and North East Somerset Council,80909809,LM6,Nursing Care,P20,Adult Services,BARKER CHEMICALS LTD T/A ST TERESA'S NH,09/04/2020,1182.68
Bath and North East Somerset Council,80909809,LM6,Nursing Care,P20,Adult Services,BARKER CHEMICALS LTD T/A ST TERESA'S NH,09/04/2020,1320.4
Bath and North East Somerset Council,80909809,LM6,Nursing Care,P20,Adult Services,BARKER CHEMICALS LTD T/A ST TERESA'S NH,09/04/2020,1361.94
Bath and North East Somerset Council,80909809,LM6,Nursing Care,P20,Adult Services,BARKER CHEMICALS LTD T/A ST TERESA'S NH,09/04/2020,1394.4
Bath and North East Somerset Council,80909809,LM6,Nursing Care,P20,Adult Services,BARKER CHEMICALS LTD T/A ST TERESA'S NH,09/04/2020,1412.4
Bath and North East Somerset Council,80909809,LM6,Nursing Care,P20,Adult Services,BARKER CHEMICALS LTD T/A ST TERESA'S NH,09/04/2020,1428.4
Bath and North East Somerset Council,80909809,LM6,Nursing Care,P20,Adult Services,BARKER CHEMICALS LTD T/A ST TERESA'S NH,09/04/2020,1455.68
Bath and North East Somerset Council,80909809,LM6,Nursing Care,P20,Adult Services,BARKER CHEMICALS LTD T/A ST TERESA'S NH,09/04/2020,1455.68
Bath and North East Somerset Council,80909809,LM6,Nursing Care,P20,Adult Services,BARKER CHEMICALS LTD T/A ST TERESA'S NH,09/04/2020,1456
Bath and North East Somerset Council,80909809,LM6,Nursing Care,P20,Adult Services,BARKER CHEMICALS LTD T/A ST TERESA'S NH,09/04/2020,1456
Bath and North East Somerset Council,80909809,LM6,Nursing Care,P20,Adult Services,BARKER CHEMICALS LTD T/A ST TERESA'S NH,09/04/2020,1458.54
Bath and North East Somerset Council,80909809,LM6,Nursing Care,P20,Adult Services,BARKER CHEMICALS LTD T/A ST TERESA'S NH,09/04/2020,1458.88
Bath and North East Somerset Council,80909809,LM6,Nursing Care,P20,Adult Services,BARKER CHEMICALS LTD T/A ST TERESA'S NH,09/04/2020,1458.88
Bath and North East Somerset Council,80909809,LM6,Nursing Care,P20,Adult Services,BARKER CHEMICALS LTD T/A ST TERESA'S NH,09/04/2020,1459.5
Bath and North East Somerset Council,80909809,LM6,Nursing Care,P20,Adult Services,BARKER CHEMICALS LTD T/A ST TERESA'S NH,09/04/2020,1466.36
Bath and North East Somerset Council,80909809,LM6,Nursing Care,P20,Adult Services,BARKER CHEMICALS LTD T/A ST TERESA'S NH,09/04/2020,1468.4
Bath and North East Somerset Council,80909809,LM6,Nursing Care,P20,Adult Services,BARKER CHEMICALS LTD T/A ST TERESA'S NH,09/04/2020,1470.22
Bath and North East Somerset Council,80909809,LM6,Nursing Care,P20,Adult Services,BARKER CHEMICALS LTD T/A ST TERESA'S NH,09/04/2020,1479.9
Bath and North East Somerset Council,80909809,LM6,Nursing Care,P20,Adult Services,BARKER CHEMICALS LTD T/A ST TERESA'S NH,09/04/2020,1479.9
Bath and North East Somerset Council,80909809,LM3,Residential Care,P20,Adult Services,BARKER CHEMICALS LTD T/A ST TERESA'S NH,09/04/2020,1500
Bath and North East Somerset Council,80909809,LM6,Nursing Care,P20,Adult Services,BARKER CHEMICALS LTD T/A ST TERESA'S NH,09/04/2020,1546.88
Bath and North East Somerset Council,80909838,LL3,Supported Living,P20,Adult Services,VIRGIN CARE SERVICES LTD,09/04/2020,320
Bath and North East Somerset Council,80909809,LM6,Nursing Care,P20,Adult Services,BARKER CHEMICALS LTD T/A ST TERESA'S NH,09/04/2020,1561.68
Bath and North East Somerset Council,80909809,LM6,Nursing Care,P20,Adult Services,BARKER CHEMICALS LTD T/A ST TERESA'S NH,09/04/2020,1564.88
Bath and North East Somerset Council,80909809,LM6,Nursing Care,P20,Adult Services,BARKER CHEMICALS LTD T/A ST TERESA'S NH,09/04/2020,1564.88
Bath and North East Somerset Council,80909809,LM6,Nursing Care,P20,Adult Services,BARKER CHEMICALS LTD T/A ST TERESA'S NH,09/04/2020,1566
Bath and North East Somerset Council,80909809,LM6,Nursing Care,P20,Adult Services,BARKER CHEMICALS LTD T/A ST TERESA'S NH,09/04/2020,1594.8
Bath and North East Somerset Council,80909809,LM6,Nursing Care,P20,Adult Services,BARKER CHEMICALS LTD T/A ST TERESA'S NH,09/04/2020,1666
Bath and North East Somerset Council,80909809,LM6,Nursing Care,P20,Adult Services,BARKER CHEMICALS LTD T/A ST TERESA'S NH,09/04/2020,1740
Bath and North East Somerset Council,80909300,LM6,Nursing Care,P20,Adult Services,BARKER CHEMICALS LTD T/A ST TERESA'S NH,09/04/2020,2106.86
Bath and North East Somerset Council,80909300,LM6,Nursing Care,P20,Adult Services,BARKER CHEMICALS LTD T/A ST TERESA'S NH,09/04/2020,2151.3
Bath and North East Somerset Council,80909646,LL8,Individualised Budget,P20,Adult Services,REDACTED,09/04/2020,1533.2
Bath and North East Somerset Council,80909923,PG4,Support Grants,P19,Resources and Deputy Leader,COVID-19 BUSINESS GRANT,09/04/2020,10000
Bath and North East Somerset Council,80909800,LM3,Residential Care,P20,Adult Services,BATH MIND,09/04/2020,1749.12
Bath and North East Somerset Council,80909800,LM3,Residential Care,P20,Adult Services,BATH MIND,09/04/2020,1749.12
Bath and North East Somerset Council,80909800,LM3,Residential Care,P20,Adult Services,BATH MIND,09/04/2020,1749.12
Bath and North East Somerset Council,80909800,LM3,Residential Care,P20,Adult Services,BATH MIND,09/04/2020,1749.12
Bath and North East Somerset Council,80909800,LM3,Residential Care,P20,Adult Services,BATH MIND,09/04/2020,1749.12
Bath and North East Somerset Council,80909798,LM3,Residential Care,P20,Adult Services,BCVS HOMES,09/04/2020,1139.52
Bath and North East Somerset Council,80909798,LM3,Residential Care,P20,Adult Services,BCVS HOMES,09/04/2020,1139.52
Bath and North East Somerset Council,80909798,LM3,Residential Care,P20,Adult Services,BCVS HOMES,09/04/2020,1154
Bath and North East Somerset Council,80909798,LM3,Residential Care,P20,Adult Services,BCVS HOMES,09/04/2020,1212
Bath and North East Somerset Council,80909798,LM3,Residential Care,P20,Adult Services,BCVS HOMES,09/04/2020,1280
Bath and North East Somerset Council,80909798,LM3,Residential Care,P20,Adult Services,BCVS HOMES,09/04/2020,1290
Bath and North East Somerset Council,80909798,LM3,Residential Care,P20,Adult Services,BCVS HOMES,09/04/2020,1290
Bath and North East Somerset Council,80909798,LM3,Residential Care,P20,Adult Services,BCVS HOMES,09/04/2020,1342
Bath and North East Somerset Council,80909798,LM3,Residential Care,P20,Adult Services,BCVS HOMES,09/04/2020,1372
Bath and North East Somerset Council,80909798,LM3,Residential Care,P20,Adult Services,BCVS HOMES,09/04/2020,1430
Bath and North East Somerset Council,80909821,LM3,Residential Care,P20,Adult Services,BEDBOROUGH HOUSE,09/04/2020,6234.24
Bath and North East Somerset Council,80909821,LM3,Residential Care,P20,Adult Services,BEDBOROUGH HOUSE,09/04/2020,7099.44
Bath and North East Somerset Council,80909713,LM3,Residential Care,P20,Adult Services,BELMONT VILLA RESIDENTIAL NURSING HOME LTD,09/04/2020,1500
Bath and North East Somerset Council,80909976,PG4,Support Grants,P19,Resources and Deputy Leader,COVID-19 BUSINESS GRANT,09/04/2020,10000
Bath and North East Somerset Council,80909969,PG4,Support Grants,P19,Resources and Deputy Leader,COVID-19 BUSINESS GRANT,09/04/2020,10000
Bath and North East Somerset Council,80909924,PG4,Support Grants,P19,Resources and Deputy Leader,COVID-19 BUSINESS GRANT,09/04/2020,25000
Bath and North East Somerset Council,80909697,LM3,Residential Care,P20,Adult Services,BRADBURY HOUSE LTD,09/04/2020,2388.32
Bath and North East Somerset Council,80909697,LM3,Residential Care,P20,Adult Services,BRADBURY HOUSE LTD,09/04/2020,2447.54
Bath and North East Somerset Council,80909697,LM3,Residential Care,P20,Adult Services,BRADBURY HOUSE LTD,09/04/2020,2884.78
Bath and North East Somerset Council,80909697,LM3,Residential Care,P20,Adult Services,BRADBURY HOUSE LTD,09/04/2020,2975.7
Bath and North East Somerset Council,80909697,LM3,Residential Care,P20,Adult Services,BRADBURY HOUSE LTD,09/04/2020,3183.68
Bath and North East Somerset Council,80909697,LM3,Residential Care,P20,Adult Services,BRADBURY HOUSE LTD,09/04/2020,4061.6
Bath and North East Somerset Council,80909697,LM3,Residential Care,P20,Adult Services,BRADBURY HOUSE LTD,09/04/2020,4173.06
Bath and North East Somerset Council,80909697,LM3,Residential Care,P20,Adult Services,BRADBURY HOUSE LTD,09/04/2020,4480.18
Bath and North East Somerset Council,80909697,LM3,Residential Care,P20,Adult Services,BRADBURY HOUSE LTD,09/04/2020,4708.5
Bath and North East Somerset Council,80909697,LM3,Residential Care,P20,Adult Services,BRADBURY HOUSE LTD,09/04/2020,4961.82
Bath and North East Somerset Council,80909697,LM3,Residential Care,P20,Adult Services,BRADBURY HOUSE LTD,09/04/2020,5156.1
Bath and North East Somerset Council,80909697,LM3,Residential Care,P20,Adult Services,BRADBURY HOUSE LTD,09/04/2020,5317.26
Bath and North East Somerset Council,80909697,LM3,Residential Care,P20,Adult Services,BRADBURY HOUSE LTD,09/04/2020,5470.46
Bath and North East Somerset Council,80909697,LM3,Residential Care,P20,Adult Services,BRADBURY HOUSE LTD,09/04/2020,6322.98
Bath and North East Somerset Council,80909648,LM6,Nursing Care,P20,Adult Services,BRIDGE CARE LTD,09/04/2020,331.12
Bath and North East Somerset Council,80909648,LM6,Nursing Care,P20,Adult Services,BRIDGE CARE LTD,09/04/2020,331.12
Bath and North East Somerset Council,80909648,LM6,Nursing Care,P20,Adult Services,BRIDGE CARE LTD,09/04/2020,331.12
Bath and North East Somerset Council,80909648,LM6,Nursing Care,P20,Adult Services,BRIDGE CARE LTD,09/04/2020,331.12
Bath and North East Somerset Council,80909648,LM6,Nursing Care,P20,Adult Services,BRIDGE CARE LTD,09/04/2020,331.12
Bath and North East Somerset Council,80909648,LM6,Nursing Care,P20,Adult Services,BRIDGE CARE LTD,09/04/2020,331.12
Bath and North East Somerset Council,80909648,LM6,Nursing Care,P20,Adult Services,BRIDGE CARE LTD,09/04/2020,331.12
Bath and North East Somerset Council,80909648,LM6,Nursing Care,P20,Adult Services,BRIDGE CARE LTD,09/04/2020,331.12
Bath and North East Somerset Council,80909648,LM6,Nursing Care,P20,Adult Services,BRIDGE CARE LTD,09/04/2020,331.12
Bath and North East Somerset Council,80909648,LM6,Nursing Care,P20,Adult Services,BRIDGE CARE LTD,09/04/2020,331.12
Bath and North East Somerset Council,80909648,LM6,Nursing Care,P20,Adult Services,BRIDGE CARE LTD,09/04/2020,331.12
Bath and North East Somerset Council,80909648,LM6,Nursing Care,P20,Adult Services,BRIDGE CARE LTD,09/04/2020,331.12
Bath and North East Somerset Council,80909648,LM6,Nursing Care,P20,Adult Services,BRIDGE CARE LTD,09/04/2020,331.12
Bath and North East Somerset Council,80909789,LM4,Respite Care,P20,Adult Services,BRIDGE CARE LTD,09/04/2020,1028.57
Bath and North East Somerset Council,80909789,LM6,Nursing Care,P20,Adult Services,BRIDGE CARE LTD,09/04/2020,1145.6
Bath and North East Somerset Council,80909789,LM3,Residential Care,P20,Adult Services,BRIDGE CARE LTD,09/04/2020,1300
